{"text_format":"1","workbook":"xlsx","n_sheets":1,"sheets":["SuperSearchSuperZoo"],"not_rendered":{"charts":0,"images":4,"macros":1,"external_links":0,"defined_names":4,"comments":0,"pivot_tables":0},"unopened":[],"bounds":{"document_bytes":16777216,"sheet_cells":100000,"rows_first":2000,"rows_last":500,"rows_between":2000,"halvings":0,"cell_chars":16384,"cell_head_chars":4096},"cells_cut":0,"cells_raw":0,"read":"whole","date_system":"1900"}

{"sheet":"SuperSearchSuperZoo","index":0,"n_rows":1096,"n_cols":53,"rows_kept":1096,"cut":false,"hidden":false,"merged":[[7,21,7,52],[3,0,3,1],[4,0,4,1],[5,0,5,1],[6,0,6,1],[7,10,7,20],[7,0,7,3],[7,4,7,9],[2,0,2,1],[0,10,0,20],[0,21,0,52],[1,0,1,1],[0,4,0,9],[0,0,0,3]]}
["SEARCH EXHIBITORS",null,null,null,"GPE SECTION",null,null,null,null,null,"ANIMAL/EXHIBITOR TYPE",null,null,null,null,null,null,null,null,null,null,"DOG and/or CAT PRODUCT CATEGORIES"]
["EXHIBITOR SEARCH  ALL RESULTS ARE COMBINED",null,"EXHIBITOR SEARCH","<< \"U Pick 'Em\" LIST","Natural","Boutique","Aquatic","International",null,"1st Time","Media, Org","Distributor","Bus Services Rtl/Mfg","Gift/Gen Mdse","Fish","Reptile","Bird","Sm Animal","Horse","Cat","Dog","Books, Mags","Clothes, Costumes","C&L Harn Acc ","ID Tags","Food","Feeding Acc","Treats ","Rawhide","Toys","Exercise. Agility","Catnip","Scratching","Furniture","Tie Out & Contain ","Beds Mats","Doors/Gates","Carriers Crates","Car Safety, Acc","Houses, Kennels","Litter","Litter Acc","Dental","Meds, Supp","Flea & Tick","Groom Tool","Shampoo","Stain & Odor, Clean","Wipes","Train pads, diapers ","Waste Pickup","Electronic","Track, Monitor"]
["Must have \"Y\" to activate; Then enter \"1\" in column>>",null,"Y"]
["To Add on Chge \"N\" to \"Y\"; Then enter \"1\" in column>>",null,"N"]
[" Note: An \"N\" even with \"1's\" will generate no results",null,"N"]
["Note: Multiple \"1's\" in a row mean AND - Must have all",null,"N"]
["Note: A \"Y\" with no \"1\"s brings up the whole list",null,"N"]
["SEARCH RESULTS",null,null,null,"GPE SECTION",null,null,null,null,null,"ANIMAL/EXHIBITOR TYPE",null,null,null,null,null,null,null,null,null,null,"DOG and/or CAT PRODUCT CATEGORIES"]
["GPE BOOTH #","EXHIBITOR LIST","EXHIBITOR SEARCH","<< \"U Pick 'Em\" LIST","Natural","Boutique","Aquatic","International",null,"1st Time","Media, Org","Distributor","Bus Services Rtl/Mfg","Gift/Gen Mdse","Fish","Reptile","Bird","Sm Animal","Horse","Cat","Dog","Books, Mags","Clothes, Costumes","C&L Harn Acc ","ID Tags","Food","Feeding Acc","Treats ","Rawhide","Toys","Exercise. Agility","Catnip","Scratching","Furniture","Tie Out & Contain ","Beds Mats","Doors/Gates","Carriers Crates","Car Safety, Acc","Houses, Kennels","Litter","Litter Acc","Dental","Meds, Supp","Flea & Tick","Groom Tool","Shampoo","Stain & Odor, Clean","Wipes","Train pads, diapers ","Waste Pickup","Electronic","Track, Monitor"]
[501,"2 Hounds Design ","Y",null,null,1,null,null,null,null,0,0,null,0,0,0,0,0,0,0,1,0,0,1,0,0,0,0,0,0,0,0,0,0,0,0,0,0,0,0,0,0,0,0,0,0,0,0,0,0,0,0,0]
[4559,"21st Century Animal HealthCare","Y",null,null,null,null,null,null,1,null,null,null,null,null,null,null,null,null,1,1,null,null,null,null,null,null,null,null,null,null,null,null,null,null,null,null,null,null,null,null,null,null,1]
[607,"26 Bars & a Band, Inc. ","Y",null,null,null,null,null,null,null,0,0,null,1,0,0,0,0,0,null,1,0,1,1,1,0,0,0,0,1,0,0,0,0,0,1,0,0,0,0,0,0,0,0,0,0,0,0,0,0,null,0,0]
[3548,"4Legs4Pets","Y",null,null,null,null,null,null,null,null,null,null,null,null,null,null,null,null,null,1,null,null,null,null,null,null,null,null,null,null,null,null,null,null,1]
[2281,"4pets ","Y",null,null,null,null,null,null,null,0,0,null,0,0,0,0,0,0,1,1,0,0,0,0,0,0,0,0,0,0,0,0,0,0,0,0,1,1,0,0,0,0,0,0,0,0,0,0,0,0,0,0]
[438,"A Tail We Could Wag ","Y",null,null,1,null,null,null,null,0,0,null,0,0,0,0,0,0,0,1,0,0,1,0,0,0,0,0,0,0,0,0,0,0,0,0,0,0,0,0,0,0,0,0,0,0,0,0,0,0,0,0]
[3089,"A&E Cage Co., LLC ","Y",null,null,null,null,null,null,null,0,0,null,0,0,1,1,1,0,0,1,0,0,0,0,0,0,0,0,0,0,0,0,0,0,0,0,null,0,0,0,0,0,0,0,0,0,0,0,0,0,0,0]
[1359,"AA Aquarium ","Y",null,null,null,1,null,null,null,0,0,null,0,1,0,0,0,0,0,0,0,0,0,0,0,0,0,0,0,0,0,0,0,0,0,0,0,0,0,0,0,0,0,0,0,0,0,0,0,0,0,0]
[1207,"AAA Bath Fashions","Y",null,null,null,null,null,null,null,null,null,null,null,null,null,null,null,null,null,1,null,null,null,null,null,1]
[4554,"Absolutely Clean Products","Y",null,null,null,null,null,null,1,null,null,null,null,null,null,null,null,null,1,1,null,null,null,null,null,null,null,null,null,null,null,null,null,null,null,null,null,null,null,null,null,null,null,null,null,null,1]
[3491,"Absorbine","Y",null,null,null,null,null,null,null,0,0,null,0,0,0,0,0,1,0,0,0,0,0,0,0,0,0,0,0,0,0,0,0,0,0,0,0,0,0,0,0,0,0,0,0,0,0,0,0,0,0,0]
[4571,"Absorlution LLC","Y",null,null,null,null,null,null,1,null,null,null,null,null,null,null,null,null,1,1,null,null,null,null,null,null,null,null,null,null,null,null,null,null,null,null,null,null,null,1,1,null,null,null,null,null,null,1,1,1]
[3606,"ActivPhy","Y",null,null,null,null,null,null,null,null,null,null,null,null,null,null,null,null,null,1,null,null,null,null,null,null,null,null,null,null,null,null,null,null,null,null,null,null,null,null,null,null,1,null,null,0,0,0,0,0,0,0]
[3824,"Advance Pet Products ","Y",null,null,null,null,null,null,null,0,0,null,0,0,0,0,0,0,1,1,0,1,0,0,0,1,0,0,1,0,0,0,0,0,1,0,0,0,0,0,0,0,0,0,0,0,0,0,0,0,0,0]
[3313,"Advantek Marketing","Y",null,null,null,null,null,null,null,0,0,0,0,0,0,0,1,1,0,1,0,0,0,0,0,0,0,0,0,0,0,0,0,0,0,0,1,0,1,0,0,0,0,0,0]
[4987,"AdVet, Inc.","Y",null,null,null,null,null,null,1,null,null,null,null,null,null,null,null,null,null,1,null,null,null,null,null,null,null,null,null,null,null,null,null,null,null,null,null,null,null,null,null,null,null,null,null,1,0,0,0,0,0,0]
[3484,"AdyGil (Hong Kong) Products Co","Y",null,null,null,null,null,null,null,0,0,0,0,0,0,0,0,0,0,1,0,0,1,0,0,1,0,0,1,0,0,0,0,0,0,0,1,0,0,0,0,0,0,0,0,0,0,0,0,0,0,0]
[684,"Age Group Ltd.","Y",null,null,null,null,null,null,null,0,0,0,0,0,0,0,0,0,0,1,0,1,1,0,0,0,0,0,1,0,0,0,0,0,0,0,0,0,0,0,0,0,0,0,0,0,0,0,0,0,0,0]
[3047,"Ainsworth Pet Nutrition","Y",null,null,null,null,null,null,null,0,0,0,0,0,0,0,0,0,1,1,0,0,0,0,1,0,1,0,0,0,0,0,0,0,0,0,0,0,0,0,0,0,0,0,0,0,0,0,0,0,0,0]
[4134,"Alaska Naturals Pet Products ","Y",null,1,null,null,null,null,null,0,0,null,0,0,0,0,0,0,1,1,0,0,0,0,0,0,1,0,0,0,0,0,0,0,0,0,0,0,0,0,0,0,1,0,0,0,0,0,0,0,0,0]
[3201,"Alfa Pet","Y",null,null,null,null,null,null,null,0,0,0,0,1,0,1,1,1,1,1,0,0,0,0,0,0,0,1,1,0,0,0,0,0,1,0,0,0,0,1,1,0,0,0,0]
[682,"Alfalfa King ","Y",null,null,null,null,null,null,null,0,0,null,0,0,1,0,1,0,0,0,0,0,0,0,0,0,0,0,0,0,0,0,0,0,0,0,0,0,0,0,0,0,0,0,0,0,0,0,0,0,0,0]
[1038,"All Bird Supply","Y",null,null,null,null,null,null,null,null,null,null,null,null,null,1,null,null,null,null,null,null,null,null,null,null,null,null,null,null,null,null,null,null,null,null,null,null,null,null,null,null,null,null,null,0,0,0,0,0,0,0]
[1301,"All Four Paws ","Y",null,null,null,null,null,null,null,0,0,null,0,0,0,0,0,0,1,1,0,0,1,0,0,0,0,0,0,0,0,0,0,0,0,0,0,0,0,0,0,0,0,0,0,0,0,0,0,0,0,0]
[401,"All Star Dogs Inc. ","Y",null,null,1,null,null,null,null,null,null,null,1,null,null,null,null,null,null,1,null,1,1,null,null,1,null,null,null,null,null,null,null,null,1]
[2889,"Almo Nature USA, Inc. ","Y",null,null,null,null,null,null,null,null,null,null,null,null,null,null,null,null,1,1,null,null,null,null,1]
[3566,"Amazing Pet Products ","Y",null,null,null,null,null,null,null,0,0,null,0,1,1,1,1,0,1,1,0,1,1,1,0,1,1,1,1,0,1,0,0,1,1,0,0,0,0,1,1,1,1,0,1,0,0,0,0,0,0,0]
[679,"American Dog Apparel","Y",null,null,null,null,null,null,null,0,0,0,0,0,0,0,0,0,0,1,0,1,0,0,0,0,0,0,0,0,0,0,0,0,0,0,0,0,0,0,0,0,0,0,0]
[1872,"American Dog Toys","Y",null,null,null,null,null,null,null,0,0,null,0,0,0,0,0,0,0,1,0,0,0,0,0,0,0,0,1,0,0,0,0,0,0,0,0,0,0,0,0,0,0,0,0,0,0,0,0,0,0,0]
[779,"American Natural Premium","Y",null,null,null,null,null,null,null,null,null,null,null,null,null,null,null,null,null,1,null,null,null,null,1]
[490,"American Natural Treats","Y",null,null,null,null,null,null,null,null,null,null,null,null,null,null,null,null,null,1,null,null,null,null,null,null,1]
[4989,"American Nutrition, Inc.","Y",null,null,null,null,null,null,1,null,null,null,null,null,null,null,null,null,1,1,null,null,null,null,1]
[2401,"American Pet Products Association","Y",null,null,null,null,null,null,null,1,0,null,1,0,0,0,0,0,0,0,0,0,0,0,0,0,0,0,0,0,0,0,0,0,0,0,0,0,0,0,0,0,0,0,0,0,0,0,0,0,0,0]
[3759,"Andersons Pet Care Products","Y",null,null,null,null,null,null,null,null,null,null,1,null,null,null,null,null,1,1,null,null,null,null,null,null,null,null,null,null,null,null,null,null,null,null,null,null,null,null,null,null,null,null,null,0,0,0,0,0,0,0]
[3121,"Andis Company ","Y",null,null,null,null,null,null,null,0,0,null,0,0,0,0,0,1,1,1,0,0,0,0,0,0,0,0,0,0,0,0,0,0,0,0,0,0,0,0,0,0,0,0,1,0,0,0,0,0,0,0]
[624,"Angel Pet Supplies Inc. ","Y",null,null,null,null,null,null,null,0,0,null,0,0,0,0,0,0,1,1,0,0,1,0,0,0,0,0,0,0,0,0,0,0,0,0,0,0,0,0,0,0,0,0,0,0,0,0,0,0,0,0]
[526,"Angels' Eyes ","Y",null,null,1,null,null,null,null,0,0,null,0,0,0,0,0,0,1,1,0,0,0,0,0,0,0,0,0,0,0,0,0,0,0,0,0,0,0,0,0,0,1,0,0,0,0,1,0,0,0,0]
[604,"Anima International Corp. ","Y",null,null,null,null,null,null,null,0,0,null,1,0,0,0,0,0,0,1,0,1,1,0,0,0,0,0,1,0,0,0,0,0,1,0,1,0,0,0,0,0,0,0,0,0,0,0,0,0,0,0]
[1213,"Animal Adventure","Y",null,null,null,null,null,null,null,0,0,0,0,0,0,0,0,0,0,1,0,0,0,0,0,0,0,0,1,0,0,0,0,0,0,0,0,0,0,0,0,0,0,0,0]
[616,"Animal Behavior College ","Y",null,null,null,null,null,null,null,0,0,1,0,0,0,0,0,0,0,0,0,0,0,0,0,0,0,0,0,0,0,0,0,0,0,0,0,0,0,0,0,0,0,0,0,0,0,0,0,0,0,0]
[3920,"Animal Essentials Inc. ","Y",null,1,null,null,null,null,null,0,0,null,0,0,0,0,0,1,1,1,0,0,0,0,0,0,0,0,0,0,0,0,0,0,0,0,0,0,0,0,0,0,1,0,0,0,0,0,0,0,0,0]
[3174,"AniMate - Pet Mate Ltd","Y",null,null,null,null,null,null,null,null,null,null,null,1,null,null,null,null,1,1,null,null,1,null,null,1,null,null,1,null,null,null,null,null,null,1,null,null,null,null,null,null,null,null,null,0,0,0,0,0,0,0]
[4138,"Annamaet Petfoods Inc. ","Y",null,1,null,null,null,null,null,0,0,null,0,0,0,0,0,0,1,1,0,0,0,0,1,0,0,0,0,0,0,0,0,0,0,0,0,0,0,0,0,0,1,0,0,0,0,0,0,0,0,0]
[2684,"Annies Pooch Pops","Y",null,null,null,null,null,null,null,0,0,0,0,0,0,0,0,0,0,1,0,0,0,0,0,0,1,0,0,0,0,0,0,0,0,0,0,0,0,0,0,0,0,0,0]
[4844,"AP Lazer","Y",null,null,null,null,null,null,1,null,null,null,1,null,null,null,null,null,1,1]
[975,"Applaws Pet Food - MPM Products USA","Y",null,null,null,null,null,null,null,null,null,null,null,null,null,null,null,null,1,null,null,null,null,null,1,null,null,null,null,null,null,null,null,null,null,null,null,null,null,null,null,null,null,null,null,0,0,0,0,0,0,0]
[1234,"Aqua Ultraviolet","Y",null,null,null,1,null,null,null,0,0,0,0,1,0,0,0,0,0,0,0,0,0,0,0,0,0,0,0,0,0,0,0,0,0,0,0,0,0,0,0,0,0,0,0]
[1177,"Aquaculture Systems Axiton, Inc.","Y",null,null,null,null,null,null,null,null,null,null,null,1,null,null,null,null,null,null,null,null,null,null,null,null,null,null,null,null,null,null,null,null,null,null,null,null,null,null,null,null,null,null,null,0,0,0,0,0,0,0]
[1249,"Aquarium Design International, Inc.","Y",null,null,null,1,null,null,null,0,0,0,0,1,0,0,0,0,0,0,0,0,0,0,0,0,0,0,0,0,0,0,0,0,0,0,0,0,0,0,0,0,0,0,0]
[4948,"Aquatic Nutrition, Inc.","Y",null,null,null,null,null,null,1,null,null,null,null,1,null,null,null,null,null,null,null,null,null,null,null,null,null,null,null,null,null,null,null,null,null,null,null,null,null,null,null,null,null,null,null,0,0,0,0,0,0,0]
[1659,"Aquatop Aquatic Supplies","Y",null,null,null,1,null,null,null,0,0,0,0,1,0,0,0,0,0,0,0,0,0,0,0,0,0,0,0,0,0,0,0,0,0,0,0,0,0,0,0,0,0,0,0,0,0,0,0,0,0,0]
[2685,"Arjan Impex Pvt. Ltd.","Y",null,null,null,null,null,null,null,0,0,0,0,0,0,0,0,0,0,1,0,0,0,0,0,1,0,0,0,0,0,0,0,0,1,0,0,0,0,0,0,0,0,0,0]
[3727,"Ark Naturals ","Y",null,null,null,null,null,null,null,0,0,null,0,0,0,1,1,0,1,1,0,0,0,0,0,0,1,0,0,0,0,0,0,0,0,0,0,0,0,0,0,1,1,1,0,null,0,0,0,0,0,0]
[826,"Armstrong's Cricket Farm ","Y",null,null,null,null,null,null,null,0,0,null,0,0,1,1,0,0,0,0,0,0,0,0,0,0,0,0,0,0,0,0,0,0,0,0,0,0,0,0,0,0,0,0,0,0,0,0,0,0,0,0]
[3705,"Aroma Paws ","Y",null,null,null,null,null,null,null,0,0,null,1,0,0,0,0,0,0,1,0,0,0,0,0,0,0,0,0,0,0,0,0,0,0,0,0,0,0,0,0,0,0,1,0,1,1,0,0,0,0,0]
[4550,"Aromadog","Y",null,null,null,null,null,null,1,null,null,null,null,null,null,null,null,null,1,1,null,null,null,null,null,null,null,null,null,null,null,null,null,null,null,null,null,null,null,null,null,null,1,null,null,0,1,0,0,0,0,0]
[4149,"Artemis Pet Foods ","Y",null,1,null,null,null,null,null,0,0,null,0,0,0,0,0,0,1,1,0,0,0,0,1,0,0,0,0,0,0,0,0,0,0,0,0,0,0,0,0,0,0,0,0,0,0,0,0,0,0,0]
[691,"Artero USA","Y",null,null,null,null,null,null,null,null,null,null,null,null,null,null,null,null,1,1,null,null,null,null,null,null,null,null,null,null,null,null,null,null,null,null,null,null,null,null,null,null,1,null,1,1]
[4245,"Arthur Pet Products","Y",null,1,null,null,null,null,null,0,0,0,0,0,0,0,0,0,0,1,0,0,0,0,0,0,1,0,0,0,0,0,0,0,0,0,0,0,0,0,0,0,0,0,0]
[3717,"Artvark Pet Products ","Y",null,null,null,null,null,null,null,0,1,null,0,0,0,0,0,0,1,1,0,0,1,0,0,1,1,1,0,0,0,0,0,0,0,0,0,0,0,0,0,0,0,1,1,0,0,0,1,1,0,0]
[4853,"Aspen Manufacturing Co.","Y",null,null,null,null,null,null,1,null,null,null,null,null,null,null,null,1,null,1,null,null,1,null,null,null,null,null,1]
[1424,"Astro Pet Owner Loyalty Platform","Y",null,null,null,null,null,null,null,null,null,1]
[4682,"ATG-LINE","Y",null,null,null,null,null,null,1,null,null,null,null,1,1]
[4558,"ATTITUDE","Y",null,null,null,null,null,null,1,null,null,null,null,null,null,null,null,null,1,1,null,null,null,null,null,null,null,null,null,null,null,null,null,null,null,null,null,null,null,null,null,null,null,null,null,1,1,1]
[601,"Auburn Leathercrafters ","Y",null,null,null,null,null,null,null,0,0,null,0,0,0,0,0,0,1,1,0,1,1,0,0,0,0,0,1,0,null,0,0,0,0,0,0,0,0,0,0,0,0,0,0,0,0,0,0,0,0,0]
[4986,"Ausonia Consulting SRL","Y",null,null,null,null,null,null,1,null,null,null,null,null,null,null,null,null,1,1,null,null,null,null,1,null,1,null,null,null,null,null,null,null,null,null,null,null,null,1,null,null,null,null,null,0,0,0,0,0,0,0]
[2449,"Aussie Naturals by ABO Gear","Y",null,null,null,null,null,null,null,0,0,null,0,0,0,0,0,0,1,1,0,1,1,0,0,0,1,0,1,0,0,0,0,0,1,0,1,1,1,0,0,0,0,0,0,0,0,0,0,0,0,0]
[1155,"Automated Pet Care Products, Inc.","Y",null,null,null,null,null,null,null,0,0,0,0,0,0,0,0,0,1,0,0,0,0,0,0,0,0,0,0,0,0,0,0,0,0,0,0,0,0,0,1,0,0,0,0]
[3407,"AVEEVA Pet, Inc.","Y",null,null,null,null,null,null,null,null,null,null,null,null,null,null,null,null,1,1,null,null,null,null,null,null,null,null,null,null,null,null,null,null,null,null,null,null,null,null,null,null,null,1,null,1,1]
[4881,"Bad Katz Catnip Company","Y",null,null,null,null,null,null,1,null,null,null,null,null,null,null,null,null,1,null,null,null,null,null,null,null,null,null,1,null,null,null,null,null,null,null,null,null,null,null,null,null,null,null,null,1,0,0,0,0,0,0]
[3453,"B-Air Dryers-Intertex Inc. ","Y",null,null,null,null,null,null,null,0,0,null,0,0,0,0,0,0,0,1,0,0,0,0,0,0,0,0,0,0,0,0,0,0,0,0,0,0,0,0,0,0,0,0,1,0,0,0,0,0,0,0]
[404,"Bark n Bag ","Y",null,null,1,null,null,null,null,null,null,null,null,null,null,null,null,null,1,1,null,null,null,null,null,1,null,null,1,null,null,null,null,null,1,null,1]
[582,"Barkleigh Productions ","Y",null,null,null,null,null,null,null,1]
[4250,"BarkLogic by Logic Product Group","Y",null,1,null,null,null,null,null,0,0,0,0,0,0,0,0,0,0,1,0,0,0,0,0,0,0,0,0,0,0,0,0,0,0,0,0,0,0,0,0,0,0,1,0,0,0,0,0,0,0,0]
[2309,"BarkPark","Y",null,null,null,null,null,null,null,0,0,0,0,0,0,0,0,0,0,1,0,0,0,0,0,0,0,0,0,1,0,0,0,0,0,0,0,0,0,0,0,0,0,0,0]
[3689,"Barkworthies  ","Y",null,null,null,null,null,null,null,0,0,null,0,0,0,0,0,0,0,1,0,0,0,0,0,0,1,0,0,0,0,0,0,0,0,0,0,0,0,0,0,0,0,0,0,0,0,0,0,0,0,0]
[1587,"BASE4 Group, Inc.","Y",null,null,null,null,null,null,null,null,null,null,null,null,null,null,null,null,null,1,null,1,null,null,null,null,null,null,1]
[3075,"Batz Corporation","Y",null,null,null,null,null,null,null,null,null,null,null,null,null,null,null,null,null,1,null,null,1,null,null,null,null,null,null,null,null,null,null,1]
[1855,"Bayer HealthCare ","Y",null,null,null,null,null,null,null,0,0,null,0,0,0,0,0,0,1,1,0,0,0,0,0,0,0,0,0,0,0,0,0,0,0,0,0,0,0,0,0,0,0,1,0,0,0,0,0,0,0,0]
[475,"Baylee Nasco ","Y",null,null,null,null,null,null,null,0,0,null,0,0,0,0,0,0,0,1,0,0,0,0,0,0,0,0,0,0,0,0,null,0,1,0,0,0,0,0,0,0,0,0,0,0,0,0,0,0,0,0]
[4650,"Beaks and Paws, Inc.","Y",null,null,null,null,null,null,1,null,null,null,null,null,null,1,null,null,null,1,null,null,null,null,null,null,null,null,null,null,null,null,null,null,null,null,1]
[4977,"Beatrice Home Fashions","Y",null,null,null,null,null,null,1,null,null,null,null,null,null,null,null,null,null,1,null,null,null,null,null,null,null,null,null,null,null,null,null,null,1,null,null,null,null,null,null,null,null,null,null,0,0,0,0,0,0,0]
[1375,"Beatrise Pet Products","Y",null,null,null,null,null,null,null,0,0,0,0,0,0,0,0,0,1,0,0,0,0,0,0,0,0,0,0,0,0,0,1,0,0,0,0,0,0,0,0,0,0,0,0]
[2781,"Beefeaters/Nutri-Vet","Y",null,null,null,null,null,null,null,null,null,null,null,null,null,null,null,null,1,1,null,null,null,null,null,null,1,1,1,null,null,null,null,null,null,null,null,null,null,null,null,null,null,null,null,0,0,0,0,0,0,0]
[3957,"Bell Rock Growers","Y",null,1,null,null,null,null,null,0,0,null,1,1,1,1,1,0,1,1,0,0,0,0,0,0,1,0,1,0,1,0,0,0,0,0,0,0,0,0,0,0,1,0,0,0,0,0,0,0,0,0]
[3954,"Bench & Field Holistic Natural Pet Foods","Y",null,1,null,null,null,null,null,0,0,0,0,0,0,0,0,0,1,1,0,0,0,0,1,0,0,0,0,0,0,0,0,0,0,0,0,0,0,0,0,0,0,0,0]
[4771,"Benebone LLC","Y",null,null,null,null,null,null,1,null,null,null,null,null,null,null,null,null,null,1,null,null,null,null,null,null,null,null,1]
[305,"Bentonite Performance Minerals","Y",null,null,null,null,null,null,null,0,0,null,0,1,0,0,0,0,1,0,0,0,0,0,0,0,0,0,0,0,0,0,0,0,0,0,0,0,0,1,0,0,0,0,0,0,0,0,0,0,0,0]
[2025,"Bergan ","Y",null,null,null,null,null,null,null,0,0,null,0,0,0,0,0,0,1,1,0,0,1,0,0,1,1,0,1,0,1,0,0,0,0,0,1,1,0,0,1,0,1,0,0,0,0,0,0,0,0,0]
[417,"Bessie And Barnie ","Y",null,null,1,null,null,null,null,0,0,null,0,0,0,0,0,0,0,1,0,0,1,0,0,0,0,0,0,0,0,0,0,0,1,0,0,0,0,0,0,0,0,0,0,0,0,0,0,0,0,0]
[3900,"Best Buy Bones ","Y",null,1,null,null,null,null,null,0,0,null,0,0,0,0,0,0,0,1,0,0,0,0,0,0,1,0,0,0,0,0,0,0,0,0,0,0,0,0,0,0,0,0,0,0,0,0,0,0,0,0]
[1589,"Best Furry Friends","Y",null,null,null,null,null,null,null,null,null,null,null,null,null,null,null,null,null,1,null,1,null,null,null,null,null,null,1,null,null,null,null,null,null,null,null,null,null,null,null,null,null,null,null,0,0,0,0,0,0,0]
[1000,"Best Pet Supplies Inc. ","Y",null,null,null,null,null,null,null,0,0,null,0,0,0,0,0,0,1,1,0,0,1,0,0,0,1,0,1,0,0,0,1,0,1,0,1,null,1,0,0,0,0,0,0,0,1,1,1,1,0,0]
[545,"Best Shot Pet Products ","Y",null,null,1,null,null,null,null,0,0,null,0,0,0,0,0,1,1,1,0,0,0,0,0,0,0,0,0,0,0,0,0,0,0,0,0,0,0,0,0,0,0,0,0,1,0,0,0,0,0,0]
[1849,"BH Pet Gear LLC","Y",null,null,null,null,null,null,null,0,0,0,0,0,0,0,0,0,0,1,0,1,0,0,0,0,0,0,0,0,0,0,0,0,0,0,0,0,0,0,0,0,0,0,0]
[4889,"Big Daddy Biscuits, LLC","Y",null,null,null,null,null,null,1,null,null,null,null,null,null,null,null,null,null,1,null,null,null,null,null,null,1,null,null,null,null,null,null,null,null,null,null,null,null,null,null,null,null,null,null,0,0,0,0,0,0,0]
[3935,"Big Heart Pet Brands ","Y",null,1,null,null,null,null,null,0,0,null,0,0,0,0,0,0,1,1,0,0,0,0,1,0,1,0,0,0,0,0,0,0,0,0,0,0,0,0,0,0,0,0,0,0,0,0,0,0,0,0]
[884,"Bihlerflex dba Just Ducky Products ","Y",null,null,null,null,null,null,null,null,null,null,null,null,null,null,null,null,null,1,null,null,1]
[200,"BikeTowLeash.com/Leon Engineering","Y",null,null,null,null,null,null,null,null,null,null,null,null,null,null,null,null,null,1,null,null,1,null,null,null,null,null,null,1]
[1067,"Bil-Jac / Kelly Foods Corp.","Y",null,null,null,null,null,null,null,0,0,0,0,0,0,0,0,0,1,1,0,0,0,0,1,0,1,0,1,0,0,0,0,0,0,0,0,0,0,0,0,0,0,0,0,0,0,0,0,0,0,0]
[4010,"Bingo Pet Treats","Y",null,1,null,null,null,null,null,0,0,0,0,0,0,0,0,0,0,1,0,0,0,0,0,0,1,0,0,0,0,0,0,0,0,0,0,0,0,0,0,0,0,0,0,0,0,0,0,0,0,0]
[3821,"Bio Biscuit Inc.","Y",null,null,null,null,null,null,null,0,0,0,0,0,0,0,0,0,0,1,0,0,0,0,0,0,1,0,0,0,0,0,0,0,0,0,0,0,0,0,0,0,0,0,0]
[819,"BioBubble Pets","Y",null,null,null,null,null,null,null,0,0,null,0,1,1,null,1,0,0,0,0,0,0,0,0,0,0,0,0,0,0,0,0,0,0,0,0,0,0,0,0,0,0,0,0,0,0,0,0,0,0,0]
[208,"Biograde (Nanjing) Pty Ltd.","Y",null,null,null,null,null,null,null,null,null,null,null,null,null,null,null,null,null,1,null,null,null,null,null,null,null,null,null,null,null,null,null,null,null,null,null,null,null,null,null,null,null,null,null,null,null,null,null,1]
[3280,"Bio-Groom","Y",null,null,null,null,null,null,null,0,0,null,0,0,0,0,1,1,1,1,0,0,0,0,0,0,0,0,0,0,0,0,0,0,0,0,0,0,0,0,0,0,0,1,0,1,0,0,0,0,0,0]
[3275,"Bionic Pet Products ","Y",null,null,null,null,null,null,null,0,0,null,0,0,0,0,0,0,0,1,0,0,0,0,0,0,0,0,1,0,0,0,0,0,0,0,0,0,0,0,0,0,0,0,0,0,0,0,0,0,0,0]
[4871,"Biscuit Bob's Gourmet Dog Treats","Y",null,null,null,null,null,null,1,null,null,null,null,null,null,null,null,null,null,1,null,null,null,null,1,null,1]
[2519,"Bison Pets LLC ","Y",null,null,null,null,null,null,null,null,null,null,null,null,null,null,null,null,1,1,null,null,1,null,null,1]
[4229,"BIXBI Pet ","Y",null,1,null,null,null,null,null,0,0,null,0,0,0,0,0,0,1,1,0,0,0,0,0,0,1,0,0,0,0,0,0,0,0,0,0,0,0,0,0,0,1,0,0,0,0,0,0,0,0,0]
[3991,"Blackwood Pet Food ","Y",null,1,null,null,null,null,null,0,0,null,0,0,0,0,1,1,1,1,0,0,0,0,1,0,1,0,0,0,0,0,0,0,0,0,0,0,0,0,0,0,0,0,0,0,0,0,0,0,0,0]
[651,"Blue Buffalo Co.","Y",null,null,null,null,null,null,null,0,0,null,0,0,0,0,0,0,1,1,0,0,0,0,1,0,0,0,0,0,0,0,0,0,0,0,0,0,0,0,0,0,0,0,0,0,0,0,0,0,0,0]
[3781,"Blue Dog Bakery ","Y",null,null,null,null,null,null,null,0,0,null,0,0,0,0,0,0,0,1,0,0,0,0,0,0,1,0,0,0,0,0,0,0,0,0,0,0,0,0,0,0,0,0,0,0,0,0,0,0,0,0]
[1255,"Blue Ribbon Pet Products","Y",null,null,null,1,null,null,null,0,0,null,0,1,1,1,0,0,0,1,0,0,0,0,0,0,0,0,1,0,0,0,0,0,0,0,0,0,0,0,0,0,0,0,0,0,0,0,0,0,0,0]
[4783,"Blue-9 Pet Products","Y",null,null,null,null,null,null,1,null,null,null,null,null,null,null,null,null,null,1,null,null,null,null,null,null,null,null,null,1]
[3751,"Bobbi Panter Pet Products ","Y",null,null,null,null,null,null,null,0,0,null,0,0,0,0,0,0,1,1,0,0,0,0,0,0,0,0,0,0,0,0,0,0,0,0,0,0,0,0,0,0,0,0,0,1,0,0,0,0,0,0]
[3951,"Bocce's Bakery ","Y",null,1,null,null,null,null,null,0,0,null,0,0,0,0,0,0,0,1,0,0,0,0,0,0,1,0,0,0,0,0,0,0,0,0,0,0,0,0,0,0,0,0,0,0,0,0,0,0,0,0]
[4057,"Boneo Canine [Bio-Rep Animal Health]","Y",null,1,null,null,null,null,null,null,null,null,null,null,null,null,null,null,null,1,null,null,null,null,null,null,null,null,null,null,null,null,null,null,null,null,null,null,null,null,null,null,1]
[1881,"Border Concepts, Inc.","Y",null,null,null,null,null,null,null,null,null,null,1,null,null,null,null,null,null,null,null,null,null,null,null,null,null,null,null,null,null,null,null,null,null,null,null,null,null,null,null,null,null,null,null,0,0,0,0,0,0,0]
[559,"Bosco and Roxy's Inc. ","Y",null,null,1,null,null,null,null,null,null,null,null,null,null,null,null,null,null,1,null,null,null,null,null,null,1]
[3567,"Boss Pet Products","Y",null,null,null,null,null,null,null,0,0,null,0,0,0,0,0,0,1,1,0,0,1,0,0,1,1,1,1,0,0,null,0,1,1,0,0,1,0,0,1,0,1,1,1,1,1,0,1,1,0,0]
[3810,"Bow & Arrow","Y",null,null,null,null,null,null,null,0,0,0,0,0,0,0,0,0,0,1,0,0,1,0,0,0,1,1,1,0,0,0,0,0,0,0,0,0,0,0,0,0,0,0,0,0,0,0,0,0,0,0]
[527,"Bowsers Pet Products ","Y",null,null,1,null,null,null,null,0,0,null,0,0,0,0,0,0,1,1,0,1,1,0,0,1,0,0,0,0,0,0,0,0,1,0,0,0,0,0,0,0,0,0,0,0,0,0,0,0,0,0]
[1649,"Boyd Enterprises ","Y",null,null,null,1,null,null,null,0,0,null,0,1,0,0,0,0,0,0,0,0,0,0,0,0,0,0,0,0,0,0,0,0,0,0,0,0,0,0,0,0,0,0,0,0,0,0,0,0,0,0]
[4458,"BPV Environmental/Fresh News Pet Prod","Y",null,1,null,null,null,null,null,0,0,null,0,0,0,1,1,0,1,1,0,0,0,0,0,0,0,0,0,0,0,0,0,0,0,0,0,0,0,1,0,0,0,0,0,0,0,0,0,0,0,0]
[2901,"Bramton Company LLC","Y",null,null,null,null,null,null,null,0,0,null,0,0,0,0,0,0,1,1,0,0,1,0,0,0,0,0,0,0,0,0,0,0,0,0,0,0,0,1,0,0,1,1,0,1,1,0,1,1,0,0]
[4159,"Bravo! Raw Diet","Y",null,1,null,null,null,null,null,0,0,null,0,0,0,0,0,0,1,1,0,0,0,0,1,0,1,0,0,0,0,0,0,0,0,0,0,0,0,0,0,0,1,0,0,0,0,0,0,0,0,0]
[3512,"Bu Shang Enterprise Co., Ltd.","Y",null,null,null,null,null,null,null,0,0,0,0,0,0,0,0,0,0,1,0,0,1,1,0,1,0,0,0,0,0,0,0,0,1,0,1,0,0,0,0,0,0,0,0,0,0,0,0,0,0,0]
[658,"Buckle-Down Inc.","Y",null,null,null,null,null,null,null,0,0,null,0,0,0,0,0,0,0,1,0,0,1,0,0,0,0,0,0,0,0,0,0,0,0,0,0,0,0,0,0,0,0,0,0,0,0,0,0,0,0,0]
[1300,"Buddeez, Inc.","Y",null,null,null,null,null,null,null,0,0,0,0,0,0,1,0,0,1,1,0,0,0,0,0,1,0,0,0,0,0,0,0,0,0,0,0,0,0,0,0,0,0,0,0]
[521,"Buddy Belts & BB2 ","Y",null,null,1,null,null,null,null,0,0,null,0,0,0,0,0,0,0,1,0,0,1,0,0,0,0,0,0,0,0,0,0,0,0,0,0,0,0,0,0,0,0,0,0,0,0,0,0,0,0,0]
[3375,"Buddy's Line - Royal Trade USA, Inc.","Y",null,null,null,null,null,null,null,0,0,null,0,0,0,0,0,0,1,1,0,0,0,0,0,1,0,0,0,0,0,0,0,0,0,0,0,0,0,0,0,0,0,0,0,0,0,0,0,0,0,0]
[4858,"Bungalow Flooring, LLC","Y",null,null,null,null,null,null,1,null,null,null,null,null,null,null,null,null,1,1,null,null,null,null,null,null,null,null,null,null,null,null,null,null,1,null,null,null,null,null,null,null,null,null,null,0,0,0,0,0,0,0]
[3015,"Butcher's Bones","Y",null,null,null,null,null,null,null,0,0,0,0,0,0,0,0,0,0,1,0,0,0,0,0,0,1,0,0,0,0,0,0,0,0,0,0,0,0,0,0,0,0,0,0,0,0,0,0,0,0,0]
[2766,"Butler Home Products","Y",null,null,null,null,null,null,null,null,null,null,null,null,null,null,null,null,1,1,null,null,null,null,null,null,null,null,null,null,null,null,null,null,null,null,null,null,null,null,null,null,null,null,1,null,1]
[3266,"C & S Products Co., Inc.","Y",null,null,null,null,null,null,null,0,0,0,0,0,0,1,0,0,0,0,0,0,0,0,0,0,0,0,0,0,0,0,0,0,0,0,0,0,0,0,0,0,0,0,0]
[3600,"Caitec Corp","Y",null,null,null,null,null,null,null,0,0,null,0,null,0,1,1,0,0,1,0,0,0,0,0,1,0,0,1,0,0,0,0,0,0,0,1,0,0,0,0,0,0,0,0,0,0,0,0,0,0,0]
[4891,"California Clock Company","Y",null,null,null,null,null,null,1,null,null,null,1]
[4751,"Calm My Pet","Y",null,null,null,null,null,null,1,null,null,null,null,null,null,null,null,null,1,1,null,null,null,null,null,null,null,null,null,null,null,null,null,null,null,null,null,null,null,null,null,null,1]
[4681,"Canada Litter, Inc.","Y",null,null,null,null,null,null,1,null,null,null,null,null,null,null,null,null,1,null,null,null,null,null,null,null,null,null,null,null,null,null,null,null,null,null,null,null,null,1,1]
[715,"Canada Pooch","Y",null,null,null,null,null,null,null,0,0,null,0,0,0,0,0,0,0,1,0,1,0,0,0,0,0,0,0,0,0,0,0,0,1,0,0,0,0,0,0,0,0,0,0,0,0,0,0,0,0,0]
[3550,"Cangnan County HengLi Cotton Textile ","Y",null,null,null,null,null,null,null,null,null,null,null,null,null,1,null,null,null,1,null,null,null,null,null,null,null,null,1,null,null,null,null,null,null,null,null,null,null,null,null,null,null,null,null,0,0,0,0,0,0,0]
[1023,"Canidae Natural Pet Food Co.","Y",null,null,null,null,null,null,null,0,0,null,0,0,0,0,0,0,1,1,0,0,0,0,1,0,0,0,0,0,0,0,0,0,0,0,0,0,0,0,0,0,0,0,0,0,0,0,0,0,0,0]
[3190,"Canifrance USA Inc. ","Y",null,null,null,null,null,null,null,0,0,null,0,0,0,0,0,0,1,1,0,1,1,0,0,1,0,0,1,0,0,1,0,0,1,0,1,0,0,0,0,0,0,0,0,0,0,0,0,0,0,0]
[4079,"Canine Caviar Pet Foods Inc. ","Y",null,1,null,null,null,null,null,0,0,null,0,0,0,0,0,0,1,1,0,0,0,0,1,0,1,0,0,0,0,0,0,0,0,0,0,0,0,0,0,0,1,0,0,0,0,0,0,0,0,0]
[1767,"Canine Cushion Co.","Y",null,null,null,null,null,null,null,0,0,0,0,0,0,0,0,0,1,1,0,0,0,0,0,0,0,0,0,0,0,0,0,0,1,0,0,0,0,0,0,0,0,0,0,0,0,0,0,0,0,0]
[701,"Canine's Choice, Inc.","Y",null,null,null,null,null,null,null,0,0,0,0,0,0,0,0,0,0,1,0,0,0,0,0,0,1,1,1,0,0,0,0,0,0,0,0,0,0,0,0,0,0,0,0]
[4645,"Canna Companion LLC","Y",null,null,null,null,null,null,1,null,null,null,null,null,null,null,null,null,1,1,null,null,null,null,null,null,null,null,null,null,null,null,null,null,null,null,null,null,null,null,null,null,1]
[880,"CanToy by SodaPup","Y",null,null,null,null,null,null,null,null,null,null,null,null,null,null,null,null,null,1,null,null,null,null,null,null,null,null,1]
[2775,"Cardinal Gates, Inc.","Y",null,null,null,null,null,null,null,null,null,null,null,null,null,null,null,null,null,1,null,null,null,null,null,null,null,null,null,null,null,null,null,null,null,1]
[3323,"Cardinal Laboratories, Inc.","Y",null,null,null,null,null,null,null,0,0,null,null,0,0,0,0,0,1,1,0,0,1,null,null,null,1,1,1,0,null,0,0,0,1,0,1,0,0,0,0,1,1,1,0,1,1,0,0,0,0,0]
[3967,"Cargill ","Y",null,1,null,null,null,null,null,null,null,null,null,null,null,null,1,1,null,1,null,null,null,null,null,null,1,1,1]
[1454,"CaribSea, Inc.","Y",null,null,null,1,null,null,null,null,null,null,null,1,null,null,null,null,null,null,null,null,null,null,null,null,null,null,null,null,null,null,null,null,null,null,null,null,null,null,null,null,null,null,null,0,0,0,0,0,0,0]
[3535,"Carlson Pet Products","Y",null,null,null,null,null,null,null,0,0,null,0,0,0,0,0,0,1,1,0,0,0,0,0,0,0,0,0,0,0,0,0,0,0,1,1,0,0,0,0,0,0,0,0,0,0,0,0,0,0,0]
[4251,"Carna4 Hand Crafted Pet Food ","Y",null,1,null,null,null,null,null,null,null,null,null,null,null,null,null,null,null,1,null,null,null,null,1,null,1]
[578,"Carolina Manufacturing","Y",null,null,null,null,null,null,null,0,0,0,1,0,0,0,0,0,1,1,0,1,0,0,0,0,0,0,0,0,0,0,0,0,0,0,0,0,0,0,0,0,0,0,0,0,0,0,0,0,0,0]
[3215,"Carolina Prime Pet Inc. ","Y",null,null,null,null,null,null,null,0,0,null,0,0,0,0,0,0,0,1,0,0,0,0,0,0,1,1,0,0,0,0,0,0,0,0,0,0,0,0,0,0,0,0,0,0,0,0,0,0,0,0]
[1871,"Carpenter Company","Y",null,null,null,null,null,null,null,null,null,null,null,null,null,null,null,null,1,1,null,null,null,null,null,null,null,null,null,null,null,null,null,null,1]
[4467,"CarPET-Pet Hair Remover","Y",null,null,null,null,1,null,null,0,0,0,0,0,0,0,0,0,1,1,0,0,0,0,0,0,0,0,0,0,0,0,0,0,0,0,0,0,0,0,0,0,0,0,1,0,0,0,0,0,0,0]
[2489,"Carrie Belle's Calicos, LLC","Y",null,null,null,null,null,null,null,0,0,0,0,0,0,0,0,0,1,1,0,0,0,0,0,0,0,0,0,0,0,0,1,0,1,0,1,0,0,0,0,0,0,0,0]
[4444,"Caru Pet Food Company ","Y",null,1,null,null,null,null,null,0,0,null,0,0,0,0,0,0,0,1,0,0,0,0,1,0,1,0,0,0,0,0,0,0,0,0,0,0,0,0,0,0,0,0,0,0,0,0,0,0,0,0]
[1059,"Cat Craft by OSI","Y",null,null,null,null,null,null,null,null,null,null,null,null,null,null,null,null,1,null,null,null,null,null,null,null,1,null,1,null,null,null,1]
[1106,"Cat Dancer Products Inc.","Y",null,null,null,null,null,null,null,0,0,null,0,0,0,0,0,0,1,0,0,0,0,0,0,0,null,0,1,0,0,1,0,0,0,0,0,0,0,0,0,0,0,0,0,0,0,0,0,0,0,0]
[3287,"CATIDEA","Y",null,null,null,null,null,null,null,null,null,null,null,null,null,null,null,null,1,1,null,null,null,null,null,null,null,null,null,null,null,null,null,null,null,null,null,null,null,null,1,null,null,null,null,1,1]
[4970,"Cats of Thrones","Y",null,null,null,null,null,null,1,null,null,null,null,null,null,null,null,null,1,null,null,null,null,null,null,null,null,null,null,null,null,null,null,null,null,null,null,null,null,null,null,null,null,null,null,0,0,0,0,1,0,0]
[3701,"Cats Rule Dogs Rock","Y",null,null,null,null,null,null,null,0,0,0,1,0,0,0,0,0,1,1,0,0,0,0,0,1,1,0,1,0,1,null,1,0,1,0,0,1,0,0,1,0,0,0,1,null,1]
[1891,"Catty Stacks","Y",null,null,null,null,null,null,null,null,null,null,1,null,null,null,1,null,null,null,null,null,null,null,null,null,null,null,1,null,null,1,1,null,1,null,null,null,1]
[3486,"Celebrity Pet Toys Company Ltd.","Y",null,null,null,null,null,null,null,null,null,null,null,null,null,null,null,null,null,1,null,null,null,null,null,null,null,null,1,null,null,null,null,null,null,null,null,null,null,null,null,null,null,null,null,0,0,0,0,0,0,0]
[1901,"Central Garden & Pet ","Y",null,null,null,null,null,null,null,0,0,null,null,1,1,1,1,1,1,1,1,1,1,1,1,1,1,1,1,1,1,0,0,1,1,1,1,1,1,1,1,1,1,1,1,1,1,1,1,1,0,0]
[2625,"Central Pet Distribution ","Y",null,null,null,null,null,null,null,0,1,null,0,1,1,1,1,1,1,1,1,1,1,1,1,1,1,1,1,1,1,1,1,1,1,1,1,1,1,1,1,1,1,1,1,1,1,1,1,1,1,0]
[1752,"CerMedia LLC","Y",null,null,null,1,null,null,null,0,0,0,0,1,0,0,0,0,0,0,0,0,0,0,0,0,0,0,0,0,0,0,0,0,0,0,0,0,0,0,0,0,0,0,0]
[3547,"Cesar Milian, Inc.","Y",null,null,null,null,null,null,null,null,null,null,null,null,null,null,null,null,null,1,1,null,null,null,null,null,null,null,null,null,null,null,null,null,null,null,null,null,null,null,null,null,null,null,1]
[3887,"Champion Petfoods ","Y",null,null,null,null,null,null,null,0,0,null,0,0,0,0,0,0,1,1,0,0,0,0,1,0,1,0,0,0,0,0,0,0,0,0,0,0,0,0,0,0,0,0,0,0,0,0,0,0,0,0]
[2782,"Charming Pet Products ","Y",null,null,null,null,null,null,null,0,0,null,0,0,0,0,0,0,0,1,0,0,1,0,0,0,0,0,1,0,0,0,0,0,0,0,0,0,0,0,0,0,0,0,0,0,0,0,0,0,0,0]
[4644,"Chasing Our Tails, Inc.","Y",null,null,null,null,null,null,1,null,null,null,null,null,null,null,null,null,null,1,null,null,null,null,null,null,1]
[491,"ChewMax Pet Products","Y",null,null,null,null,null,null,null,null,null,null,null,null,null,null,null,null,null,1,null,null,null,null,null,null,null,null,1]
[2379,"Chicken Soup for the Soul Pet Food","Y",null,null,null,null,null,null,null,0,0,null,0,0,0,0,0,0,1,1,0,0,0,0,1,0,0,0,0,0,0,0,0,0,0,0,0,0,0,0,0,0,0,0,0,0,0,0,0,0,0,0]
[4354,"Chilly Dog ","Y",null,1,null,null,null,null,null,0,0,null,0,0,0,0,0,0,1,1,0,1,1,0,0,0,0,0,1,0,0,0,0,0,0,0,0,0,0,0,0,0,0,0,0,0,0,0,0,0,0,0]
[4954,"Choice Wise Antler Pet Chews","Y",null,null,null,null,null,null,1,null,null,null,null,null,null,1,1,null,null,1,null,null,null,null,null,null,1,null,null,null,null,null,null,null,null,null,null,null,null,null,null,null,null,null,null,0,0,0,0,0,0,0]
[423,"ChokeFree Pets c/o Assured Solutions","Y",null,null,1,null,null,null,null,0,0,0,0,0,0,0,0,0,0,1,0,0,1,0,0,0,0,0,0,0,0,0,0,0,0,0,0,0,0,0,0,0,0,0,0,0,0,0,0,0,0,0]
[683,"CIPS","Y",null,null,null,null,null,null,null,1,0,0,0,0,0,0,0,0,0,0,0,0,0,0,0,0,0,0,0,0,0,0,0,0,0,0,0,0,0,0,0,0,0,0,0,0,0,0,0,0,0,0]
[474,"Claudia's Canine Cuisine ","Y",null,null,null,null,null,null,null,0,0,null,1,0,0,0,0,0,0,1,0,0,0,0,0,0,1,0,0,0,0,0,0,0,0,0,0,0,0,0,0,0,0,0,0,0,0,0,0,0,0,0]
[4449,"Clear Conscience Pet ","Y",null,1,null,null,null,null,null,0,0,null,0,0,0,0,0,0,0,1,0,0,0,0,null,0,1,0,0,0,0,0,0,0,0,0,0,0,0,0,0,1,1,0,0,0,0,0,0,0,0,0]
[1426,"Clifford W. Estes Co., Inc.","Y",null,null,null,null,null,null,null,0,0,0,0,1,1,0,0,0,0,0,0,0,0,0,0,0,0,0,0,0,0,0,0,0,0,0,0,0,0,0,0,0,0,0,0,0,0,0,0,0,0,0]
[4006,"ClotIt ","Y",null,1,null,null,null,null,null,0,0,null,0,0,0,0,0,0,1,1,0,0,0,0,0,0,0,0,0,0,0,0,0,0,0,0,0,0,0,0,0,0,1,0,0,0,0,0,0,0,0,0]
[3901,"Cloud Star Corporation ","Y",null,1,null,null,null,null,null,0,0,null,null,0,0,0,0,0,1,1,0,0,0,0,0,0,1,0,0,0,0,0,0,0,0,0,0,0,0,0,0,0,0,0,0,1,0,0,0,0,0,0]
[1835,"Coastal Pet Products","Y",null,null,null,null,null,null,null,0,0,null,0,0,1,0,1,1,1,1,0,0,1,1,0,0,0,0,1,0,0,0,0,1,0,0,0,1,0,0,0,0,0,0,1,0,0,0,1,0,0,0]
[1149,"Cobalt International ","Y",null,null,null,1,null,null,null,0,0,null,0,1,0,0,0,0,0,0,0,0,0,0,0,0,0,0,0,0,0,0,0,0,0,0,0,0,0,0,0,0,0,0,0,0,0,0,0,0,0,0]
[3472,"COLLAR","Y",null,null,null,null,null,null,null,0,0,0,0,1,0,0,0,0,1,1,0,0,1,0,0,0,0,0,0,1,0,0,0,0,0,0,0,0,0,1,0,0,0,0,0]
[1756,"COLLAR ","Y",null,null,null,1,null,null,null,0,0,null,0,1,0,0,0,0,1,1,0,0,1,0,0,0,0,0,null,1,0,0,0,0,0,0,0,0,0,1,0,0,0,0,0,0,0,0,0,0,0,0]
[1991,"Comfortable Pet, Inc.","Y",null,null,null,null,null,null,null,null,null,null,null,null,null,null,null,null,1,1,null,null,null,null,null,null,null,null,null,null,null,null,null,null,1]
[4567,"Command Pet","Y",null,null,null,null,null,null,1,null,null,null,null,null,null,null,null,null,null,1,null,null,null,null,null,null,null,null,null,null,null,null,null,null,null,1]
[1575,"Company of Animals (The)","Y",null,null,null,null,null,null,null,0,0,null,0,0,0,0,0,0,1,1,0,0,1,0,0,1,1,0,1,0,0,0,0,0,0,0,0,1,0,0,0,0,0,0,0,0,0,0,0,0,1,0]
[4016,"Complete Natural Nutrition/Buddys Kitch","Y",null,1,null,null,null,null,null,0,0,null,0,0,0,0,0,0,1,1,0,0,0,0,0,0,1,0,0,0,0,0,0,0,0,0,0,0,0,0,0,0,1,0,0,0,0,0,0,0,0,0]
[2583,"Comp-Ware Systems, Inc. ","Y",null,null,null,null,null,null,null,null,null,1]
[2847,"ConairPro Pet ","Y",null,null,null,null,null,null,null,0,0,null,0,0,0,0,0,1,1,1,0,0,1,0,0,0,0,0,0,0,0,0,0,0,0,0,0,0,0,0,0,0,0,0,1,1,0,0,0,0,0,0]
[4880,"CongreTek, Inc.","Y",null,null,null,null,null,null,1,null,null,null,null,null,null,null,null,null,null,1,null,null,null,null,null,null,null,null,null,null,null,null,null,null,null,null,null,null,null,null,null,null,null,null,null,null,null,null,null,1]
[4352,"COOL PET Holistic ","Y",null,1,null,null,null,null,null,null,null,null,null,null,null,1,null,1,1,1,null,null,null,null,null,null,null,null,null,null,null,null,null,null,null,null,null,null,null,null,null,null,1]
[3916,"Copper River Seafoods","Y",null,1,null,null,null,null,null,0,0,null,0,0,0,0,0,0,0,1,0,0,0,0,0,0,1,0,0,0,0,0,0,0,0,0,0,0,0,0,0,0,0,0,0,0,0,0,0,0,0,0]
[1459,"Coralvue","Y",null,null,null,1,null,null,null,null,null,null,null,1]
[2586,"Corey Nutrition Company, Inc.","Y",null,null,null,null,null,null,null,null,null,null,null,null,null,null,null,null,1,1,null,null,null,null,1]
[4776,"Corky's Reflective Wear, LLC","Y",null,null,null,null,null,null,1,null,null,null,null,null,null,null,null,null,null,1,null,1,1,null,null,null,null,null,null,null,null,null,null,null,null,null,null,null,null,null,null,null,null,null,null,0,0,0,0,0,0,0]
[4587,"CosmoRiley","Y",null,null,null,null,null,null,1,null,null,null,null,null,null,null,null,null,null,1,null,null,1,null,null,null,null,null,null,null,null,null,null,null,null,null,null,1]
[1674,"Couch Defender, Inc.","Y",null,null,null,null,null,null,null,0,0,0,0,0,0,0,0,0,0,1,0,0,0,0,0,0,0,0,0,0,0,0,1,0,0,0,0,0,0,0,0,0,0,0,0,0,0,0,0,0,0,0]
[3720,"Crazy K Farm Pet and Poultry Prod.","Y",null,null,null,null,null,null,null,0,0,0,0,0,0,0,0,0,1,0,0,0,1,0,0,0,0,0,0,0,0,0,0,0,0,0,0,0,0,0,0,0,0,0,0,0,0,0,0,0,0,0]
[3308,"Creative Pet Group, LLC","Y",null,null,null,null,null,null,null,0,0,0,0,0,0,0,0,0,1,1,0,0,null,0,0,null,0,0,1,0,0,0,0,0,1,0,0,0,0,0,1,0,0,0,0,0,0,0,1,1,0,0]
[3725,"Crosswind Petfoods, Inc.","Y",null,null,null,null,null,null,null,0,0,0,0,1,1,1,1,1,1,1,0,0,0,0,1,0,1,0,1,0,0,0,0,0,0,0,0,0,0,0,0,1,0,0,0]
[4021,"Crumps' Naturals ","Y",null,1,null,null,null,null,null,0,0,null,0,0,0,0,0,0,0,1,0,0,0,0,0,0,1,0,0,0,0,0,0,0,0,0,0,0,0,0,0,0,0,0,0,0,0,0,0,0,0,0]
[1358,"Current USA ","Y",null,null,null,1,null,null,null,0,0,null,0,1,0,0,0,0,0,0,0,0,0,0,0,0,0,0,0,0,0,0,0,0,0,0,0,0,0,0,0,0,0,0,0,0,0,0,0,0,0,0]
[457,"Cycle Dog-Earth Friendly Pet Co. ","Y",null,null,1,null,null,null,null,0,0,null,0,0,0,0,0,0,0,1,0,1,1,0,0,1,null,0,1,0,0,0,0,0,0,0,0,0,0,0,0,0,0,0,0,0,0,0,0,1,0,0]
[4945,"CYNJO","Y",null,null,null,null,null,null,1,null,null,null,0,0,0,0,null,null,null,1,null,null,null,null,null,1,null,null,null,null,null,null,null,null,null,null,null,null,null,null,null,null,null,null,null,null,0,0,0,0,0,0]
[3001,"D & D Commodities Ltd. ","Y",null,null,null,null,null,null,null,0,0,null,0,0,0,1,1,0,0,0,0,0,0,0,0,0,0,0,0,0,0,0,0,0,0,0,0,0,0,0,0,0,0,0,0,0,0,0,0,0,0,0]
[3116,"D.T. Systems","Y",null,null,null,null,null,null,null,0,0,null,0,0,0,0,0,0,0,1,0,0,1,0,0,0,0,0,0,0,0,0,0,1,0,0,0,0,0,0,0,0,0,0,0,0,0,0,0,0,1,1]
[4677,"DAC Technologies","Y",null,null,null,null,null,null,1,null,null,null,null,null,null,null,null,null,null,1,null,null,1,null,null,null,null,null,null,null,null,null,null,null,null,null,null,null,null,null,null,null,null,null,null,0,0,0,0,0,0,0]
[1401,"Dallas Manufacturing Co. ","Y",null,null,null,null,null,null,null,0,0,null,0,0,0,0,0,0,1,1,0,1,0,0,0,0,1,0,1,0,1,1,1,0,1,0,1,1,0,0,0,0,0,0,0,0,0,0,null,0,0,0]
[1005,"DanaZoo","Y",null,null,null,null,null,null,null,0,0,0,0,0,0,0,0,0,1,1,0,0,0,0,0,0,0,0,0,0,0,0,0,0,1,0,0,0,0,0,0,0,0,0,0,0,0,0,0,0,0,0]
[2513,"Danner Mfg., Inc.","Y",null,null,null,null,null,null,null,0,0,0,0,1,0,0,0,0,0,0,0,0,0,0,0,0,0,0,0,0,0,0,0,0,0,0,0,0,0,0,0,0,0,0,0]
[4045,"Darford Industries, Ltd.","Y",null,1,null,null,null,null,null,0,0,null,0,0,0,0,0,0,0,1,0,0,0,0,0,0,1,0,0,0,0,0,0,0,0,0,0,0,0,0,0,0,0,0,0,0,0,0,0,0,0,0]
[4005,"Dave's Pet Food ","Y",null,1,null,null,null,null,null,0,0,null,0,0,1,1,0,0,1,1,0,0,0,0,1,0,0,0,0,0,0,0,0,0,0,0,0,0,0,0,0,0,0,0,0,0,0,0,0,0,0,0]
[1006,"Day to Day Imports, Inc.","Y",null,null,null,null,null,null,null,null,null,null,null,null,null,null,null,null,1,1,null,null,1,null,null,1,null,null,null,null,null,null,1,null,null,null,1,null,null,null,null,null,null,null,null,1,0,0,0,0,0,0]
[1313,"Delca Corporation ","Y",null,null,null,null,null,null,null,0,0,null,0,0,0,0,1,0,1,1,0,0,0,0,0,0,1,0,1,0,null,0,0,0,0,0,0,0,0,0,0,0,0,0,0,0,0,0,1,1,null,0]
[3716,"Dennis East International, LLC","Y",null,null,null,null,null,null,null,0,0,0,1,0,0,0,0,0,0,1,0,1,1,0,0,1,0,0,1,0,0,0,0,0,1,0,0,0,0,0,0,0,0,0,0,1]
[1947,"Dexas International","Y",null,null,null,null,null,null,null,0,0,null,0,0,0,0,0,0,0,1,0,0,0,0,0,1,0,0,0,0,0,0,0,0,0,0,0,0,0,0,0,0,0,0,0,0,0,0,0,0,0,0]
[473,"DH2 International, Inc - Pet Party Printz","Y",null,null,null,null,null,null,null,null,null,null,1,null,null,null,null,null,null,1]
[4688,"Dia'mar International","Y",null,null,null,null,null,null,1,null,null,null,null,null,null,null,null,null,null,1,null,null,null,null,null,null,null,null,null,null,null,null,null,null,1,null,null,null,null,null,null,null,null,null,null,1,1]
[4852,"Dmax Global, Inc.","Y",null,null,null,null,null,null,1,null,null,null,null,null,null,null,null,null,null,1,null,null,1,null,null,1]
[4548,"Dog Body, L.L.C.","Y",null,null,null,null,null,null,1,null,null,null,null,null,null,null,null,null,null,1,null,1,null,null,null,null,null,null,null,null,null,null,null,null,null,null,null,null,null,null,null,null,null,null,null,0,0,0,0,0,0,0]
[451,"DOG Brands, dba Dogs of Glamour","Y",null,null,1,null,null,null,null,0,0,null,0,0,0,0,0,0,0,1,0,1,1,0,0,0,0,0,1,0,0,0,0,0,1,0,1,0,0,0,0,0,0,0,0,0,0,0,0,0,0,0]
[644,"Dog Fashion ","Y",null,null,null,null,null,null,null,0,0,null,1,0,0,0,0,0,0,1,0,1,0,0,0,0,0,0,0,0,0,0,0,0,0,0,0,0,0,0,0,0,0,0,0,1,0,0,0,0,0,0]
[1383,"DOG for DOG ","Y",null,null,null,null,null,null,null,0,0,null,0,0,0,0,0,0,0,1,0,0,0,0,1,0,1,0,0,0,0,0,0,0,0,0,0,0,0,0,0,0,0,0,0,0,0,0,0,0,0,0]
[3875,"Dog Gone Smart Pet Products ","Y",null,null,null,null,null,null,null,0,0,null,0,0,0,0,0,1,1,1,0,1,0,0,0,0,0,0,0,0,0,0,0,0,1,0,0,0,0,0,1,0,0,0,0,0,0,0,0,0,0,0]
[874,"Dog Goods USA LLC","Y",null,null,null,null,null,null,null,0,0,0,0,0,0,0,0,0,0,1,0,0,0,0,0,0,1,0,0,0,0,0,0,0,0,0,0,0,0,0,0,0,0,0,0,0,0,0,0,0,0,0]
[441,"Dog Is Good","Y",null,null,1,null,null,null,null,0,0,null,1,0,0,0,0,0,0,null,0,null,null,0,0,0,0,0,null,0,0,0,0,0,0,0,0,0,0,0,0,0,0,0,0,0,0,0,0,null,0,0]
[650,"Dog Not Gone","Y",null,null,null,null,null,null,null,0,0,0,0,0,0,0,0,0,0,1,0,1,1,0,0,0,0,0,0,0,0,0,0,0,0,0,0,0,0,0,0,0,0,0,0,0,0,0,0,0,0,0]
[3118,"Dog Rocks ","Y",null,null,null,null,null,null,null,0,0,null,0,0,0,0,0,0,0,1,0,0,0,0,0,0,0,0,0,0,0,0,0,0,0,0,0,0,0,0,0,0,1,0,0,0,1,0,0,0,0,0]
[551,"Dog Speak ","Y",null,null,1,null,null,null,null,0,0,null,1,0,0,0,0,0,0,0,0,0,0,0,0,0,0,0,0,0,0,0,0,0,0,0,0,0,0,0,0,0,0,0,0,0,0,0,0,0,0,0]
[421,"Dog Squad (The)","Y",null,null,1,null,null,null,null,0,0,null,0,0,0,0,0,0,0,1,0,1,1,0,0,0,0,0,0,0,0,0,0,0,1,0,0,0,0,0,0,0,0,0,0,0,0,0,0,0,0,0]
[3906,"DogChewz NYC","Y",null,1,null,null,null,null,null,0,0,0,0,0,0,0,0,0,0,1,0,0,0,0,0,0,1,0,0,0,0,0,0,0,0,0,0,0,0,0,0,0,0,0,0]
[505,"Doggie Design","Y",null,null,1,null,null,null,null,0,0,null,1,0,0,0,0,0,0,1,0,1,1,0,0,0,null,0,null,0,0,0,0,0,0,0,0,0,0,0,0,0,0,0,0,0,0,0,0,0,0,0]
[780,"Doggie Styles & Kitty Too! ","Y",null,null,null,null,null,null,null,0,0,null,0,0,0,0,0,0,1,1,0,1,1,0,0,0,1,0,1,0,1,0,0,0,1,0,0,0,0,0,0,0,0,0,0,0,0,0,0,0,0,0]
[939,"DoggieNation Inc. ","Y",null,null,null,null,null,null,null,0,0,null,0,0,0,0,0,0,0,1,0,1,1,0,0,1,0,0,1,0,0,0,0,0,1,0,0,0,0,0,0,0,0,0,0,0,0,0,0,0,0,0]
[827,"Doggles","Y",null,null,null,null,null,null,null,0,0,null,1,0,0,0,0,0,1,1,0,1,null,0,0,0,0,0,1,0,1,0,0,0,1,0,1,0,0,0,0,0,0,0,0,0,0,0,0,0,0,0]
[4985,"Doggy Don, Inc.","Y",null,null,null,null,null,null,1,null,null,null,null,null,null,null,null,null,null,1,null,1]
[4672,"DogHeiro, Inc.","Y",null,null,null,null,null,null,1,null,null,null,null,null,null,null,null,null,null,1,null,null,null,null,null,null,null,null,null,null,null,null,null,null,null,null,null,null,null,null,null,null,1]
[576,"Dogington Post","Y",null,null,null,null,null,null,null,1,null,null,null,null,null,null,null,null,null,1]
[3544,"Dogline ","Y",null,null,null,null,null,null,null,0,0,null,0,0,0,0,0,0,null,1,0,0,1,0,0,0,0,0,1,0,0,0,0,0,0,0,0,1,0,0,0,0,0,0,0,0,0,0,0,0,0,0]
[1682,"DogsNature GmbH","Y",null,null,null,null,null,null,null,null,null,null,null,null,null,null,null,null,null,1,null,null,null,null,null,null,1]
[3105,"Dogswell ","Y",null,null,null,null,null,null,null,0,0,null,0,0,0,0,0,0,1,1,0,0,0,0,1,0,1,0,0,0,0,0,0,0,0,0,0,0,0,0,0,0,0,0,0,0,0,0,0,0,0,0]
[3852,"Dome Companies (The)","Y",null,null,null,null,null,null,null,0,0,null,0,0,0,0,0,1,1,1,0,0,0,0,0,0,0,0,0,0,0,0,0,0,0,0,0,0,0,0,0,0,1,0,0,0,0,0,0,0,0,0]
[4388,"Dongguan Henshine Sport Products Co.","Y",null,null,null,null,1,null,null,null,null,null,null,null,null,null,null,1,null,1,null,null,1]
[555,"Dosha Dog ","Y",null,null,1,null,null,null,null,null,null,null,1,null,null,null,null,null,1,1,null,null,1]
[4472,"Douglas Petfood","Y",null,null,null,null,1,null,null,null,null,null,null,null,null,null,null,null,null,1,null,null,null,null,null,null,1,null,null,null,null,null,null,null,null,null,null,null,null,null,null,null,null,null,null,0,0,0,0,0,0,0]
[4248,"Dr. Rose's Remedies ","Y",null,1,null,null,null,null,null,0,0,null,null,0,0,0,null,1,1,1,0,0,0,0,0,0,0,0,0,0,0,0,0,0,0,0,0,0,0,0,0,0,1,1,0,1,0,0,0,0,0,0]
[4950,"DT Brands ","Y",null,null,null,null,null,null,1,null,null,null,1]
[3647,"Dublin Dog Co. ","Y",null,null,null,null,null,null,null,0,0,null,1,0,0,0,0,0,0,1,0,0,1,1,0,1,0,0,1,0,0,0,0,0,1,0,0,0,0,0,0,0,0,0,0,0,0,0,0,0,0,0]
[3552,"DuckyWorld Products Inc.","Y",null,null,null,null,null,null,null,0,0,null,0,0,0,0,0,0,1,0,0,0,0,0,0,0,1,0,1,0,1,0,0,0,0,0,0,0,0,0,0,0,0,0,0,0,0,0,0,0,0,0]
[1001,"E & S Imports, Inc.","Y",null,null,null,null,null,null,null,0,0,0,1,0,0,1,1,1,1,1,0,0,0,0,0,0,0,0,0,0,0,0,0,0,0,0,0,0,0,0,0,0,0,0,0]
[4189,"Earth Animal","Y",null,1,null,null,null,null,null,null,null,null,null,null,null,null,null,null,null,1,null,null,null,null,null,null,1,null,null,null,null,null,null,null,null,null,null,null,null,null,null,null,1,1,null,0,1,0,0,0,0,0]
[951,"Earth Friendly by Loyal Friend","Y",null,null,null,null,null,null,null,0,0,0,0,0,0,0,null,null,1,1,0,0,0,0,0,0,0,0,0,0,0,0,0,0,0,0,0,0,0,0,0,0,0,0,0,0,0,0,0,1,0,0]
[3910,"Earth Friendly Products","Y",null,1,null,null,null,null,null,null,null,null,null,null,null,null,1,1,1,1,null,null,null,null,null,null,null,null,null,null,null,null,null,null,null,null,null,null,null,null,null,null,null,null,null,null,1]
[3950,"Earth Rated ","Y",null,1,null,null,null,null,null,0,0,null,0,0,0,0,0,0,0,1,0,0,0,0,0,0,0,0,0,0,0,0,0,0,0,0,0,0,0,0,0,0,0,0,0,0,0,0,0,1,0,0]
[3934,"Earthbath /Sheapet","Y",null,1,null,null,null,null,null,0,0,null,0,0,0,0,0,0,1,1,0,0,0,0,0,0,0,0,0,0,0,0,0,0,0,0,0,0,0,0,0,0,0,0,0,1,0,1,0,0,0,0]
[2343,"Earthborn Holistic Pet food","Y",null,null,null,null,null,null,null,0,0,0,0,0,0,1,0,0,1,1,0,0,0,0,1,0,1,0,0,0,0,0,0,0,0,0,0,0,0,0,0,0,0,0,0]
[585,"EasyTurf","Y",null,null,null,null,null,null,null,0,0,null,0,0,0,0,0,0,0,1,0,0,0,0,0,0,0,0,0,0,0,0,0,0,0,0,0,0,0,0,0,0,0,0,0,0,0,0,0,1,0,0]
[4278,"Eco Paper Products Mfg Sdn Bhd","Y",null,null,null,null,1,null,null,null,null,null,null,null,null,null,1,null,1,null,null,null,null,null,null,null,null,null,null,null,null,null,null,null,null,null,null,null,null,1,1,null,null,null,null,0,0,0,0,0,0,0]
[3556,"E-Collar Technologies","Y",null,null,null,null,null,null,null,0,0,null,0,0,0,0,0,1,0,1,0,0,1,0,0,0,0,0,0,0,0,0,0,1,0,0,0,0,0,0,0,0,null,0,0,0,0,0,0,0,1,0]
[4148,"EcoSMART Technologies, Inc.","Y",null,1,null,null,null,null,null,0,0,0,0,0,0,0,0,0,0,1,0,0,0,0,0,0,0,0,0,0,0,0,0,0,0,0,0,0,0,0,0,0,0,1,0]
[1757,"EcoSystem Aquarium","Y",null,null,null,1,null,null,null,null,null,null,null,1]
[1121,"EHEIM North America ","Y",null,null,null,null,null,null,null,0,0,null,0,1,0,0,0,0,0,0,0,0,0,0,0,0,0,0,0,0,0,0,0,0,0,0,0,0,0,0,0,0,0,0,0,0,0,0,0,0,0,0]
[4876,"Elegant Home Fashions, LLC","Y",null,null,null,null,null,null,1,null,null,null,null,null,null,null,null,null,null,1,null,null,null,null,null,1,null,null,null,null,null,null,null,null,1,1,1,null,null,null,null,null,null,null,null,0,0,0,0,0,0,0]
[1747,"Elive LLC ","Y",null,null,null,1,null,null,null,0,0,null,0,1,0,0,0,0,0,0,0,0,0,0,0,0,0,0,0,0,0,0,0,0,0,0,0,0,0,0,0,0,0,0,0,0,0,0,0,0,0,0]
[705,"Elmo's Closet ","Y",null,null,null,null,null,null,null,0,0,null,0,0,0,0,0,0,1,1,0,0,1,0,0,0,0,0,0,0,0,0,0,0,0,0,0,0,0,0,0,0,0,0,0,0,0,0,0,0,0,0]
[4234,"Emerald Pet Products ","Y",null,1,null,null,null,null,null,0,0,null,0,0,0,0,0,0,1,1,0,0,0,0,0,0,1,0,0,0,0,0,0,0,0,0,0,0,0,0,0,0,0,0,0,0,0,0,0,0,0,0]
[3680,"Enchanted Home Pet","Y",null,null,null,null,null,null,null,0,0,0,0,0,0,0,0,0,0,1,0,0,0,0,0,1,0,0,0,0,0,0,1,0,1,0,0,0,0,0,0,0,0,0,0]
[3187,"Endless Possibilities Inc. ","Y",null,null,null,null,null,null,null,0,0,null,0,0,0,0,0,0,1,0,0,0,0,0,0,0,0,0,1,0,0,0,0,0,0,0,0,0,0,0,0,0,0,0,0,0,0,0,0,0,0,0]
[4649,"EQyss Pet Grooming Products, Inc.","Y",null,null,null,null,null,null,1,null,null,null,null,null,null,null,null,null,1,1,null,null,null,null,null,null,null,null,null,null,null,null,null,null,null,null,null,null,null,null,null,null,1,null,null,1,0,0,0,0,0,0]
[1235,"Eshopps, Inc.","Y",null,null,null,1,null,null,null,0,0,0,0,1,0,0,0,0,0,1,0,0,0,0,0,0,0,0,1,0,0,0,0,0,0,0,0,0,0,0,0,0,0,0,0]
[2651,"Espree Animal Products","Y",null,null,null,null,null,null,null,0,0,null,0,0,0,0,0,1,1,1,0,0,0,0,0,0,0,0,0,0,0,0,0,0,0,0,0,0,0,0,0,0,0,1,0,1,0,0,0,0,0,0]
[4256,"ESSIAC for Pets/ TRU-PINE for Pets","Y",null,1,null,null,null,null,null,null,null,null,null,null,null,null,null,null,1,1,null,null,null,null,null,null,null,null,null,null,null,null,null,null,null,null,null,null,null,null,null,null,1,null,null,0,0,0,0,0,0,0]
[2335,"Ethical Products","Y",null,null,null,null,null,null,null,0,0,null,0,1,0,1,1,0,1,1,0,1,1,0,0,1,1,1,1,0,1,1,0,1,0,0,1,1,0,0,1,0,0,0,0,0,0,0,0,1,0,0]
[923,"European Home Design ","Y",null,null,null,null,null,null,null,0,0,null,0,0,0,0,1,0,1,1,0,1,1,0,0,0,0,0,1,0,0,1,0,0,1,0,1,1,1,0,0,0,0,0,null,0,0,0,1,1,0,0]
[1809,"Europet Bernina Germany","Y",null,null,null,null,null,null,null,0,0,0,0,1,0,0,1,0,1,1,0,1,0,0,0,1,0,0,0,0,0,1,1,0,1,0,1,0,0,0,1,0,0,0,0]
[4259,"Evanger's Dog & Cat Food Co. ","Y",null,1,null,null,null,null,null,0,0,null,0,0,0,0,0,0,1,1,0,0,0,0,1,0,1,0,0,0,0,0,0,0,0,0,0,0,0,0,0,0,0,0,0,0,0,0,0,0,0,0]
[4750,"Evans Collars","Y",null,null,null,null,null,null,1,null,null,null,null,null,null,null,null,null,null,1,null,null,1,null,null,null,null,null,null,null,null,null,null,null,null,null,null,null,null,null,null,null,null,null,null,0,0,0,0,0,0,0]
[452,"EVCO DBA Creative Home ","Y",null,null,1,null,null,null,null,null,null,null,null,null,null,null,null,null,1,1,null,null,null,null,null,1]
[4158,"Exclusively Pet, Inc.","Y",null,1,null,null,null,null,null,0,0,0,0,0,0,0,0,0,0,1,0,0,0,0,0,0,1,0,0,0,0,0,0,0,0,0,0,0,0,0,0,0,0,0,0]
[4875,"Eyenimal, Inc.","Y",null,null,null,null,null,null,1,null,null,null,null,null,null,null,null,null,1,1,null,null,1,null,null,1,null,null,null,null,null,null,null,1,null,null,null,null,null,null,null,null,null,null,null,null,null,null,null,null,1,1]
[807,"EzyDog ","Y",null,null,null,null,null,null,null,0,0,null,0,0,0,0,0,0,0,1,0,1,1,0,0,1,0,0,1,0,0,0,0,0,0,0,0,1,0,0,0,0,0,0,0,0,0,0,0,0,0,0]
[1601,"F.M. Brown's ","Y",null,null,null,null,null,null,null,0,0,null,0,0,1,1,1,1,0,0,0,0,0,0,0,0,0,0,0,0,0,0,0,0,0,0,0,0,0,0,0,0,0,0,0,0,0,0,0,0,0,0]
[727,"Fab Dog Inc. ","Y",null,null,null,null,null,null,null,0,0,null,0,0,0,0,0,0,1,1,0,1,1,0,0,1,0,0,1,0,0,0,0,0,null,0,0,0,0,0,0,0,0,0,0,1,0,0,0,0,0,0]
[517,"Fabuleash ","Y",null,null,1,null,null,null,null,0,0,null,0,0,0,0,0,0,0,1,0,1,1,0,0,null,0,0,0,0,0,0,0,0,0,0,1,0,0,0,0,0,0,0,0,0,0,0,0,0,0,0]
[4789,"Fanpet USA LLC","Y",null,null,null,null,null,null,1,null,null,null,null,null,null,null,null,null,null,1,null,null,1,null,null,null,null,null,null,null,null,null,null,null,null,null,null,null,null,null,null,null,null,null,null,0,0,0,0,0,0,0]
[2487,"Farm Innovators, Inc.","Y",null,null,null,null,null,null,null,0,0,0,0,1,0,1,1,1,0,1,0,0,0,0,0,1,0,0,0,0,0,0,0,0,1,0,0,0,0,0,0,0,0,0,0]
[4585,"Fast'n'Furriest","Y",null,null,null,null,null,null,1,null,null,null,null,null,null,null,null,null,null,1,null,null,null,null,null,null,null,null,null,null,null,null,null,null,null,null,null,null,null,null,null,null,null,null,1,0,0,0,0,0,0,0]
[1277,"FelliPet","Y",null,null,null,null,null,null,null,0,0,0,0,0,0,0,0,0,0,1,0,0,0,0,0,1,0,0,0,0,0,0,0,0,0,0,0,0,0,0,0,0,0,0,0]
[1253,"Fengxin Zhongle Aquarium Co., Ltd.","Y",null,null,null,1,null,null,null,null,null,null,null,1]
[3653,"Fetch Pet Products LLC","Y",null,null,null,null,null,null,null,null,null,null,null,null,null,null,null,null,null,1,null,null,null,null,null,null,null,null,1]
[2253,"Fetch...For Pets! ","Y",null,null,null,null,null,null,null,0,0,null,0,1,null,0,null,0,1,1,0,1,null,0,0,0,1,0,1,0,0,0,0,0,null,0,0,0,0,0,0,1,0,0,0,1,1,0,null,null,0,0]
[4755,"Fetching Expressions MBS Communicat.","Y",null,null,null,null,null,null,1,null,null,null,1]
[3188,"Fibercore","Y",null,null,null,null,null,null,null,0,0,null,0,0,0,1,1,0,null,null,0,null,null,null,null,null,null,null,null,null,null,null,null,null,null,null,null,null,null,null,null,null,null,0,0,0,0,0,0,0,0,0]
[3859,"Fido Inc.","Y",null,null,null,null,null,null,null,0,0,null,0,0,0,0,0,0,1,1,0,0,0,0,0,0,1,0,1,0,0,0,0,0,0,0,0,0,0,0,0,0,0,0,0,0,0,0,0,0,0,0]
[573,"Fido Pet Products","Y",null,null,null,null,null,null,null,null,null,null,null,null,null,null,null,null,null,1,null,null,1,null,null,null,null,null,1,null,null,null,null,null,null,null,1,1,null,null,null,null,null,null,null,0,0,0,0,0,0,0]
[4356,"Fidobiotics ","Y",null,1,null,null,null,null,null,0,0,null,0,0,0,0,0,0,0,1,0,0,0,0,0,0,0,0,0,0,0,0,0,0,0,0,0,0,0,0,0,0,1,0,0,0,0,0,0,0,0,0]
[1558,"Finnex","Y",null,null,null,1,null,null,null,0,0,0,0,1,0,0,0,0,0,0,0,0,0,0,0,0,0,0,0,0,0,0,0,0,0,0,0,0,0,0,0,0,0,0,0]
[3804,"Fixed Assets Holdings","Y",null,null,null,null,null,null,null,null,null,null,null,null,null,null,null,null,null,1,null,null,null,null,1,null,null,null,null,null,null,null,null,null,null,null,null,null,null,null,null,null,null,null,null,0,0,0,0,0,0,0]
[835,"flexi North America LLC","Y",null,null,null,null,null,null,null,0,0,null,0,0,0,0,0,0,0,1,0,0,1,0,0,0,0,0,0,0,0,0,0,0,0,0,0,0,0,0,0,0,0,0,0,0,0,0,0,0,0,0]
[2616,"Flexrake Corp. ","Y",null,null,null,null,null,null,null,0,0,null,0,0,0,0,0,1,1,1,0,0,0,0,0,0,1,0,1,0,null,null,0,0,0,0,0,0,1,0,0,0,0,0,0,0,0,0,0,1,0,0]
[1135,"Florida Marine Research","Y",null,null,null,null,null,null,null,null,null,null,null,1]
[2579,"Fluff & Tuff","Y",null,null,null,null,null,null,null,0,0,null,0,0,0,0,0,0,0,1,0,0,0,0,0,0,0,0,1,0,0,0,0,0,0,0,0,0,0,0,0,0,0,0,0,0,0,0,0,0,0,0]
[3021,"Fluker's","Y",null,null,null,null,null,null,null,0,0,0,0,0,1,1,1,0,0,0,0,0,0,0,0,0,0,0,0,0,0,0,0,0,0,0,0,0,0,0,0,0,0,0,0]
[3445,"Flush Puppies & Clean Paws","Y",null,null,null,null,null,null,null,0,0,null,0,0,0,0,0,0,0,1,0,0,0,0,0,0,0,0,0,0,0,0,0,0,0,0,0,0,0,0,0,0,0,0,0,0,0,0,0,1,0,0]
[581,"Forever Stainless Steel ","Y",null,null,null,null,null,null,null,0,0,null,0,0,0,0,0,0,0,1,0,0,0,0,0,null,0,0,0,0,0,0,0,0,0,0,0,0,0,0,0,0,0,0,1,0,0,0,0,0,0,0]
[4951,"Forever Yours, Inc.","Y",null,null,null,null,null,null,1,null,null,null,null,null,null,null,null,null,null,1,null,null,null,1,null,null,null,null,null,null,null,null,null,null,null,null,null,null,null,null,null,null,null,null,null,0,0,0,0,0,1,1]
[2772,"Forzal0 USA","Y",null,null,null,null,null,null,null,0,0,0,0,0,0,0,0,0,0,1,0,0,0,0,1,0,0,0,0,0,0,0,0,0,0,0,0,0,0,0,0,0,0,0,0]
[3108,"FouFou Brands","Y",null,null,null,null,null,null,null,0,0,null,1,0,0,0,0,0,1,1,0,1,1,0,1,1,0,0,0,0,1,0,0,0,null,0,1,0,0,0,0,0,0,0,0,1,0,1,0,0,0,0]
[3858,"Free Raised Pet Products Inc.","Y",null,null,null,null,null,null,null,null,null,null,null,null,null,null,null,null,null,1,null,null,null,null,null,null,1]
[4747,"Freedom Pets","Y",null,null,null,null,null,null,1,null,null,null,null,null,null,null,null,null,null,1,null,null,null,null,null,null,null,null,null,null,null,null,null,null,null,null,null,null,null,null,null,null,null,null,null,null,null,null,null,1]
[4116,"Frenchie's Kitchen LLC ","Y",null,1,null,null,null,null,null,0,0,null,0,0,0,0,0,0,0,1,0,0,0,0,1,0,0,0,0,0,0,0,0,0,0,0,0,0,0,0,0,0,0,0,0,0,0,0,0,0,0,0]
[4676,"Fresh Patch","Y",null,null,null,null,null,null,1,null,null,null,null,null,null,null,null,null,null,1,null,null,null,null,null,null,null,null,null,null,null,null,null,null,null,null,null,null,null,null,null,null,null,null,null,null,null,null,null,1]
[4791,"Fresh U.S.","Y",null,null,null,null,null,null,1,null,null,null,null,null,null,null,null,null,null,1,null,null,1]
[4958,"Freshenz","Y",null,null,null,null,null,null,1,null,null,null,null,null,null,null,null,null,1,null,null,null,null,null,null,null,null,null,null,null,null,null,null,null,null,null,null,null,null,1,1,null,null,null,null,null,1]
[1305,"Fritz Industries, Inc.","Y",null,null,null,null,null,null,null,null,null,null,null,1]
[801,"Fromm Family Foods","Y",null,null,null,null,null,null,null,0,0,null,0,0,0,0,0,0,1,1,0,0,0,0,1,0,1,0,0,0,0,0,0,0,0,0,0,0,0,0,0,0,0,0,0,0,0,0,0,0,0,0]
[4219,"Fruitables Pet Food (Vetscience) ","Y",null,1,null,null,null,null,null,0,0,null,0,0,0,0,0,0,1,1,0,0,0,0,null,0,1,0,0,0,0,0,0,0,0,0,0,0,0,0,0,0,1,0,0,0,0,0,0,0,0,0]
[4200,"Functional Nutriments","Y",null,1,null,null,null,null,null,0,0,null,0,0,0,0,0,0,0,1,0,0,0,0,0,0,0,0,0,0,0,0,0,0,0,0,0,0,0,0,0,0,1,0,0,0,0,0,0,0,0,0]
[4378,"Furacao Pet Ind. Ltda","Y",null,null,null,null,1,null,null,null,null,null,null,null,null,null,null,null,null,1,null,null,1,null,null,1,null,null,1,null,null,null,null,null,1]
[3671,"FurHaven Pet Products ","Y",null,null,null,null,null,null,null,0,0,null,0,0,0,0,0,0,1,1,0,0,0,0,0,0,0,0,0,0,0,0,0,0,1,0,1,0,0,0,0,0,0,0,0,0,0,0,0,0,0,0]
[4976,"FWUSOW Industry Co., Ltd.","Y",null,null,null,null,null,null,1,null,null,null,null,null,null,null,null,null,1,1,null,null,null,null,1,null,null,null,null,null,null,null,null,null,null,null,null,null,null,null,null,null,null,null,null,0,0,0,0,0]
[845,"G Mason Group ","Y",null,null,null,null,null,null,null,0,0,null,0,0,0,0,0,0,1,1,0,0,1,0,0,1,0,0,1,0,0,0,0,0,1,0,1,1,0,0,0,0,0,0,1,0,0,0,0,0,0,0]
[4591,"Galapagos","Y",null,null,null,null,null,null,1,null,null,null,null,null,1,1]
[476,"GameWear (DLR)","Y",null,null,null,null,null,null,null,0,0,null,0,0,0,0,0,0,0,1,0,0,1,0,0,1,0,0,0,0,0,0,0,0,0,0,0,0,0,0,0,0,0,0,0,0,0,0,0,0,0,0]
[2471,"Gamma2","Y",null,null,null,null,null,null,null,0,0,null,0,0,1,1,0,0,1,1,0,0,0,0,0,1,0,0,0,0,0,0,0,0,0,0,0,0,0,0,0,0,0,0,0,0,0,0,0,0,0,0]
[3475,"Garmin USA","Y",null,null,null,null,null,null,null,0,0,0,0,0,0,0,0,0,0,1,0,0,1,0,0,0,0,0,0,0,0,0,0,0,0,0,0,0,0,0,0,0,0,0,0,0,0,0,0,0,1,1]
[590,"GEIB Handmade Shears ","Y",null,null,null,null,null,null,null,0,0,null,0,0,0,0,0,0,0,1,0,0,0,0,0,0,0,0,0,0,0,0,0,0,0,0,0,0,0,0,0,0,0,0,1,0,0,0,0,0,0,0]
[643,"Gen7Pets ","Y",null,null,null,null,null,null,null,0,0,null,0,0,0,0,0,0,1,1,0,0,0,0,0,0,0,0,0,0,0,0,0,0,1,0,1,1,0,0,0,0,0,0,0,0,0,0,0,0,0,0]
[571,"Giftworks Plus ","Y",null,null,null,null,null,null,null,0,0,null,1,0,0,null,null,null,null,null,0,0,0,0,0,0,0,0,0,0,0,0,0,0,0,0,0,0,0,0,0,0,0,0,0,0,0,0,0,0,0,0]
[4957,"GingerLead ","Y",null,null,null,null,null,null,1,null,null,null,null,null,null,null,null,null,null,1,null,null,1]
[2679,"Ginsey Home Solutions","Y",null,null,null,null,null,null,null,0,0,0,0,0,0,0,0,0,0,1,0,0,0,0,0,0,0,0,0,0,0,0,0,0,1,0,0,0,0,0,0,0,0,0,1]
[472,"Global Pet Supply, LLC","Y",null,null,null,null,null,null,null,null,null,null,null,null,null,null,null,null,null,1,null,null,null,null,null,null,1,null,1,null,null,null,null,null,null,null,null,null,null,null,null,null,null,null,null,0,0,0,0,0,0,0]
[541,"Glo-Marr Products","Y",null,null,1,null,null,null,null,0,0,null,0,0,0,0,1,0,1,1,0,0,0,0,0,0,0,0,0,0,0,0,0,0,0,0,0,0,0,0,0,0,1,1,0,1,0,0,0,0,0,0]
[2091,"GMI","Y",null,null,null,null,null,null,null,0,0,0,0,0,0,0,0,0,0,1,0,0,0,0,0,0,0,0,0,0,0,0,0,0,0,1,0,0,0,0,0,0,0,0,0]
[1491,"GMP USA International","Y",null,null,null,null,null,null,null,null,null,null,null,null,null,null,null,null,null,1,null,null,null,null,null,null,null,null,null,null,null,null,null,null,null,null,1]
[4670,"GoDogGo, Inc.","Y",null,null,null,null,null,null,1,null,null,null,null,null,null,null,null,null,null,1,null,null,null,null,null,null,null,null,1]
[2580,"GoGo Stik","Y",null,null,null,null,null,null,null,null,null,null,null,null,null,null,null,null,null,1,null,null,null,null,null,null,null,null,null,null,null,null,null,null,null,null,null,null,null,null,null,null,null,null,null,null,null,null,null,1]
[3816,"Gold Paw Series ","Y",null,null,null,null,null,null,null,0,0,null,0,0,0,0,0,0,0,1,0,1,1,0,0,0,0,0,0,0,0,0,0,0,0,0,0,0,0,0,0,0,0,0,0,0,0,0,0,0,0,0]
[4870,"Golden Mile Home Products Co.","Y",null,null,null,null,null,null,1,null,null,null,null,null,null,null,null,null,1,1,null,null,null,null,null,1,null,null,null,null,null,null,1,null,1]
[4859,"Goldenfeast Incorporated","Y",null,null,null,null,null,null,1,null,null,null,null,null,null,1]
[544,"Gooby Pet (Inafiction USA)","Y",null,null,1,null,null,null,null,0,0,null,0,0,0,0,0,0,0,1,0,1,1,0,0,0,0,0,0,0,0,0,0,0,1,0,0,0,0,0,0,0,0,0,0,0,0,0,0,0,0,0]
[3551,"Good L Corp ","Y",null,null,null,null,null,null,null,0,0,1,0,0,0,0,0,0,0,null,0,0,0,0,0,0,0,0,0,0,0,0,0,0,0,0,null,0,0,0,0,0,0,0,0,0,0,0,0,0,0,0]
[4574,"Goshine Products Co., Ltd.","Y",null,null,null,null,null,null,1,null,null,null,null,null,null,null,null,null,1,1,null,null,1,null,null,1,null,null,1,null,null,1,null,null,1,null,1,1,1,null,null,null,null,null,1]
[4473,"G-Paws Ltd.","Y",null,null,null,null,1,null,null,null,null,null,null,null,null,null,null,null,1,1,null,null,null,null,null,null,null,null,null,null,null,null,null,null,null,null,null,null,null,null,null,null,null,null,null,1,0,0,0,0,1,1]
[1980,"Gralen Company (The)","Y",null,null,null,null,null,null,null,null,1,null,null,null,null,null,null,null,1,1,null,null,null,null,null,null,1,null,1,null,null,1,1,null,1,null,1,null,null,null,null,null,1,null,1,null,1,null,1,1]
[4351,"Grandma Lucy's ","Y",null,1,null,null,null,null,null,0,0,null,0,0,0,0,0,0,1,1,0,0,0,0,1,0,1,0,0,0,0,0,0,0,0,0,0,0,0,0,0,0,0,0,0,0,0,0,0,0,0,0]
[2683,"Grandma Mae's Country Naturals/NEXPET","Y",null,null,null,null,null,null,null,0,0,null,0,0,0,0,0,0,1,1,0,0,0,0,1,0,0,0,0,0,0,0,0,0,0,0,0,0,0,0,0,0,0,0,0,0,0,0,0,0,0,0]
[2517,"Grannick's Bitter Apple Co.","Y",null,null,null,null,null,null,null,0,0,0,0,0,0,1,1,1,1,1,0,0,0,0,0,0,0,0,0,0,0,0,0,0,0,0,0,0,0,0,0,0,0,0,0,1,0,0,0,0,0,0]
[4205,"Green Bark Gummies, Inc.","Y",null,1,null,null,null,null,null,0,0,0,0,0,0,0,0,0,0,1,0,0,0,0,0,0,1,0,0,0,0,0,0,0,0,0,0,0,0,0,0,0,0,0,0]
[4684,"Green Energy Technology Co., Ltd.","Y",null,null,null,null,null,null,1,null,null,null,null,null,null,null,null,null,null,1,null,null,1,null,null,1,null,null,null,null,null,null,null,null,1,null,1,null,null,null,null,null,null,null,null,0,0,0,0,1,0,0]
[3938,"Green Pet Shop (The)","Y",null,1,null,null,null,null,null,0,0,null,0,0,0,0,0,0,1,1,0,0,0,0,0,1,0,0,0,0,0,0,0,0,1,0,0,0,0,0,1,0,1,0,1,0,1,1,0,1,0,0]
[1406,"Greenberry Eco Industries, LLC","Y",null,null,null,null,null,null,null,0,0,0,0,0,0,0,0,0,1,1,0,1,1,1,0,1,0,0,1,0,0,1,0,0,1,0,1,0,0,1,1,0,1,0,1,0,1,1,0,1,0,0]
[2019,"Grizzly Pet Products ","Y",null,null,null,null,null,null,null,0,0,null,0,0,0,0,0,1,1,1,0,0,0,0,0,0,1,0,0,0,0,0,0,0,0,0,0,0,0,0,0,0,1,0,0,0,0,0,0,0,0,0]
[3707,"Groomers Goop ","Y",null,null,null,null,null,null,null,0,0,null,0,0,0,0,0,0,1,1,0,0,0,0,0,0,0,0,0,0,0,0,0,0,0,0,0,0,0,0,0,0,0,0,1,1,0,0,0,0,0,0]
[3518,"Groomy-USA, Inc.","Y",null,null,null,null,null,null,null,0,0,0,0,0,0,0,0,0,1,1,0,0,0,0,0,0,0,0,0,0,0,0,0,0,0,0,0,0,0,0,0,0,0,0,1]
[4978,"Guangzhou DogLemi Pet Products Co.","Y",null,null,null,null,null,null,1,null,null,null,null,null,null,null,null,null,null,1,null,1,1,null,null,null,null,null,null,null,null,null,null,null,1,null,1,1]
[4488,"Guangzhou Qian Hu","Y",null,null,null,null,1,null,null,null,null,null,null,1]
[574,"Guardian Pet Light","Y",null,null,null,null,null,null,null,null,null,null,null,null,null,null,null,null,1,1,null,null,1,null,null,null,null,null,null,null,null,null,null,null,null,null,null,null,null,null,null,null,null,null,null,null,null,null,null,null,1,1]
[1353,"Gulfstream Tropical Aquarium ","Y",null,null,null,1,null,null,null,0,0,null,0,1,0,0,0,0,0,0,0,0,0,0,0,0,0,0,0,0,0,0,0,0,0,0,0,0,0,0,0,0,0,0,0,0,0,0,0,0,0,0]
[3270,"H204K9, Inc.","Y",null,null,null,null,null,null,null,null,null,null,null,null,null,null,null,null,null,1,null,null,null,null,null,1]
[1759,"H2O-Pure for freshwater aquaria","Y",null,null,null,1,null,null,null,null,null,null,null,1,null,null,null,null,null,null,null,null,null,null,null,null,null,null,null,null,null,null,null,null,null,null,null,null,null,null,null,null,null,null,null,0,0,0,0,0,0,0]
[2408,"HABRI","Y",null,null,null,null,null,null,null,1,0,0,0,0,0,0,0,0,0,0,0,0,0,0,0,0,0,0,0,0,0,0,0,0,0,0,0,0,0,0,0,0,0,0,0]
[4588,"Haian Fufa Leisure Products","Y",null,null,null,null,null,null,1,null,null,null,null,null,null,null,null,null,null,1,null,null,null,null,null,null,null,null,null,null,null,null,null,null,null,null,null,null,1]
[1159,"Hair Doc Company / Bass Brushes","Y",null,null,null,null,null,null,null,null,null,null,null,null,null,null,null,null,1,1,null,null,null,null,null,null,null,null,null,null,null,null,null,null,null,null,null,null,null,null,null,null,null,null,1]
[2747,"Halo Purely For Pets","Y",null,null,null,null,null,null,null,0,0,null,null,0,1,1,1,0,1,1,1,0,0,0,1,0,1,0,1,0,1,0,0,0,0,0,0,0,0,0,0,0,1,1,0,1,0,0,0,0,0,0]
[3290,"Hangzhou Boya Home Decor Co., Ltd.","Y",null,null,null,null,null,null,null,null,null,null,null,null,null,null,null,null,1,1,null,null,null,null,null,null,null,null,null,null,null,null,null,null,1]
[3087,"Hangzhou Brilliant Sanitary Products Co.","Y",null,null,null,null,null,null,null,null,null,null,null,null,null,null,null,null,null,1,null,null,null,null,null,null,null,null,null,null,null,null,null,null,null,null,null,null,null,null,null,null,null,null,null,null,null,1,1]
[3651,"Hangzhou Jie Feng Leisure Products Co.","Y",null,null,null,null,null,null,null,null,null,null,null,null,null,null,null,null,1,null,null,null,null,null,null,null,null,null,null,null,null,1,1]
[478,"Hangzhou Leibo Industrial Co., Ltd.","Y",null,null,null,null,null,null,null,null,null,null,null,null,null,null,null,null,null,1,null,null,null,null,null,null,null,null,null,null,null,null,null,null,null,null,1,null,null,null,null,null,null,null,null,0,0,0,0,0,0,0]
[767,"HangZhou TianYuan Pet Products Co.","Y",null,null,null,null,null,null,null,0,0,0,0,1,0,1,1,0,1,1,0,1,1,1,0,1,0,0,1,0,0,0,1,0,1,0,1,1,1,0,0,0,0,0,1,0,1,0,0,0,0,0]
[806,"Hangzhou Tunnel Homeware Co., Ltd.","Y",null,null,null,null,null,null,null,0,0,0,0,0,0,0,0,0,0,1,0,0,0,0,0,0,0,0,0,0,0,0,1,0,1,0,0,0,0,0,0,0,0,0,0,0,0,null,null,0,0,0]
[804,"Hangzhou Vet & Pet Supplies Co., Ltd.","Y",null,null,null,null,null,null,null,0,0,0,0,0,0,0,0,0,1,1,0,0,1,0,0,1,0,0,0,0,0,0,0,0,1,0,0,1,0,0,1,1,1,0,0,null,null,1,1]
[3115,"Happy Tails ","Y",null,null,null,null,null,null,null,0,0,null,0,0,0,0,0,0,1,1,0,0,0,0,0,0,1,1,1,0,0,0,0,0,1,0,0,0,0,0,0,1,0,0,0,0,0,0,0,0,0,0]
[3514,"Harness Lead LLC ","Y",null,null,null,null,null,null,null,0,0,null,0,0,0,0,0,0,0,1,0,0,1,0,0,0,0,0,0,0,0,0,0,0,0,0,0,0,0,0,0,0,0,0,0,0,0,0,0,0,0,0]
[2535,"Hartz Mountain Corporation (The)","Y",null,null,null,null,null,null,null,0,0,0,0,1,0,1,1,0,1,1,0,1,1,1,0,1,1,1,1,0,0,1,0,1,0,0,1,0,0,1,0,0,1,1,1,null,1]
[4759,"Healthy Dogma ","Y",null,null,null,null,null,null,1,null,null,null,null,null,null,null,null,null,1,1,null,null,null,null,1,null,1,null,null,null,null,null,null,null,null,null,null,null,null,null,null,null,1]
[4204,"Healthy Essentials LLC","Y",null,1,null,null,null,null,null,0,0,null,0,0,0,0,0,0,0,1,0,0,0,0,0,0,0,0,0,0,0,0,0,0,0,0,0,0,0,0,0,0,1,0,0,0,0,0,0,0,0,0]
[781,"Healthy Partner Pet Snacks","Y",null,null,null,null,null,null,null,0,0,null,0,0,0,0,0,0,0,1,0,0,0,0,0,0,1,0,0,0,0,0,0,0,0,0,0,0,0,0,0,0,0,0,0,0,0,0,0,0,0,0]
[3257,"Healthy Pet ","Y",null,null,null,null,null,null,null,0,0,null,0,0,0,1,1,0,1,null,0,0,0,0,0,0,0,0,0,0,0,0,0,0,0,0,0,0,0,1,1,0,0,0,0,0,0,0,0,0,0,0]
[4877,"HealthyCoat Decker Mfg","Y",null,null,null,null,null,null,1,null,null,null,null,null,null,null,null,1,null,1,null,null,null,null,1,null,null,null,null,null,null,null,null,null,null,null,null,null,null,null,null,null,1]
[3413,"Healthypets, Inc.","Y",null,null,null,null,null,null,null,null,1,null,null,null,null,null,null,null,null,null,null,null,null,null,null,null,null,null,null,null,null,null,null,null,null,null,null,null,null,null,null,null,null,null,null,0,0,0,0,0,0,0]
[3584,"Heartland Premium LLC (Butcher's Block)","Y",null,null,null,null,null,null,null,0,0,null,0,0,0,0,0,0,0,1,0,0,0,0,0,0,1,0,0,0,0,0,0,0,0,0,0,0,0,0,0,0,0,0,0,0,0,0,0,0,0,0]
[883,"HEATH OUTDOOR PRODUCTS","Y",null,null,null,null,null,null,null,0,0,0,0,0,0,1,1,0,0,0,0,0,0,0,0,0,0,0,0,0,0,0,0,0,0,0,0,0,0,0,0,0,0,0,0]
[1115,"Hebei Yihoucheng Commodity Co.","Y",null,null,null,null,null,null,null,null,null,null,null,null,null,null,null,null,null,1,null,null,null,null,null,null,null,null,null,null,null,null,null,null,null,null,null,null,null,null,null,null,null,null,null,null,null,1,1]
[4286,"Henan Dancheng Huanyu Pet Supl. Fact.","Y",null,null,null,null,1,null,null,null,null,null,null,null,null,null,null,null,null,1,null,null,null,null,null,null,null,1]
[4001,"Herbsmith Inc. ","Y",null,1,null,null,null,null,null,0,0,null,0,0,0,0,0,1,1,1,0,0,0,0,0,0,1,0,0,0,0,0,0,0,0,0,0,0,0,0,0,0,1,0,0,0,0,0,0,0,0,0]
[677,"Herd Guard / Body Guard 360","Y",null,null,null,null,null,null,null,null,null,null,null,null,null,null,null,1,null,1,null,null,null,null,null,null,null,null,null,null,null,null,null,null,null,null,null,null,null,null,null,null,1]
[4474,"Heyrex Limited","Y",null,null,null,null,1,null,null,null,null,null,null,null,null,null,null,null,null,1,null,null,null,null,null,1,null,null,null,null,null,null,null,null,null,null,null,null,null,null,null,null,null,null,null,0,0,0,0,0,0,0]
[1073,"Hiatt Manufacturing, Inc / Stokes Select","Y",null,null,null,null,null,null,null,0,0,0,0,0,0,1,0,0,0,0,0,0,0,0,0,0,0,0,0,0,0,0,0,0,0,0,0,0,0,0,0,0,0,0,0,0,0,0,0,0,0,0]
[3301,"Higgins Group Corp. (The) ","Y",null,null,null,null,null,null,null,0,0,null,0,0,0,1,1,0,0,0,0,0,0,0,0,0,0,0,0,0,0,0,0,0,0,0,0,0,0,0,0,0,0,0,0,0,0,0,0,0,0,0]
[3306,"Higgins Group Corp. (The) ","Y",null,null,null,null,null,null,null,0,0,null,0,0,0,1,1,0,0,0,0,0,0,0,0,0,0,0,0,0,0,0,0,0,0,0,0,0,0,0,0,0,0,0,0,0,0,0,0,0,0,0]
[1334,"Hikari Sales U.S.A. Inc. ","Y",null,null,null,1,null,null,null,0,0,null,0,1,1,0,0,0,0,0,0,0,0,0,0,0,0,0,0,0,0,0,0,0,0,0,0,0,0,0,0,0,0,0,0,0,0,0,0,0,0,0]
[2367,"Hill's Pet Nutrition","Y",null,null,null,null,null,null,null,0,0,null,0,0,0,0,0,0,1,1,0,0,0,0,1,0,1,0,0,0,0,0,0,0,0,0,0,0,0,0,0,0,0,0,0,0,0,0,0,0,0,0]
[3251,"Hillside Farms by Globalinx Pet LLC.","Y",null,null,null,null,null,null,null,0,0,null,0,0,0,0,0,0,0,1,0,0,0,0,0,0,1,0,0,0,0,0,0,0,0,0,0,0,0,0,0,0,0,0,0,0,0,0,0,0,0,0]
[3926,"Hilton Herbs, Ltd.","Y",null,1,null,null,null,null,null,0,0,0,0,0,0,1,1,1,0,1,0,0,0,0,0,0,0,0,0,0,0,0,0,0,0,0,0,0,0,0,0,0,1,0,0]
[4073,"Himalayan Dog Chew ","Y",null,1,null,null,null,null,null,0,0,null,0,0,0,0,0,0,0,1,0,0,0,0,0,0,1,0,0,0,0,0,0,0,0,0,0,0,0,0,0,0,0,0,0,0,0,0,0,0,0,0]
[4173,"Himalayan Dog Chew ","Y",null,1,null,null,null,null,null,0,0,null,0,0,0,0,0,0,0,1,0,0,0,0,0,0,1,0,0,0,0,0,0,0,0,0,0,0,0,0,0,0,0,0,0,0,0,0,0,0,0,0]
[425,"Hip Doggie Inc. ","Y",null,null,1,null,null,null,null,null,null,null,null,null,null,null,null,null,1,1,null,1,1,null,null,null,null,null,1,null,null,null,null,null,1,null,null,null,null,null,null,1]
[3591,"Hi-Tek Rations","Y",null,null,null,null,null,null,null,0,0,null,0,0,0,0,0,0,1,1,0,0,0,0,1,0,1,0,0,0,0,0,0,0,0,0,0,0,0,0,0,0,0,0,0,0,0,0,0,0,0,0]
[484,"Holistic Blend","Y",null,null,null,null,null,null,null,null,null,null,null,null,null,null,null,null,null,1,null,null,null,null,null,null,1,null,null,null,null,null,null,null,null,null,null,null,null,null,null,null,1]
[4284,"Holly Group Limited","Y",null,null,null,null,1,null,null,null,null,null,null,1,null,1,null,null,1,1,null,null,1,null,null,null,null,null,null,null,null,null,null,null,null,null,null,null,null,null,null,null,null,1,null,0,0,0,0,0,0,0]
[3485,"HomeoPet LLC ","Y",null,null,null,null,null,null,null,0,0,null,0,0,0,1,null,1,1,1,0,0,0,0,0,0,0,0,0,0,0,0,0,0,0,0,0,0,0,0,0,0,1,0,0,0,0,0,0,0,0,0]
[3845,"Honest Kitchen (The)","Y",null,null,null,null,null,null,null,0,0,null,1,0,0,0,0,0,1,1,0,0,0,0,1,0,1,0,0,0,0,0,0,0,0,0,0,0,0,0,0,0,1,0,0,0,0,0,0,0,0,0]
[770,"Hong Kong Trade Development Council","Y",null,null,null,null,null,null,null,1,0,0,0,0,0,0,0,0,0,0,0,0,0,0,0,0,0,0,0,0,0,0,0,0,0,0,0,0,0,0,0,0,0,0,0,0,0,0,0,0,0,0]
[1912,"Horgan Harness","Y",null,null,null,null,null,null,null,0,0,null,0,0,0,0,0,0,0,1,0,0,1,0,0,0,0,0,0,0,0,0,0,0,0,0,0,0,0,0,0,0,0,0,0,0,0,0,0,0,0,0]
[3120,"Housewares International ","Y",null,null,null,null,null,null,null,null,null,null,null,null,null,null,null,null,1,1,null,null,null,null,null,1]
[3558,"Hueter Toledo","Y",null,null,null,null,null,null,null,0,0,null,1,0,0,0,null,null,1,1,0,0,0,0,0,0,0,0,1,0,0,0,0,0,0,0,0,0,0,0,0,0,0,0,0,0,1,0,0,1,0,0]
[945,"Hugglehounds ","Y",null,null,null,null,null,null,null,0,0,null,0,0,0,0,0,0,0,1,0,0,0,0,0,0,0,0,1,0,0,0,0,0,1,0,1,0,0,0,0,0,0,0,0,0,0,0,0,0,0,0]
[3351,"Hugs Pet Products","Y",null,null,null,null,null,null,null,0,0,null,0,0,0,null,0,0,1,1,0,1,1,0,0,1,null,0,1,0,0,0,0,0,1,0,1,0,null,0,0,0,null,0,0,0,0,0,0,0,0,0]
[709,"HUNTER International GmbH ","Y",null,null,null,null,null,null,null,0,0,null,0,0,0,0,0,1,1,1,0,1,1,1,0,1,1,0,0,0,0,1,0,0,1,0,1,0,0,0,0,0,0,null,1,0,0,0,0,0,0,0]
[666,"Hurtta America Corp.","Y",null,null,null,null,null,null,null,0,0,0,0,0,0,0,0,0,0,1,0,1,1,0,0,0,0,0,0,0,0,0,0,0,0,0,0,0,0,0,0,0,0,0,0]
[1455,"Hydor USA ","Y",null,null,null,1,null,null,null,0,0,null,0,1,0,0,0,0,0,0,0,0,0,0,0,0,0,0,0,0,0,0,0,0,0,0,0,0,0,0,0,0,0,0,0,0,0,0,0,0,0,0]
[2289,"Hyper Pet ","Y",null,null,null,null,null,null,null,0,0,null,0,0,0,0,0,0,1,1,0,0,1,0,0,0,0,0,1,0,0,0,0,0,0,0,0,0,0,0,0,0,0,0,0,0,0,0,0,0,0,0]
[3708,"i4C Innovations Inc ","Y",null,null,null,null,null,null,null,null,null,null,null,null,null,null,null,null,null,1,null,null,1,null,null,null,null,null,null,null,null,null,null,null,null,null,null,null,null,null,null,null,null,null,null,null,null,null,null,null,1,1]
[1045,"I-5 Publishing ","Y",null,null,null,null,null,null,null,1,0,null,1,1,1,1,1,1,1,1,1,0,0,0,0,0,0,0,0,0,0,0,0,0,0,0,0,0,0,0,0,0,0,0,0,0,0,0,0,0,0,0]
[422,"IAL Manufacturing ","Y",null,null,1,null,null,null,null,null,null,null,null,null,null,null,null,null,null,null,null,null,null,null,null,null,null,null,null,null,null,null,null,null,null,null,null,null,null,null,null,null,null,null,null,0,1,0,1,0,0,0]
[3288,"Icelandirect, Inc.","Y",null,null,null,null,null,null,null,null,null,null,null,null,null,null,null,null,1,null,null,null,null,null,null,null,1,null,null,null,null,null,null,null,null,null,null,null,null,null,null,null,1]
[1391,"Iconic Brands","Y",null,null,null,null,null,null,null,null,null,null,null,null,null,null,null,null,null,1,null,null,null,null,null,null,null,null,null,null,null,null,null,null,null,null,null,null,null,null,null,null,1]
[1885,"Ideal Pet Products ","Y",null,null,null,null,null,null,null,0,0,null,0,0,0,1,0,0,1,1,0,0,0,0,0,1,0,0,0,0,0,0,0,0,0,1,0,0,0,0,1,0,0,0,0,0,0,0,0,1,0,0]
[3385,"iFetch ","Y",null,null,null,null,null,null,null,0,0,null,0,0,0,0,0,0,0,1,0,0,0,0,0,0,0,0,1,0,0,0,0,0,0,0,0,0,0,0,0,0,0,0,0,0,0,0,0,0,0,0]
[4480,"Igloo Pets Ltd.","Y",null,null,null,null,1,null,null,null,null,null,null,null,null,null,1,null,1,null,null,null,null,null,null,null,null,null,null,null,null,null,null,null,null,null,1,null,null,1,1]
[3473,"iLeesh Products LLC ","Y",null,null,null,null,null,null,null,0,0,null,1,0,0,0,0,0,0,1,0,0,1,1,0,0,0,0,0,0,0,0,0,0,null,0,0,null,0,0,0,0,0,0,0,0,0,0,0,0,0,0]
[3721,"Ilio Products","Y",null,null,null,null,null,null,null,0,0,null,0,0,0,0,0,0,0,1,0,0,0,0,0,0,1,0,0,0,0,0,0,0,0,0,0,0,0,0,0,1,0,0,0,0,0,0,0,0,0,0]
[681,"Imagilin Technology, LLC","Y",null,null,null,null,null,null,null,null,null,null,null,null,null,1,1,1,1,1,null,null,null,null,null,null,null,null,null,null,null,null,null,null,null,null,null,null,null,null,null,null,1,null,null,0,0,0,0,0,0,0]
[567,"Imagine This Company ","Y",null,null,null,null,null,null,null,0,0,null,1,0,0,0,0,0,1,1,0,0,0,0,0,0,0,0,0,0,0,0,0,0,0,0,0,0,0,0,0,0,0,0,0,1,0,0,0,0,0,0]
[3204,"iMARC Pet Tag Engraving Systems ","Y",null,null,null,null,null,null,null,0,0,null,1,0,0,0,0,1,1,1,0,0,1,1,0,0,0,0,0,0,0,0,0,0,0,0,0,0,0,0,0,0,0,0,0,0,0,0,0,0,0,0]
[3825,"Imperial Cat ","Y",null,null,null,null,null,null,null,0,0,null,1,0,0,0,0,0,1,0,0,0,0,0,null,1,1,0,1,0,1,1,1,0,0,0,0,0,0,0,1,0,0,0,0,0,1,1,0,0,0,0]
[2767,"IMS Pet Industries","Y",null,null,null,null,null,null,null,0,0,null,0,0,0,0,0,0,0,1,0,0,0,0,0,1,1,1,0,0,0,0,0,1,0,0,0,0,0,0,0,0,0,0,0,0,0,0,1,1,0,0]
[3800,"In Clover","Y",null,null,null,null,null,null,null,0,0,null,0,0,0,0,0,0,1,1,0,0,0,0,0,0,0,0,0,0,0,0,0,0,0,0,0,0,0,0,0,0,1,0,0,0,0,0,0,0,0,0]
[591,"Incept GmbH & Co. KG","Y",null,null,null,null,null,null,null,null,null,null,null,null,null,null,null,null,null,1,null,null,1]
[1319,"Incredible Solutions, Inc.","Y",null,null,null,null,null,null,null,0,0,0,0,0,0,0,0,0,1,1,0,0,0,0,0,1,0,0,0,0,0,0,0,0,0,0,0,0,0,0,1,0,0,0,0]
[3573,"Indera Mills Co. ","Y",null,null,null,null,null,null,null,0,0,null,0,0,0,0,0,0,0,1,0,1,0,0,0,0,0,0,0,0,0,0,0,0,0,0,0,0,0,0,0,0,0,0,0,0,0,0,0,0,0,0]
[4185,"Indigenous Pet Products","Y",null,1,null,null,null,null,null,0,0,null,0,0,0,0,0,0,0,1,0,0,0,0,0,0,1,0,0,0,0,0,0,0,0,0,0,0,0,0,0,1,1,0,0,0,0,0,0,0,0,0]
[3774,"Indipets Inc. ","Y",null,null,null,null,null,null,null,0,0,null,0,0,0,1,1,0,1,1,0,1,0,0,0,1,0,0,0,0,0,0,0,0,1,0,0,0,0,0,0,0,0,0,0,0,0,0,0,0,0,0]
[2585,"Innovacyn Inc. ","Y",null,null,null,null,null,null,null,0,0,null,0,0,0,1,1,1,1,1,0,0,0,0,0,0,0,0,0,0,0,0,0,0,0,0,0,0,0,0,0,0,1,0,0,0,0,0,0,0,0,0]
[901,"Innovation Pet","Y",null,null,null,null,null,null,null,0,0,null,0,0,0,0,0,0,1,1,0,0,0,0,0,0,0,0,1,0,0,1,1,0,1,0,0,0,0,0,0,0,0,0,0,0,0,0,0,0,0,0]
[4578,"Innovative Bedding Solutions","Y",null,null,null,null,null,null,1,null,null,null,null,null,null,null,null,null,null,1,null,null,null,null,null,null,null,null,null,null,null,null,null,null,1,null,null,null,null,null,null,null,null,null,null,0,0,0,0,0,0,0]
[1010,"Innovative Design & Sourcing - \"Chomper\"","Y",null,null,null,null,null,null,null,null,null,null,null,null,null,null,null,null,1,1,null,null,null,null,null,null,null,null,1,null,null,1]
[3553,"Intersand Inc.","Y",null,null,null,null,null,null,null,0,0,0,0,0,0,0,0,0,1,0,0,0,0,0,0,0,0,0,0,0,0,0,0,0,0,0,0,0,0,1,0,0,0,0,0]
[3750,"IPG (International Pet Group)","Y",null,null,null,null,null,null,null,null,null,null,null,null,null,null,null,null,null,1,null,null,null,null,null,null,null,null,null,1]
[3411,"iQ Pet By Dogtra ","Y",null,null,null,null,null,null,null,0,0,null,0,0,0,0,0,0,0,1,0,0,1,0,0,0,0,0,0,0,0,0,0,1,0,0,0,0,0,0,0,0,0,0,0,0,0,0,0,0,1,0]
[2055,"IRIS USA","Y",null,null,null,null,null,null,null,0,0,null,0,0,0,0,1,0,1,1,0,0,0,0,0,1,0,0,0,0,0,0,0,0,0,0,1,0,0,0,1,0,0,0,0,0,0,0,1,0,0,0]
[1721,"Isle Of Dogs ","Y",null,null,null,null,null,null,null,0,0,null,0,0,0,0,0,0,0,1,0,0,1,0,0,0,1,0,0,0,0,0,0,0,0,0,0,0,0,0,0,1,1,0,0,1,1,0,0,0,0,0]
[4573,"IZU Korea Co., Ltd.","Y",null,null,null,null,null,null,1,null,null,null,null,null,null,null,null,null,1,1,null,null,null,null,null,null,null,null,null,null,null,null,null,null,null,null,null,null,1,null,null,null,1,null,1,0,1,0,0,0,0,0]
[3513,"Jakks Pets (Div of Jakks Pacific) ","Y",null,null,null,null,null,null,null,0,0,null,0,0,0,0,0,0,1,1,0,0,0,0,0,0,1,0,1,0,0,0,0,0,0,0,0,0,0,0,0,0,0,0,0,0,0,0,0,0,0,0]
[442,"Jax And Bones ","Y",null,null,1,null,null,null,null,0,0,null,0,0,0,0,0,0,1,1,0,0,0,0,0,0,0,0,1,0,0,0,0,0,1,0,0,0,0,0,0,0,0,0,0,0,0,0,0,0,0,0]
[225,"JBS-USA","Y",null,null,null,null,null,null,null,null,null,null,null,null,null,null,null,null,null,1,null,null,null,null,null,null,1]
[408,"JCLA INC ","Y",null,null,1,null,null,null,null,0,0,null,1,0,0,0,0,0,0,1,0,1,1,0,0,1,0,0,1,0,0,0,0,0,1,0,0,0,0,0,0,0,0,0,0,1,0,0,0,0,0,0]
[656,"Jellybean Indoor/Outdoor Rugs","Y",null,null,null,null,null,null,null,null,null,null,null,null,null,null,null,null,1,1,null,null,null,null,null,null,null,null,null,null,null,null,null,null,1]
[1777,"Jewett Cameron Company","Y",null,null,null,null,null,null,null,0,0,0,0,0,0,0,0,0,0,1,0,0,0,0,0,0,0,0,0,0,0,0,1,0,0,0,1,0,1,0,0,0,0,0,0]
[201,"Jiangsu Carepet Pet Products ","Y",null,null,null,null,null,null,null,null,null,null,null,null,null,null,null,null,null,1,null,null,null,null,null,null,null,1]
[4287,"Jiangsu Guotai Interntl Group Guomao ","Y",null,null,null,null,1,null,null,null,null,null,null,null,null,null,null,null,null,1,null,null,null,null,null,null,null,null,1,null,null,null,null,null,null,null,null,null,null,null,null,null,null,null,null,0,0,0,0,0,0,0]
[3181,"Jiangsu Holly Everlasting, Inc.","Y",null,null,null,null,null,null,null,0,0,0,0,0,0,0,0,0,0,1,0,0,0,0,0,0,0,0,1,0,0,0,0,0,0,0,0,0,0,0,0,0,0,0,0]
[4485,"Jiangsu Matchwell Pet Products Supply","Y",null,null,null,null,1,null,null,null,null,null,null,null,null,null,null,null,null,1,null,null,null,null,null,null,1]
[3820,"Jiangsu Yongsheng Pet Products Co.","Y",null,null,null,null,null,null,null,null,null,null,null,null,null,null,null,null,null,1,null,null,null,null,null,null,1,null,null,null,null,null,null,null,null,null,null,null,null,null,null,null,null,null,null,0,0,null,0,0,0,0]
[3857,"Jiangxi SenCen Hygienic Products Co.","Y",null,null,null,null,null,null,null,0,0,0,0,0,0,0,1,0,1,1,0,0,0,0,0,0,0,0,0,0,0,0,0,0,0,0,0,0,0,0,0,1,1,0,0,null,null,1]
[3811,"Jiangxi Welton Pet Products Co., Ltd.","Y",null,null,null,null,null,null,null,null,null,null,null,null,null,null,null,null,null,1,null,null,null,null,null,null,1,null,null,null,null,null,null,null,null,null,null,null,null,null,null,null,null,null,null,1]
[4389,"Jianyangshi Tiantin Metal Products Co.","Y",null,null,null,null,1,null,null,null,null,null,null,null,null,null,null,null,null,1,null,null,null,null,null,null,null,null,null,null,null,null,null,null,null,null,1]
[4787,"Jiashan Oskar-Bebehut Precision Mach.","Y",null,null,null,null,null,null,1,null,null,null,null,null,null,null,null,null,null,1,null,null,null,null,null,null,null,null,null,null,null,null,null,null,null,null,1,null,null,null,null,null,null,null,null,0,0,0,0,0,0,0]
[2557,"JLA Pets","Y",null,null,null,null,null,null,null,0,0,0,0,0,0,0,0,0,1,1,0,0,0,0,0,0,0,0,1,0,0,0,0,0,1,0,0,0,0,0,0,0,0,0,0,0,0,0,0,0,0,0]
[2245,"Jolly Pets","Y",null,null,null,null,null,null,null,0,0,null,0,0,0,1,1,1,0,1,0,0,0,0,0,0,0,0,1,0,0,0,0,0,0,0,0,0,0,0,0,0,0,0,0,0,0,0,0,0,0,0]
[4101,"Jones Natural Chews ","Y",null,1,null,null,null,null,null,0,0,null,0,0,0,0,0,0,0,1,0,0,0,0,0,0,1,0,0,0,0,0,0,0,0,0,0,0,0,0,0,0,0,0,0,0,0,0,0,0,0,0]
[2867,"K & H Manufacturing LLC ","Y",null,null,null,null,null,null,null,0,0,null,0,0,0,1,1,1,1,1,0,0,0,0,0,1,0,0,0,0,0,0,1,0,1,0,1,1,1,0,0,0,0,0,0,0,0,0,0,0,0,0]
[2975,"K10+ ","Y",null,null,null,null,null,null,null,0,0,null,0,0,0,0,0,0,null,1,0,0,0,0,0,0,null,0,0,0,0,0,0,0,0,0,0,0,0,0,0,0,1,null,0,null,null,0,0,0,0,0]
[3915,"K9 Granola Factory ","Y",null,1,null,null,null,null,null,0,0,null,0,0,0,0,0,0,null,1,0,0,0,0,0,0,1,0,0,0,0,0,0,0,0,0,0,0,0,0,0,1,1,1,0,1,1,0,0,0,0,0]
[4144,"K9 Natural Foods Ltd. ","Y",null,1,null,null,null,null,null,0,0,null,0,0,0,0,0,0,1,1,0,0,0,0,1,1,1,0,0,0,0,0,0,0,0,0,0,0,0,0,0,0,0,0,0,0,0,0,0,0,0,0]
[4990,"K9Coil Leash","Y",null,null,null,null,null,null,1,null,null,null,null,null,null,null,null,null,null,1,null,null,1]
[3850,"Kanberra Group ","Y",null,null,null,null,null,null,null,0,0,null,null,0,0,0,0,0,1,1,0,0,0,0,0,0,0,0,0,0,0,0,0,0,0,0,0,0,0,0,0,0,0,0,0,0,1,0,0,0,0,0]
[989,"Kasel Industries","Y",null,null,null,null,null,null,null,0,0,0,0,0,0,0,0,0,0,1,0,0,0,0,0,0,1,0,0,0,0,0,0,0,0,0,0,0,0,0,0,0,0,0,0]
[4156,"Katie's Pet Products ","Y",null,1,null,null,null,null,null,0,0,null,1,0,0,0,0,1,1,1,1,0,0,0,0,0,0,0,1,0,0,0,0,0,0,0,0,0,0,0,0,0,1,0,0,0,0,0,0,0,0,0]
[4753,"Katris","Y",null,null,null,null,null,null,1,null,null,null,null,null,null,null,null,null,1,null,null,null,null,null,null,null,null,null,null,null,null,1,1,null,null,null,null,null,null,null,null,null,null,null,null,0,0,0,0,0,0,0]
[3506,"Kaylor Of Colorado ","Y",null,null,null,null,null,null,null,0,0,null,0,0,0,1,1,0,0,0,0,0,0,0,0,0,0,0,0,0,0,0,0,0,0,0,0,0,0,0,0,0,0,0,0,0,0,0,0,0,0,0]
[2543,"Kent Pet Group ","Y",null,null,null,null,null,null,null,0,0,null,0,0,0,0,1,0,1,1,0,0,0,0,1,0,1,0,0,0,0,0,0,0,0,0,0,0,0,1,null,0,0,0,0,0,0,0,0,0,0,0]
[2643,"Kent Pet Group ","Y",null,null,null,null,null,null,null,0,0,null,0,0,0,0,1,0,1,1,0,0,0,0,1,0,1,0,0,0,0,0,0,0,0,0,0,0,0,1,null,0,0,0,0,0,0,0,0,0,0,0]
[3180,"Kinn","Y",null,null,null,null,null,null,null,0,0,null,0,0,0,0,0,0,1,1,0,0,1,0,0,1,0,0,0,0,0,0,0,0,0,0,0,0,0,0,0,0,1,0,0,0,0,0,0,0,0,0]
[406,"Kiss My Mutt ","Y",null,null,1,null,null,null,null,0,0,null,0,0,0,0,0,0,0,1,0,1,1,0,0,0,0,0,0,0,0,0,0,0,1,0,0,0,0,0,0,0,0,0,0,0,0,0,0,0,0,0]
[3807,"K-Kat, LLC","Y",null,null,null,null,null,null,null,0,0,0,0,0,0,0,0,0,1,0,0,0,0,0,0,0,0,0,0,0,0,0,0,0,0,0,0,0,0,0,1,0,0,0,0,0,0,0,0,0,0,0]
[2455,"Knight Pet/Krislin","Y",null,null,null,null,null,null,null,0,0,null,0,1,0,1,1,0,1,1,0,null,1,0,0,null,1,1,1,0,null,0,0,1,null,0,null,0,0,0,0,0,0,null,1,0,0,0,null,null,0,0]
[1727,"KollerCraft","Y",null,null,null,null,null,null,null,0,0,0,0,1,1,0,0,0,0,0,0,0,0,0,0,0,0,0,0,0,0,0,0,0,0,0,0,0,0,0,0,0,0,0,0,0,0,0,0,0,0,0]
[3425,"Kong Company ","Y",null,null,null,null,null,null,null,0,0,null,0,0,0,1,1,0,1,1,0,0,1,0,0,0,1,0,1,0,1,null,0,0,0,0,0,0,0,0,0,1,0,0,1,0,0,0,0,0,0,0]
[1034,"KOOL TEES","Y",null,null,null,null,null,null,null,0,0,0,1,0,0,0,0,0,0,1,0,1,1,0,0,1,0,0,1,0,0,0,0,0,0,0,0,0,0,0,0,0,0,0,0]
[1741,"Kordon LLC-Kordon Aquarium Products","Y",null,null,null,1,null,null,null,0,0,null,0,1,null,null,null,null,null,null,0,0,0,0,0,null,0,0,0,0,0,0,0,0,0,0,null,0,0,0,0,0,null,0,0,0,null,0,0,0,0,0]
[4479,"Kruuse A/S","Y",null,null,null,null,1,null,null,null,null,null,null,null,null,1,null,null,1,1,null,1,1,null,null,null,null,null,null,null,null,null,null,null,null,null,1,null,null,1,null,1,1,null,1,null,null,null,1,1]
[4983,"K-TOPS Plastic Mfg Inc. / Creative Baby","Y",null,null,null,null,null,null,1,null,null,null,null,null,null,null,null,null,null,1,null,null,null,null,null,null,null,null,null,null,null,null,null,null,null,1,null,null,1]
[783,"Kudos Wireless Technology Limited","Y",null,null,null,null,null,null,null,null,null,null,null,null,null,null,null,null,null,1,null,null,null,null,null,1]
[4275,"Kumar Engineering Works","Y",null,null,null,null,1,null,null,null,null,null,null,null,null,1,null,null,1,1,null,null,null,null,null,1,null,null,null,null,null,null,null,null,null,null,null,null,null,null,null,null,null,null,null,0,0,0,0,0,0,0]
[3071,"Kumar Steels, Inc.","Y",null,null,null,null,null,null,null,0,0,0,0,0,0,0,0,1,0,1,0,0,0,0,0,1,0,0,0,0,0,0,0,0,0,0,0,0,0,0,0,0,0,0,0,0,0,0,0,0,0,0]
[3809,"Kumfy Tailz ","Y",null,null,null,null,null,null,null,0,0,null,0,0,0,0,0,0,0,1,0,1,1,0,0,0,0,0,0,0,0,0,0,0,0,0,0,0,0,0,0,0,0,0,0,0,0,0,0,0,0,0]
[2155,"Kurgo Products ","Y",null,null,null,null,null,null,null,0,0,null,0,0,0,0,0,0,0,1,0,1,1,0,0,1,0,0,0,0,0,0,0,0,1,0,1,1,0,0,0,0,0,0,0,0,0,0,0,0,0,0]
[1852,"L. S. Arts and Crafts Co., Ltd.","Y",null,null,null,null,null,null,null,0,0,0,0,0,0,1,0,0,1,1,0,1,0,0,0,0,0,0,0,0,0,0,0,0,1,0,0,0,0,0,0,0,0,0,0,0,0,0,0,0]
[3557,"La Crosse Technology","Y",null,null,null,null,null,null,null,0,0,0,0,1,0,0,0,0,0,1,0,0,0,0,0,0,0,0,0,0,0,0,0,0,0,0,0,0,0,0,0,0,0,0,0,null,null,null,null,null,1,1]
[1985,"Laboratorio Drag Pharma Chile Invetec ","Y",null,null,null,null,null,null,null,null,null,null,null,null,null,null,null,null,1,1,null,1,1,null,null,null,null,null,null,null,null,null,null,null,null,null,null,null,null,null,null,null,1,null,null,1]
[1100,"Lafeber Company ","Y",null,null,null,null,null,null,null,0,0,0,0,0,0,1,1,0,0,0,0,0,0,0,0,0,0,0,0,0,0,0,0,0,0,0,0,0,0,0,0,0,0,0,0,0,0,0,0,0,0,0]
[882,"Langhu Co., Limited","Y",null,null,null,null,null,null,null,null,null,null,null,1]
[3272,"LASO Pet Products ","Y",null,null,null,null,null,null,null,0,0,null,0,0,0,0,0,1,0,1,0,0,1,0,0,0,0,0,0,0,0,0,0,0,1,0,0,0,0,0,0,0,0,0,0,0,0,0,0,0,0,0]
[4872,"Le Sharma Trading, Inc.","Y",null,null,null,null,null,null,1,null,null,null,null,null,null,null,null,null,1,1,null,null,null,null,null,null,1,null,1,null,null,null,null,null,null,null,1,null,null,null,null,null,null,null,null,0,0,0,0,null,0,0]
[3167,"Leather Brothers Inc./Omnipet","Y",null,null,null,null,null,null,null,0,0,null,0,0,0,0,null,0,1,1,0,0,1,1,0,1,null,1,1,0,1,1,0,1,0,0,1,1,null,0,0,0,0,null,1,0,0,0,0,0,null,0]
[1748,"Lee's Aquarium & Pet Products","Y",null,null,null,1,null,null,null,0,0,0,0,1,1,1,1,0,0,1,0,0,0,0,0,0,0,0,1,0,0,0,0,0,0,0,0,0,0,0,0,0,0,0,0,null,null,null,null,1]
[405,"Legitimutt ","Y",null,null,1,null,null,null,null,0,0,null,0,0,0,0,0,0,0,1,0,1,1,0,0,1,1,1,1,0,0,0,0,0,1,0,0,0,0,0,0,0,null,0,0,0,0,0,1,0,0,0]
[306,"Lemon International Trade Co., Ltd.","Y",null,null,null,null,null,null,null,null,null,null,null,null,null,null,null,null,null,1,null,null,null,null,null,null,null,null,null,null,null,null,null,null,1,null,null,null,null,null,null,null,null,null,null,0,0,0,0,0,0,0]
[3501,"Lennox International Inc.","Y",null,null,null,null,null,null,null,0,0,null,0,0,0,0,0,0,0,1,0,0,0,0,0,0,1,1,0,0,0,0,0,0,0,0,0,0,0,0,0,0,0,0,0,0,0,0,0,0,0,0]
[4450,"Licks Pill-Free Solutions","Y",null,1,null,null,null,null,null,0,0,null,0,0,0,0,0,0,null,1,0,0,0,0,0,0,null,0,0,0,0,0,0,0,0,0,0,0,0,0,0,0,1,0,0,0,0,0,0,0,0,0]
[572,"Life Is Good by Planet Dog","Y",null,null,null,null,null,null,null,null,null,null,null,null,null,null,null,null,null,1,null,null,1,null,null,1,1,null,1,null,null,null,null,null,null,null,null,null,null,null,null,null,null,null,null,1]
[1342,"Lifegard Aquatics ","Y",null,null,null,1,null,null,null,0,0,null,0,1,0,0,0,0,0,0,0,0,0,0,0,0,0,0,0,0,0,0,0,0,0,0,0,0,0,0,0,0,0,0,0,0,0,0,0,0,0,0]
[3571,"Lilly Brush Co. LLC ","Y",null,null,null,null,null,null,null,0,0,null,0,0,0,0,0,0,0,1,0,0,0,0,0,0,0,0,0,0,0,0,0,0,0,0,0,0,0,0,0,0,0,0,1,0,0,0,0,0,0,0]
[3955,"Lincoln Bark LLC ","Y",null,1,null,null,null,null,null,0,0,null,0,0,0,0,0,0,1,1,0,0,0,0,0,0,1,0,0,0,0,0,0,0,0,0,0,0,0,0,0,0,null,0,0,0,0,0,0,0,0,0]
[4780,"Lindy & Company (Daybreak)","Y",null,null,null,null,null,null,1,null,null,null,null,null,null,null,null,null,1,1,null,null,null,null,null,null,1]
[2584,"Litter Genie ","Y",null,null,null,null,null,null,null,0,0,null,0,0,0,0,0,0,1,0,0,0,0,0,0,0,0,0,0,0,0,0,0,0,0,0,0,0,0,0,1,0,0,0,0,0,0,0,0,0,0,0]
[309,"Livelong Pet Nutrition","Y",null,null,null,null,null,null,null,0,0,0,0,0,0,0,0,0,1,1,0,0,0,0,1,0,0,0,0,0,0,0,0,0,0,0,0,0,0,0,0,0,0,0,0]
[3300,"Lixit Corporation ","Y",null,null,null,null,null,null,null,0,0,null,0,0,1,1,1,1,1,1,0,0,0,1,0,1,0,0,1,1,0,0,0,0,0,0,0,0,0,0,1,0,1,0,0,0,0,1,0,0,0,0]
[4544,"Look Who's Happy","Y",null,null,null,null,null,null,1,null,null,null,null,null,null,null,null,null,null,1,null,null,null,null,null,null,1,null,null,null,null,null,null,null,null,null,null,null,null,null,null,null,null,null,null,0,0,0,0,0,0,0]
[4056,"Lotus Pet Foods ","Y",null,1,null,null,null,null,null,0,0,null,0,0,0,0,0,0,1,1,0,0,0,0,1,0,0,0,0,0,0,0,0,0,0,0,0,0,0,0,0,0,0,0,0,0,0,0,0,0,0,0]
[1475,"Loving Pets ","Y",null,null,null,null,null,null,null,0,0,null,0,1,0,0,0,0,1,1,0,0,0,0,0,1,1,0,0,0,0,0,0,0,0,0,0,0,0,0,0,0,0,0,0,0,0,0,0,0,0,0]
[3856,"LTi Printing","Y",null,null,null,null,null,null,null,0,0,0,0,0,0,0,0,0,0,1,0,0,0,0,0,0,1,0,0,0,0,0,0,0,0,0,0,0,0,0,0,0,0,0,0]
[4177,"Lucky Pet Brands ","Y",null,1,null,null,null,null,null,0,0,null,0,0,0,1,1,0,1,1,0,0,0,0,0,0,1,0,0,0,0,0,0,0,0,0,0,0,0,0,0,0,0,0,0,0,0,0,0,0,0,0]
[522,"Luna Blue ","Y",null,null,1,null,null,null,null,0,0,null,0,0,0,0,0,0,0,1,0,1,1,0,0,0,0,0,0,0,0,0,0,0,1,0,0,0,0,0,0,0,0,0,0,0,0,0,0,0,0,0]
[735,"Lupine","Y",null,null,null,null,null,null,null,0,0,null,1,0,0,0,0,0,1,1,0,0,1,null,0,0,0,0,0,0,0,0,0,0,0,0,0,0,0,0,0,0,0,0,0,0,0,0,0,0,0,0]
[4572,"MacKnight Food Group, Inc.","Y",null,null,null,null,null,null,1,null,null,null,null,null,null,null,null,null,null,1,null,null,null,null,null,null,1]
[4171,"Madra Mor Canine Mud Treatments ","Y",null,1,null,null,null,null,null,0,0,null,1,0,0,0,0,0,0,1,0,0,0,0,0,0,0,0,0,0,0,0,0,0,0,0,0,0,0,0,0,0,0,0,0,1,0,0,0,0,0,0]
[3206,"MagicLatch","Y",null,null,null,null,null,null,null,0,0,null,0,0,0,0,0,0,0,1,0,0,1,0,0,0,0,0,0,0,0,0,0,0,0,0,0,0,0,0,0,0,0,0,0,0,0,0,0,0,0,0]
[4281,"Magnet & Steel Ltd.","Y",null,null,null,null,1,null,null,null,null,null,1,1,null,null,1,null,1,1,1]
[3881,"Mammoth Pet Products ","Y",null,null,null,null,null,null,null,0,0,null,null,0,0,1,1,null,1,1,0,0,0,0,0,0,1,0,1,0,0,0,0,0,0,0,0,0,0,0,0,1,0,0,0,0,0,0,0,0,0,0]
[222,"MandyDanyu (Shanghai) Bioscience Co","Y",null,null,null,null,null,null,null,null,null,null,null,null,null,null,null,null,null,1,null,null,null,null,null,null,null,null,null,null,null,null,null,null,null,null,null,null,null,null,null,null,null,null,null,1]
[2187,"Marchioro USA","Y",null,null,null,null,null,null,null,0,0,null,0,1,1,1,1,0,1,1,0,0,0,0,0,1,0,0,0,0,0,0,0,0,1,0,1,1,1,0,1,0,0,0,0,0,0,0,0,0,0,0]
[1735,"Mars Fishcare / API","Y",null,null,null,1,null,null,null,0,0,null,0,1,null,0,1,0,1,0,0,0,0,0,0,0,0,0,0,0,0,0,0,0,0,0,0,0,0,1,1,0,0,0,0,0,0,0,0,0,0,0]
[3053,"Mars Petcare","Y",null,null,null,null,null,null,null,0,0,null,0,0,0,0,0,0,1,1,0,0,0,0,1,0,1,0,0,0,0,0,0,0,0,0,0,0,0,0,0,0,null,0,0,0,0,0,0,0,0,0]
[2225,"Marshall Pet Products ","Y",null,null,null,null,null,null,null,0,0,null,0,0,null,1,1,1,1,1,0,0,0,0,0,0,1,0,0,0,0,0,0,0,0,0,0,0,0,1,0,0,1,0,0,null,1,0,0,0,0,0]
[4589,"Mashiur Rahman & Co. Ltd.","Y",null,null,null,null,null,null,1,null,null,null,null,null,null,1,1,null,1,1,null,null,null,null,null,null,null,null,null,null,null,null,null,null,1,null,null,null,null,null,null,null,null,null,null,0,0,0,0,0,0,0]
[3823,"Masters Best Friend","Y",null,null,null,null,null,null,null,0,0,0,0,0,0,0,0,0,0,1,0,0,0,0,0,0,1,0,0,0,0,0,0,0,0,0,0,0,0,0,0,0,0,0,0]
[4856,"Matrix Healthwerks, Inc.","Y",null,null,null,null,null,null,1,null,null,null,null,null,null,null,null,null,1,1,null,null,null,null,null,null,null,null,null,null,null,null,null,null,null,null,null,null,null,null,null,null,1]
[4344,"Mauro Pet Care","Y",null,1,null,null,null,null,null,0,0,null,0,0,0,0,0,1,0,1,0,0,0,0,0,0,0,0,0,0,0,0,0,0,0,0,0,0,0,0,0,0,0,0,0,1,0,0,0,0,0,0]
[4206,"Max & Ruffy's ","Y",null,1,null,null,null,null,null,0,0,null,0,0,0,0,0,0,0,1,0,0,0,0,0,0,1,0,0,0,0,0,0,0,0,0,null,0,0,0,0,0,0,0,0,0,0,0,0,0,0,0]
[540,"Max's Closet LLC ","Y",null,null,1,null,null,null,null,0,0,null,0,0,0,0,0,0,0,1,0,1,0,0,0,0,0,0,0,0,0,0,0,0,0,0,1,0,0,0,0,0,0,0,0,0,0,0,0,0,0,0]
[4972,"McAirlaids, Inc.","Y",null,null,null,null,null,null,1,null,null,null,null,null,null,null,null,null,null,1,null,null,null,null,null,null,null,null,null,null,null,null,null,null,null,null,null,null,null,null,null,null,null,null,null,null,null,null,1]
[2778,"Mednet Direct Corp.","Y",null,null,null,null,null,null,null,null,null,null,null,null,null,null,null,null,null,1,null,null,null,null,null,null,null,null,null,null,null,null,null,null,null,null,null,null,null,null,null,null,null,null,null,null,null,null,1,1]
[3666,"Mendota Products","Y",null,null,null,null,null,null,null,0,0,null,0,0,0,0,0,0,0,1,0,1,1,0,0,1,0,0,0,0,0,0,0,0,0,0,0,0,0,0,0,0,1,0,0,0,0,0,0,0,0,0]
[4371,"MENFORSAN","Y",null,null,null,null,1,null,null,null,null,null,null,null,1,1,1,1,1,1,null,null,null,null,null,null,null,null,null,null,null,null,null,null,null,null,null,null,null,null,null,1,1,1,null,1,1,0,0,0,0,0]
[3435,"Merrick Pet Care","Y",null,null,null,null,null,null,null,0,0,null,0,0,0,0,0,0,1,1,0,0,0,0,1,0,1,1,1,0,0,0,0,0,0,0,0,0,0,0,0,0,0,0,0,0,0,0,0,0,0,0]
[3009,"Merry Products, Inc.","Y",null,null,null,null,null,null,null,0,0,0,0,0,0,0,0,0,1,1,0,0,0,0,0,0,0,0,0,0,0,0,1,0,1,0,1,0,1,0,0,0,0,0,0,0,0,0,0,0,0,0]
[4966,"Messy Mutts ","Y",null,null,null,null,null,null,1,null,null,null,null,null,null,null,null,null,null,1,null,null,null,null,null,1,null,null,null,null,null,null,null,null,null,null,null,null,null,null,null,null,null,null,1]
[458,"Metro Paws LLC ","Y",null,null,1,null,null,null,null,0,0,null,0,0,0,0,0,0,0,1,0,0,0,0,0,0,0,0,0,0,0,0,0,0,0,0,0,0,0,0,0,0,0,0,0,0,0,0,0,1,0,0]
[3013,"Metrovac (Air Force)","Y",null,null,null,null,null,null,null,null,null,null,null,null,null,null,null,null,1,1,null,null,null,null,null,null,null,null,null,null,null,null,null,null,null,null,null,null,null,null,null,null,null,null,1]
[2825,"Midwest Homes For Pets","Y",null,null,null,null,null,null,null,0,0,null,0,0,0,1,1,0,1,1,0,0,0,0,0,0,0,0,0,0,0,0,1,0,1,1,1,0,1,0,0,0,0,0,0,0,0,0,0,1,0,0]
[3019,"Midwest Homes For Pets ","Y",null,null,null,null,null,null,null,0,0,null,0,0,0,1,1,0,1,1,0,0,0,0,0,0,0,0,0,0,0,0,1,0,1,1,1,0,1,0,0,0,0,0,0,0,0,0,0,1,0,0]
[2588,"Millers Forge","Y",null,null,null,null,null,null,null,0,0,null,null,0,0,0,0,0,1,1,0,0,0,0,0,null,0,0,0,0,0,0,0,0,0,0,0,0,0,0,0,1,0,0,1,0,1,0,0,0,0,0]
[1350,"Milwaukee Instruments","Y",null,null,null,1,null,null,null,0,0,0,0,1,0,0,0,0,0,0,0,0,0,0,0,0,0,0,0,0,0,0,0,0,0,0,0,0,0,0,0,0,0,0,0]
[3839,"Minus Forty Technologies ","Y",null,null,null,null,null,null,null,0,0,1,0,0,0,0,0,0,0,0,0,0,0,0,0,0,0,0,0,0,0,0,0,0,0,0,0,0,0,0,0,0,0,0,0,0,0,0,0,0,0,0]
[2682,"Mio9","Y",null,null,null,null,null,null,null,null,null,null,null,null,null,null,null,null,1,1,null,null,null,null,1,null,null,null,1,null,null,null,null,null,null,null,null,null,null,null,null,null,null,null,null,0,0,0,0,0,0,0]
[2319,"MiracleCorp Products ","Y",null,null,null,null,null,null,null,0,0,null,0,0,0,1,1,1,1,1,0,0,1,0,1,0,1,0,0,0,0,0,0,null,0,0,null,0,1,0,0,1,1,0,1,1,0,1,0,0,0,0]
[4266,"Moderna Products","Y",null,null,null,null,1,null,null,0,0,0,0,0,0,1,1,0,1,1,0,0,0,0,0,1,0,0,0,0,0,0,0,0,1,0,1,0,0,0,1,0,0,0,0,0,0,0,0,0,0,0]
[721,"Molly and Friends Cat Furniture Co.","Y",null,null,null,null,null,null,null,0,0,0,0,0,0,0,0,0,1,0,0,0,0,0,0,0,0,0,0,0,0,0,1,0,0,0,0,0,0,0,0,0,0,0,0]
[504,"Molly Mutt ","Y",null,null,1,null,null,null,null,0,0,null,0,0,0,0,0,0,0,1,0,0,1,0,0,0,0,0,0,0,0,0,0,0,1,0,0,0,0,0,0,0,0,0,0,null,1,0,0,0,0,0]
[320,"Monthly Targets","Y",null,null,null,null,null,null,null,null,null,1,null,null,null,null,null,null,null,null,null,null,null,null,null,null,null,null,null,null,null,null,null,null,null,null,null,null,null,null,null,null,null,null,null,0,0,0,0,0,0,0]
[1143,"Moose Pet Wear, a division of Strapworks","Y",null,null,null,null,null,null,null,0,0,0,0,0,0,0,0,0,0,1,0,0,1,0,0,0,0,0,0,0,0,0,0,0,0,0,0,0,0,0,0,0,0,0,0]
[2981,"Motorola ","Y",null,null,null,null,null,null,null,0,0,null,0,0,0,0,0,0,0,1,0,0,0,0,0,0,0,0,0,0,0,0,0,0,0,0,0,0,0,0,0,0,0,0,0,0,0,0,0,0,1,1]
[4217,"Mount Tibet Corporation","Y",null,1,null,null,null,null,null,null,null,null,null,null,null,null,null,null,null,1,null,null,null,null,null,null,1,null,null,null,null,null,null,null,null,null,null,null,null,null,null,null,null,null,null,0,0,0,0,0,0,0]
[1422,"Mudd+Wyeth, LLC","Y",null,null,null,null,null,null,null,0,0,0,1,0,0,0,0,0,0,1,0,1,1,0,0,0,1,0,1,0,0,0,0,0,0,0,0,0,0,0,0,0,0,0,0]
[1967,"Multipet International ","Y",null,null,null,null,null,null,null,0,0,null,0,null,0,1,1,null,1,1,0,0,0,0,0,0,1,null,1,0,1,0,0,0,null,0,0,0,0,0,0,0,0,0,0,0,0,0,0,0,0,0]
[486,"Muttluks Inc.","Y",null,null,null,null,null,null,null,0,0,null,0,0,0,0,0,0,0,1,0,1,0,0,0,0,0,0,0,0,0,0,0,0,1,0,0,0,0,0,0,0,1,0,0,0,0,0,0,0,0,0]
[4857,"My Dog Nose It!","Y",null,null,null,null,null,null,1,null,null,null,null,null,null,null,null,null,null,null,null,null,null,null,null,null,null,null,null,null,null,null,null,null,null,null,null,null,null,null,null,null,1,null,null,0,1,0,0,0,0,0]
[3112,"Nala Barry Labs","Y",null,null,null,null,null,null,null,0,0,0,0,0,1,0,0,0,1,1,0,0,0,0,0,0,1,0,1,0,1,0,0,0,0,0,0,0,0,0,0,0,1,0,0,0,0,0,0,0,0,0]
[2582,"Nanchang Cool Mat Household Prod Tech","Y",null,null,null,null,null,null,null,0,0,0,0,0,0,0,0,0,0,1,0,0,0,0,0,0,0,0,0,0,0,0,0,0,1,0,0,0,0,0,0,0,0,0,1]
[4855,"Nanchang Ruijie Flooring Industrial Co.","Y",null,null,null,null,null,null,1,null,null,null,null,null,null,null,null,null,null,1,null,null,null,null,null,null,null,null,null,null,null,null,null,null,1,null,null,null,null,null,null,null,null,null,1]
[707,"Nanjing XiRong Clothing Factory","Y",null,null,null,null,null,null,null,null,null,null,null,null,null,null,1,null,null,1,null,1]
[4289,"Nantong Flexitex Co., Ltd.","Y",null,null,null,null,1,null,null,null,null,null,null,null,null,null,null,null,1,1,null,null,null,null,null,null,null,null,null,null,null,null,null,null,1]
[4883,"Nantong Hengtuo Imp. & Exp. Trading","Y",null,null,null,null,null,null,1,null,null,null,null,null,null,null,null,null,null,1,null,null,null,null,null,null,null,null,null,null,null,null,null,null,null,null,null,null,null,null,null,null,null,null,null,0,0,0,1,null,0,0]
[3815,"Nantong Orient Pet Co., Ltd.","Y",null,null,null,null,null,null,null,0,0,0,1,1,1,1,1,1,1,1,0,1,1,1,0,1,0,1,1,1,1,1,1,1,1,1,1,1,1,1,1,1,1,0,1,null,null,null,1,1]
[4575,"Nantong Tianyu Leisure Products Co.","Y",null,null,null,null,null,null,1,null,null,null,null,null,null,1,null,null,null,1,null,null,1,null,null,null,null,null,null,null,null,null,null,null,null,null,1,null,null,null,null,null,null,null,null,0,0,0,0,0,0,0]
[935,"Nantong Yuanyang Leisure Products Co.","Y",null,null,null,null,null,null,null,0,0,0,0,1,0,1,1,0,1,1,0,1,1,0,0,1,0,0,1,0,0,0,0,0,0,0,1,0,1,0,0,0,0,0,0,0,0,0,0,0,0,0]
[3173,"National Animal Supplement Council","Y",null,null,null,null,null,null,null,1,0,0,0,0,0,0,0,0,0,0,0,0,0,0,0,0,0,0,0,0,0,0,0,0,0,0,0,0,0,0,0,0,0,0,0]
[2047,"Natural Balance Pet Foods","Y",null,null,null,null,null,null,null,0,0,null,0,0,0,0,0,0,1,1,0,0,0,0,1,0,1,0,0,0,0,0,0,0,0,0,0,0,0,0,0,0,0,0,0,0,0,0,0,0,0,0]
[917,"Natural Chemistry ","Y",null,null,null,null,null,null,null,0,0,null,0,null,1,1,1,0,1,1,0,0,0,0,0,0,0,0,0,0,0,0,0,0,0,0,0,0,0,0,0,1,0,1,null,1,1,0,0,0,0,0]
[4152,"Natural Dog Company, Inc. ","Y",null,1,null,null,null,null,null,null,null,null,null,null,null,null,null,null,null,1,null,null,null,null,null,null,1]
[4971,"Natural Solutions for Life","Y",null,null,null,null,null,null,1,null,null,null,null,null,null,null,null,null,null,1,null,null,null,null,null,null,null,null,null,null,null,null,null,null,null,null,null,null,null,null,null,null,1,null,null,0,0,0,0,0,0,0]
[1254,"Nature Zone","Y",null,null,null,1,null,null,null,0,0,0,0,0,1,1,0,0,0,0,0,0,0,0,0,0,0,0,0,0,0,0,0,0,0,0,0,0,0,0,0,0,0,0,0,1,1,0,0,0,0,0]
[1678,"Naturel Promise","Y",null,null,null,null,null,null,null,0,0,0,0,0,0,0,0,0,1,1,0,0,0,0,0,0,0,0,0,0,0,0,0,0,0,0,0,0,0,0,0,0,0,1,1,1,1]
[4109,"Nature's Logic ","Y",null,1,null,null,null,null,null,0,0,null,0,0,0,0,0,0,1,1,0,0,0,0,1,0,1,0,0,0,0,0,0,0,0,0,0,0,0,1,0,0,1,0,0,0,0,0,0,0,0,0]
[3923,"Nature's Variety ","Y",null,1,null,null,null,null,null,null,null,null,null,null,null,null,null,null,1,1,null,null,null,null,1,null,1]
[3157,"NaturVet. ","Y",null,null,null,null,null,null,null,0,0,null,0,0,0,0,0,1,1,1,0,0,0,0,0,0,0,0,0,0,0,0,0,0,0,0,0,0,0,0,0,0,1,0,0,1,0,0,0,0,0,0]
[3574,"Neater Pet Brands ","Y",null,null,null,null,null,null,null,0,0,null,0,0,0,0,0,0,1,1,0,0,0,0,0,1,0,0,0,0,0,0,0,0,0,0,0,0,0,0,1,0,0,0,0,0,0,0,0,0,0,0]
[450,"Nekochan Enterprises Inc. ","Y",null,null,1,null,null,null,null,null,null,null,null,null,null,null,null,null,1,1,null,null,null,null,null,null,null,null,1,null,null,null,null,null,1]
[1920,"NEPCO","Y",null,null,null,null,null,null,null,null,null,null,null,null,null,1,1,null,1,1,null,null,null,null,null,null,null,null,null,null,null,null,null,null,1,null,null,null,null,1,1,null,null,null,null,0,0,0,0,0,0,0]
[3243,"Nerf Dog ","Y",null,null,null,null,null,null,null,0,0,null,0,0,0,0,0,0,0,1,0,0,0,null,0,0,0,0,1,0,0,0,0,0,0,0,0,0,0,0,0,0,0,0,0,0,0,0,0,0,0,0]
[1935,"Nestle Purina Petcare Company ","Y",null,null,null,null,null,null,null,0,0,null,0,0,0,0,0,0,1,1,0,0,0,0,1,0,1,0,0,0,0,0,0,0,0,0,0,0,0,1,1,0,0,0,0,0,0,0,0,0,0,0]
[3835,"New Angle Pet Products, Inc.","Y",null,null,null,null,null,null,null,0,0,0,0,0,0,0,0,0,0,1,0,0,0,0,0,1,0,0,0,0,0,0,0,0,0,0,0,0,0,0,0,0,0,0,0]
[4884,"New Arts Int'l. Co., Ltd.","Y",null,null,null,null,null,null,1,null,null,null,null,1,null,null,null,null,null,null,null,null,null,null,null,null,null,null,null,null,null,null,null,null,null,null,null,null,null,null,null,null,null,null,null,0,0,0,0,0,0,0]
[1449,"New Life International, Inc.","Y",null,null,null,1,null,null,null,0,0,0,0,1,1,0,0,0,0,0,0,0,0,0,0,0,0,0,0,0,0,0,0,0,0,0,0,0,0,0,0,0,0,0,0]
[4686,"New Morning Imports DBA Tumbleweed","Y",null,null,null,null,null,null,1,null,null,null,1,null,null,null,null,null,null,null,null,null,null,null,null,null,null,null,null,null,null,null,null,null,null,null,null,null,null,null,null,null,null,null,null,0,null,0,0,0,0,0]
[4350,"Next Gen Pet Products","Y",null,1,null,null,null,null,null,0,0,null,0,0,0,0,0,0,1,1,0,0,0,0,null,0,1,0,0,0,0,0,0,0,0,0,0,0,0,1,1,0,0,0,0,0,0,0,0,0,0,0]
[3170,"Nilodor, Inc.","Y",null,null,null,null,null,null,null,0,0,0,0,0,0,0,1,1,1,1,0,0,0,0,0,0,0,0,0,0,0,0,0,0,0,0,0,0,0,0,1,0,0,1,0,null,1]
[4583,"Ningbo Henkel International Trading","Y",null,null,null,null,null,null,1,null,null,null,null,null,null,null,null,null,null,1,null,null,1,null,null,null,null,null,null,null,null,null,null,null,null,null,1,1]
[785,"Ningbo Hongdu Model Plastics Co","Y",null,null,null,null,null,null,null,null,null,null,null,null,null,null,null,null,1,1,null,null,null,null,null,null,null,null,null,null,null,null,null,null,null,null,1,null,1,null,1,null,null,null,null,0,0,0,0,0,0,0]
[483,"Ningbo Morning Star Pet Goods Co","Y",null,null,null,null,null,null,null,0,0,0,0,0,0,1,1,0,1,1,0,0,1,0,0,1,1,0,1,0,0,0,0,0,0,1,0,0,0,0,1,0,0,0,0]
[4779,"Ningde Fulaide Imp. & Exp. Co.","Y",null,null,null,null,null,null,1,null,null,null,null,null,null,null,null,null,null,1,null,1,null,null,null,null,null,null,null,null,null,null,null,null,1]
[4849,"Nite Beam Products ","Y",null,null,null,null,null,null,1,null,null,null,null,null,null,null,null,null,null,1,null,null,1]
[3017,"Nite Ize","Y",null,null,null,null,null,null,null,0,0,null,null,0,0,0,0,0,0,1,0,0,1,0,0,0,0,0,1,0,0,0,0,0,0,0,0,0,0,0,0,0,0,0,0,0,0,0,0,1,0,0]
[4850,"Noggle, Inc.","Y",null,null,null,null,null,null,1,null,null,null,null,null,null,null,null,null,null,1,null,null,null,null,null,null,null,null,null,null,null,null,null,null,null,null,null,1,null,null,null,null,null,null,null,0,0,0,0,0,0,0]
[4459,"Nootie LLC ","Y",null,1,null,null,null,null,null,0,0,null,0,0,0,0,0,0,0,1,0,0,0,0,0,0,1,0,0,0,0,0,0,0,0,0,0,0,0,0,0,0,0,0,0,1,0,0,0,0,0,0]
[4150,"Nordic Naturals ","Y",null,1,null,null,null,null,null,0,0,null,0,0,0,0,0,0,1,1,0,0,0,0,0,0,0,0,0,0,0,0,0,0,0,0,0,0,0,0,0,0,1,0,0,0,0,0,0,0,0,0]
[2167,"North American Pet Products ","Y",null,null,null,null,null,null,null,0,0,null,0,1,1,1,1,0,1,1,0,0,0,0,0,0,1,0,1,0,1,1,1,0,0,0,0,0,0,0,0,0,0,0,0,0,0,0,0,0,0,0]
[2175,"North American Pet Products ","Y",null,null,null,null,null,null,null,0,0,null,0,1,1,1,1,0,1,1,0,0,0,0,0,0,1,0,1,0,1,1,1,0,0,0,0,0,0,0,0,0,0,0,0,0,0,0,0,0,0,0]
[1667,"North States Industries ","Y",null,null,null,null,null,null,null,0,0,null,0,0,0,1,0,0,0,1,0,0,0,0,0,0,0,0,0,0,0,0,0,0,0,1,1,0,0,0,0,0,0,0,0,0,0,0,0,0,0,0]
[4153,"Northern Biscuit Bakery","Y",null,1,null,null,null,null,null,0,0,0,0,0,0,0,0,0,0,1,0,0,0,0,0,0,1,0,0,0,0,0,0,0,0,0,0,0,0,0,0,0,0,0,0]
[4051,"Northwest Naturals ","Y",null,1,null,null,null,null,null,0,0,null,0,0,0,0,0,0,null,1,0,0,0,0,1,0,1,0,0,0,0,0,0,0,0,0,0,0,0,0,0,0,0,0,0,0,0,0,0,0,0,0]
[4851,"NoScentNaturals Corp.","Y",null,null,null,null,null,null,1,null,null,null,null,null,null,null,null,null,1,1,null,null,null,null,null,null,null,null,null,null,null,null,null,null,null,null,null,null,null,null,null,null,null,null,null,0,1,0,0,0,0,0]
[3466,"NPIC (Natural Polymer Int'l)","Y",null,null,null,null,null,null,null,null,null,null,null,null,null,null,1,null,1,1,null,null,null,null,null,null,1,null,null,null,null,null,null,null,null,null,null,null,null,null,null,null,1]
[4120,"Nulo Pet Foods ","Y",null,1,null,null,null,null,null,0,0,null,0,0,0,0,0,0,1,1,0,0,0,0,1,0,0,0,0,0,0,0,0,0,0,0,0,0,0,0,0,0,0,0,0,0,0,0,0,0,0,0]
[1139,"Numi Cat Litter","Y",null,null,null,null,null,null,null,0,0,0,0,0,0,0,0,0,1,0,0,0,0,0,0,0,0,0,0,0,0,0,0,0,0,0,0,0,0,1,0,0,0,0,0,0,0,0,0,0,0,0]
[4054,"Nummy Tum Tum ","Y",null,1,null,null,null,null,null,0,0,null,0,0,0,1,1,0,1,1,0,0,0,0,0,0,0,0,0,0,0,0,0,0,0,0,0,0,0,0,0,0,1,0,0,0,0,0,0,0,0,0]
[4085,"Nutram Pet Products, div of Elmira Pet ","Y",null,1,null,null,null,null,null,0,0,0,0,0,0,0,0,0,1,1,0,0,0,0,1,0,1,0,0,0,0,0,0,0,0,0,0,0,0,0,0,0,0,0,0,0,0,0,0,0,0,0]
[4049,"Nutreco Canada, Inc.","Y",null,1,null,null,null,null,null,0,0,0,0,0,0,0,0,0,1,1,0,0,0,0,1,0,0,0,0,0,0,0,0,0,0,0,0,0,0,0,0,0,0,0,0]
[4255,"Nutri-Pet Research / Nupro Supplements","Y",null,1,null,null,null,null,null,0,0,null,0,0,0,0,1,0,1,1,0,0,0,0,0,0,0,0,0,0,0,0,0,0,0,0,0,0,0,0,0,0,1,0,0,0,0,0,0,0,0,0]
[1354,"O.S.I. Marine Lab","Y",null,null,null,1,null,null,null,null,null,null,null,1]
[3559,"Oasis - Division of Kordon, LLC","Y",null,null,null,null,null,null,null,0,0,null,0,1,1,1,1,null,1,1,0,0,0,0,0,1,0,0,0,0,0,0,0,0,0,0,1,0,0,0,0,0,1,0,0,0,1,0,0,0,0,0]
[4944,"OC Raw Dog","Y",null,null,null,null,null,null,1,null,null,null,null,null,null,null,null,null,1,1,null,null,null,null,1,null,1]
[1753,"Oceans, Reefs & Aquariums LLC","Y",null,null,null,1,null,null,null,null,null,null,null,1]
[4744,"Oculus Innovative Sci./Animal Health","Y",null,null,null,null,null,null,1,null,null,null,null,null,null,null,null,null,1,1,null,null,null,null,null,null,null,null,null,null,null,null,null,null,null,null,null,null,null,null,null,null,1]
[511,"O'Donnell Industries, Inc.","Y",null,null,1,null,null,null,null,null,null,null,null,null,null,null,null,null,1,1,null,null,null,null,null,null,null,null,null,null,null,null,null,null,1]
[4955,"Odor Blok","Y",null,null,null,null,null,null,1,null,null,null,null,null,null,null,null,null,null,1,null,null,null,null,null,null,null,null,null,null,null,null,null,null,null,null,null,null,null,null,null,null,null,null,null,0,1,0,0,0,0,0]
[479,"Odorchem Manufacturing Corp.","Y",null,null,null,null,null,null,null,0,0,0,0,0,0,0,0,0,1,1,0,0,0,0,0,0,0,0,0,0,0,0,0,0,0,0,0,0,0,0,0,0,0,0,0,0,1,0,0,0,0,0]
[3149,"Oil-Dri Corporation of America","Y",null,null,null,null,null,null,null,0,0,0,0,0,0,0,0,0,1,0,0,0,0,0,0,0,0,0,0,0,0,0,0,0,0,0,0,0,0,1,1,0,0,0,0]
[1039,"Old Mill Pet Products","Y",null,null,null,null,null,null,null,0,0,null,0,0,0,0,0,0,0,1,0,0,0,0,0,0,1,0,0,0,0,0,0,0,0,0,0,0,0,0,0,0,0,0,0,0,0,0,0,0,0,0]
[640,"OllyDog ","Y",null,null,null,null,null,null,null,0,0,null,0,0,0,0,0,0,0,1,0,1,1,0,0,1,0,0,1,0,0,0,0,0,1,0,0,0,0,0,0,0,0,0,0,0,1,0,0,0,0,0]
[1189,"Omega Paw Inc. ","Y",null,null,null,null,null,null,null,0,0,null,0,0,0,0,0,0,1,1,0,0,0,0,0,1,1,0,1,0,0,1,1,0,0,0,0,0,0,0,1,0,1,0,null,1,1,0,0,0,0,0]
[1549,"OmegaSea","Y",null,null,null,1,null,null,null,null,null,null,null,1,1]
[3572,"One Pet Planet ","Y",null,null,null,null,null,null,null,0,0,null,0,1,0,1,1,0,1,1,0,1,1,0,0,null,1,1,1,0,null,1,0,1,null,null,null,0,0,1,1,0,0,0,1,0,0,0,0,null,0,0]
[410,"Oomaloo","Y",null,null,1,null,null,null,null,null,null,null,null,null,null,null,null,null,1,1,null,1,null,null,null,null,null,null,1]
[813,"Open Farm","Y",null,null,null,null,null,null,null,null,null,null,null,null,null,null,null,null,null,1,null,1]
[4953,"Orabrush, Inc.","Y",null,null,null,null,null,null,1,null,null,null,null,null,null,null,null,null,null,1,null,null,null,null,null,null,null,null,null,null,null,null,null,null,null,null,null,null,null,null,null,1,1,null,null,0,0,0,0,0,0,0]
[4238,"Organic Oscar","Y",null,1,null,null,null,null,null,0,0,null,0,0,0,0,0,0,0,1,0,0,0,0,0,0,0,0,0,0,0,0,0,0,0,0,0,0,0,0,0,0,0,0,0,1,0,1,0,0,0,0]
[4208,"Origen Nutrition, Inc.","Y",null,1,null,null,null,null,null,0,0,0,0,0,0,0,0,0,1,0,0,0,0,0,1,0,0,0,0,0,0,0,0,0,0,0,0,0,0,0,0,0,0,0,0]
[4244,"Oscar Newman - CocoTherapy","Y",null,1,null,null,null,null,null,0,0,null,0,0,0,0,0,0,0,1,0,1,0,0,0,0,1,0,1,0,0,0,0,0,0,0,0,0,0,0,0,0,1,0,0,0,0,0,0,0,0,0]
[2725,"Oster Professional Products ","Y",null,null,null,null,null,null,null,0,0,null,0,0,0,0,1,1,1,1,1,0,0,0,0,0,0,0,0,0,0,0,0,0,0,0,0,0,0,0,0,0,0,0,1,1,1,1,0,0,0,0]
[3235,"OurPet's Company","Y",null,null,null,null,null,null,null,0,0,null,0,0,0,1,0,0,1,1,0,0,0,0,0,1,1,0,1,0,1,null,0,0,0,0,0,0,0,0,1,0,0,0,0,0,0,0,0,1,0,0]
[3745,"Oxbow Animal Health","Y",null,null,null,null,null,null,null,0,0,null,0,0,1,0,1,0,0,0,0,0,0,0,0,0,0,0,0,0,0,0,0,0,0,0,0,0,0,0,0,0,0,0,0,0,0,0,0,0,0,0]
[4648,"P.J. Noyes Animal Care and Supp. CM0","Y",null,null,null,null,null,null,1,null,null,null,null,null,null,null,null,1,null,null,null,null,null,null,null,null,null,null,null,null,null,null,null,null,null,null,null,null,null,null,null,null,null,null,null,0,0,0,0,0,0,0]
[4209,"Pacific Bird and Supply Co. ","Y",null,1,null,null,null,null,null,0,0,null,0,0,0,1,0,0,0,0,0,0,0,0,0,0,0,0,0,0,0,0,0,0,0,0,0,0,0,0,0,0,0,0,0,0,0,0,0,0,0,0]
[3709,"Pacific Store Designs","Y",null,null,null,null,null,null,null,null,null,null,1]
[4566,"PAL Campaign","Y",null,null,null,null,null,null,1,1]
[3417,"PAMPERED PETS USA","Y",null,null,null,null,null,null,null,0,0,0,0,0,0,0,0,1,1,1,0,0,0,0,0,0,1,0,0,0,0,0,0,0,0,0,0,0,0,0,0,0,0,0,0]
[4988,"Panama Jack","Y",null,null,null,null,null,null,1,null,null,null,null,null,null,null,null,null,null,1,null,null,null,null,null,null,null,null,null,null,null,null,null,null,1]
[2989,"Paragon Pet Products ","Y",null,null,null,null,null,null,null,0,0,null,0,0,0,0,0,0,0,1,0,0,0,0,0,0,1,0,0,0,0,0,0,0,0,0,0,0,0,0,0,0,0,0,0,0,0,0,0,0,0,0]
[411,"Parisian Pet ","Y",null,null,1,null,null,null,null,0,0,null,0,0,0,0,0,0,0,1,0,1,1,0,0,0,0,0,0,0,0,0,0,0,1,0,1,0,0,0,0,0,0,0,0,0,0,0,0,0,0,0]
[2947,"Patchwork Distribution Inc. ","Y",null,null,null,null,null,null,null,0,0,null,0,0,0,0,0,0,1,1,0,0,0,0,0,0,0,0,1,0,0,0,0,0,0,0,0,0,0,0,0,0,0,0,0,0,0,0,0,0,0,0]
[3455,"PAW - Pet Adventures Worldwide, Inc.","Y",null,null,null,null,null,null,null,null,1,null,null,null,null,null,null,null,1,1,null,1,1,null,1,1,1,null,1,null,null,null,null,null,1,null,1,1,null,null,null,null,1,null,null,0,0,1,0,1,0,0]
[470,"Paw Paws USA ","Y",null,null,null,null,null,null,null,null,null,null,1,null,null,null,null,null,null,1,null,null,1]
[3819,"Paw Pods LLC","Y",null,null,null,null,null,null,null,0,0,0,1,0,0,0,0,0,0,1,0,0,0,0,0,0,0,0,0,0,0,0,0,0,0,0,0,0,0,0,0,0,0,0,0]
[674,"Pawabunga! ","Y",null,null,null,null,null,null,null,0,0,null,0,0,0,0,0,0,0,1,0,1,0,0,0,1,1,1,1,0,0,0,0,0,0,0,0,0,0,0,0,0,0,0,0,0,0,0,0,0,0,0]
[3451,"PawFlex.Inc ","Y",null,null,null,null,null,null,null,0,0,null,0,0,0,0,0,0,1,1,0,0,0,0,0,0,0,0,0,0,0,0,0,0,0,0,0,0,0,0,0,0,1,0,0,0,0,0,0,0,0,0]
[4579,"Paws Barkery, Inc.","Y",null,null,null,null,null,null,1,null,null,null,null,null,null,null,null,null,null,1,null,null,null,null,null,null,1,null,null,null,null,null,null,null,null,null,null,null,null,null,null,null,null,null,null,0,0,0,0,0,0,0]
[211,"Paws In The Heart","Y",null,null,null,null,null,null,null,null,null,null,1,null,null,null,null,null,null,1]
[1051,"Paw-Savers LLC","Y",null,null,null,null,null,null,null,null,null,null,null,null,null,null,null,null,null,1,null,1]
[4890,"PawsCam","Y",null,null,null,null,null,null,1,null,null,null,null,null,null,null,null,null,null,1,null,null,1,null,null,null,null,null,null,null,null,null,null,null,null,null,null,null,null,null,null,null,null,null,null,null,null,null,null,null,1,1]
[620,"Pawsitively Gourmet, Inc.","Y",null,null,null,null,null,null,null,0,0,0,0,0,0,0,0,0,0,1,0,0,0,0,0,0,1,0,0,0,0,0,0,0,0,0,0,0,0,0,0,0,0,0,0]
[4155,"PAWTRIOTIC/ Nowlin' Goodies","Y",null,1,null,null,null,null,null,null,null,null,null,null,null,null,null,null,null,1,null,null,null,null,null,null,1]
[500,"Pawz Dog Boots ","Y",null,null,1,null,null,null,null,0,0,null,1,0,0,0,0,0,0,1,0,1,1,0,0,0,0,0,0,0,0,0,0,0,0,0,0,0,0,0,0,0,0,0,0,0,0,0,0,0,0,0]
[1357,"Pecan Grove Solutions LLC","Y",null,null,null,1,null,null,null,null,null,null,null,1]
[4866,"Pego","Y",null,null,null,null,null,null,1,null,null,null,null,null,null,null,null,null,null,1,null,null,null,null,null,null,null,null,null,null,null,null,null,null,null,null,null,null,1]
[1919,"Penn-Plax, Inc.","Y",null,null,null,null,null,null,null,0,0,null,1,1,1,1,1,0,1,1,0,1,1,0,0,1,1,null,1,0,1,1,1,1,1,0,1,0,0,null,1,1,0,0,1,0,0,0,1,1,0,0]
[1925,"Penn-Plax, Inc.","Y",null,null,null,null,null,null,null,0,0,null,1,1,1,1,1,0,1,1,0,1,1,0,0,1,1,null,1,0,1,1,1,1,1,0,1,0,0,null,1,1,0,0,1,0,0,0,1,1,0,0]
[4179,"Performance Pet Prod./Spring Naturals","Y",null,1,null,null,null,null,null,0,0,null,0,0,0,0,0,0,1,1,0,0,0,0,1,0,1,0,0,0,0,0,0,0,0,0,0,0,0,0,0,0,0,0,0,0,0,0,0,0,0,0]
[2601,"Perrigo Animal Health","Y",null,null,null,null,null,null,null,null,null,null,null,1,null,1,1,null,1,1,null,null,1,null,null,1,1,1,1,null,null,null,null,1,null,null,null,null,null,null,null,null,1,1,1,null,1]
[2615,"Perrigo Animal Health-Pet Specialty","Y",null,null,null,null,null,null,null,null,null,null,null,1,null,1,1,null,1,1,null,null,1,null,null,1,1,1,1,null,null,null,null,1,null,null,null,null,null,null,null,null,1,1,1,null,1,0,0,0,0,0]
[1858,"Pestell Pet Products","Y",null,null,null,null,null,null,null,0,0,0,0,0,0,1,1,0,1,1,0,0,0,0,0,0,0,0,0,0,0,0,0,0,1,0,0,0,0,1,1,0,0,0,0,0,0,0,0,0,0,0]
[1680,"Pet Acoustics, Inc.","Y",null,null,null,null,null,null,null,0,0,0,1,0,0,1,0,1,1,1,0,0,0,0,0,1,0,0,0,0,0,0,0,0,0,0,0,0,0,0,0,0,0,0,0,0,0,0,0,0,0,0]
[2678,"Pet Age Magazine ","Y",null,null,null,null,null,null,null,1,0,null,0,0,0,0,0,0,0,0,0,0,0,0,0,0,0,0,0,0,0,0,0,0,0,0,0,0,0,0,0,0,0,0,0,0,0,0,0,0,0,0]
[1509,"Pet Brands, Inc.","Y",null,null,null,null,null,null,null,0,0,0,0,0,0,0,0,0,1,1,0,0,0,0,0,0,1,0,1,0,0,0,0,0,1,0,0,0,0,0,0,0,0,0,0]
[4570,"Pet Buddies, Inc.","Y",null,null,null,null,null,null,1,null,null,null,null,null,null,null,null,null,1,1,null,null,null,null,null,null,null,null,1,null,null,null,null,null,1,null,null,null,null,null,1,null,null,null,1,1,1,0,0,0,0,0]
[2612,"Pet Business Magazine ","Y",null,null,null,null,null,null,null,1,0,null,0,0,0,0,0,0,0,0,0,0,0,0,0,0,0,0,0,0,0,0,0,0,0,0,0,0,0,0,0,0,0,0,0,0,0,0,0,0,0,0]
[3753,"Pet Center","Y",null,null,null,null,null,null,null,0,0,null,0,0,0,1,0,0,0,1,0,0,0,0,0,0,1,0,0,0,0,0,0,0,0,0,0,0,0,0,0,0,0,0,0,0,0,0,0,0,0,0]
[3735,"Pet Dreams ","Y",null,null,null,null,null,null,null,0,0,null,0,0,0,0,0,0,0,1,0,0,0,0,0,0,0,0,1,0,0,0,0,0,1,0,1,0,null,0,0,0,0,0,0,0,0,0,0,0,0,0]
[2715,"Pet Edge Dealer Services","Y",null,null,null,null,null,null,null,null,1,null,1,null,null,null,null,null,1,1,null,1,1,1,null,1,1,1,1,null,1,1,1,null,1,1,1,1,1,null,1,1,1,1,1,1,1,null,1,1,1]
[1709,"Pet Ego Egr LLC ","Y",null,null,null,null,null,null,null,0,0,null,0,0,0,0,0,0,null,1,0,1,1,0,0,1,0,0,1,0,0,0,0,0,1,0,1,1,1,null,1,0,0,0,1,1,0,0,0,1,0,0]
[3221,"Pet Factory","Y",null,null,null,null,null,null,null,0,0,null,0,0,0,0,0,0,0,1,0,0,0,0,0,0,0,1,null,0,0,0,0,0,0,0,0,0,0,0,0,0,0,0,0,0,0,0,0,0,0,0]
[3471,"Pet Fire Rescue Signs","Y",null,null,null,null,null,null,null,0,0,0,1,0,0,0,0,0,0,0,0,0,0,0,0,0,0,0,0,0,0,0,0,0,0,0,0,0,0,0,0,0,0,0,0]
[226,"Pet First Aid Products by Dr. Emmo's","Y",null,null,null,null,null,null,null,null,null,null,null,null,null,null,null,1,null,1,null,null,null,null,null,null,null,null,null,null,null,null,null,null,null,null,null,null,null,null,null,null,1]
[4785,"Pet Fusion","Y",null,null,null,null,null,null,1,null,null,null,null,null,null,null,null,null,1,null,null,null,null,null,null,1,null,null,null,null,null,1,null,null,1,null,null,null,null,null,1]
[2590,"PET GEAR by Hunter","Y",null,null,null,null,null,null,null,0,0,null,0,0,0,0,0,0,0,1,0,0,1,1,0,1,0,0,0,0,0,0,0,0,0,0,0,1,0,0,0,0,0,0,0,0,0,0,0,0,0,0]
[867,"Pet Gear Inc. ","Y",null,null,null,null,null,null,null,0,0,null,0,0,0,0,1,0,1,1,0,0,0,0,0,0,0,0,0,0,0,0,0,0,1,0,1,1,1,0,0,0,0,0,1,0,0,0,0,0,0,0]
[605,"Pet Gifts USA","Y",null,null,null,null,null,null,null,0,0,null,1,0,0,0,0,null,null,null,0,0,0,0,0,0,0,0,0,0,0,0,0,0,0,0,0,0,0,0,0,0,0,0,0,0,0,0,0,0,0,0]
[1101,"Pet Goods Manufacturing ","Y",null,null,null,null,null,null,null,0,0,null,0,0,0,0,0,0,1,1,1,null,null,0,0,1,1,0,1,0,0,0,0,0,1,0,0,0,0,0,0,0,0,0,0,0,null,0,0,0,0,0]
[2477,"Pet Head Inc. ","Y",null,null,null,null,null,null,null,0,0,null,0,0,0,0,0,0,1,1,0,0,0,0,0,0,0,0,0,0,0,0,0,0,1,0,0,0,0,0,0,0,0,0,1,1,null,1,0,0,0,0]
[204,"Pet Health Pharmaceutical","Y",null,null,null,null,null,null,null,null,null,null,null,null,null,null,null,null,1,1,null,null,null,null,null,1,1,null,null,null,null,null,null,null,null,null,1]
[4887,"Pet Healthy Holdings, LLC","Y",null,null,null,null,null,null,1,null,null,null,null,null,null,null,null,null,1,null,1,null,null,null,null,1,null,null,null,null,null,null,null,null,null,null,null,null,null,1,1,null,null,null,1,0,1,0,0,0,0,0]
[2301,"Pet Industry Distributors Ass'n. (PIDA) ","Y",null,null,null,null,null,null,null,1,null,null,0,0,0,0,0,0,0,0,0,0,0,0,0,0,0,0,0,0,0,0,0,0,0,0,0,0,0,0,0,0,0,0,0,0,0,0,0,0,0,0]
[2412,"Pet Industry Joint Advisory Council (PIJAC)","Y",null,null,null,null,null,null,null,1,0,null,0,0,0,0,0,0,0,0,0,0,0,0,0,0,0,0,0,0,0,0,0,0,0,0,0,0,0,0,0,0,0,0,0,0,0,0,0,0,0,0]
[1035,"Pet Industry Sustainability Coalition","Y",null,null,null,null,null,null,null,1,0,0,0,0,0,0,0,0,0,0,0,0,0,0,0,0,0,0,0,0,0,0,0,0,0,0,0,0,0,0,0,0,0,0,0,0,0,0,0,0,0,0]
[3419,"Pet International, Inc.","Y",null,null,null,null,null,null,null,0,0,0,0,0,0,0,0,0,0,1,0,0,0,0,0,0,1,0,0,0,0,0,0,0,0,0,0,0,0,0,0,0,0,0,0,0,0,0,0,0,0,0]
[4055,"Pet Kelp (Pure Ocean Botanicals) ","Y",null,1,null,null,null,null,null,0,0,null,0,0,0,0,0,0,1,1,0,0,0,0,0,0,1,0,0,0,0,0,0,0,0,0,0,0,0,0,0,0,1,0,0,0,0,0,0,0,0,0]
[3205,"Pet King Brands Inc. ","Y",null,null,null,null,null,null,null,null,null,null,null,null,null,null,null,null,1,1,null,null,null,null,null,null,null,null,null,null,null,null,null,null,null,null,null,null,null,null,null,1,1,null,null,1]
[3601,"PET KING, INC.","Y",null,null,null,null,null,null,null,0,0,0,0,1,0,0,0,0,0,0,0,0,0,0,0,0,0,0,0,0,0,0,0,0,0,0,0,0,0,0,0,0,0,0,0]
[4167,"Pet 'n Shape/Pet Ventures ","Y",null,1,null,null,null,null,null,0,0,null,0,0,0,0,0,0,0,1,0,0,0,0,0,0,1,0,0,0,0,0,0,0,0,0,0,0,0,0,0,0,0,0,0,0,0,0,0,0,0,0]
[4773,"Pet N.V by Envision","Y",null,null,null,null,null,null,1,null,null,null,null,null,null,null,null,null,null,1,null,null,1]
[3907,"Pet Naturals of Vermont ","Y",null,1,null,null,null,null,null,0,0,null,0,0,0,0,null,1,1,1,0,0,0,0,0,0,1,0,0,0,0,0,0,0,0,0,0,0,0,0,0,0,1,0,0,null,0,0,0,0,0,0]
[4671,"Pet Pal Distribution Corp","Y",null,null,null,null,null,null,1,null,null,null,null,null,null,1,1]
[700,"Pet Palette LLC ","Y",null,null,null,null,null,null,null,0,1,null,0,0,0,0,0,0,1,1,0,1,1,1,0,1,0,0,1,0,0,0,1,0,1,0,1,0,0,0,0,0,0,0,1,0,0,0,0,0,0,0]
[3609,"Pet Product Innovations  ","Y",null,null,null,null,null,null,null,0,0,null,0,0,0,0,0,0,1,1,0,0,0,0,0,1,0,0,1,0,0,0,0,0,0,0,0,0,0,0,0,0,0,0,1,0,0,0,0,0,0,0]
[3175,"Pet Product News International","Y",null,null,null,null,null,null,null,1]
[1138,"Pet Qwerks","Y",null,null,null,null,null,null,null,0,0,null,0,0,0,1,0,0,1,1,0,0,0,0,0,0,0,0,1,0,0,0,0,0,0,0,0,0,0,0,0,0,0,0,0,0,0,0,0,0,0,0]
[1219,"Pet Rageous Designs Ltd.","Y",null,null,null,null,null,null,null,0,0,null,1,0,0,0,1,0,1,1,0,1,0,0,0,1,0,0,1,0,0,0,0,0,0,0,0,0,0,0,0,0,0,0,0,0,0,0,0,0,0,0]
[322,"Pet Research Labs","Y",null,null,null,null,null,null,null,null,null,null,null,null,null,null,null,null,null,1,null,null,null,null,null,null,null,null,null,null,null,null,null,null,null,null,null,null,null,null,null,null,null,null,null,1]
[2313,"Pet Supply Imports","Y",null,null,null,null,null,null,null,0,0,null,0,0,0,null,0,0,1,1,0,0,1,1,0,1,1,0,1,0,null,0,0,0,0,0,0,0,0,0,0,0,0,0,1,0,0,0,0,0,0,0]
[2209,"PetAg-Well Animal Group","Y",null,null,null,null,null,null,null,0,0,null,0,0,0,1,1,1,1,1,0,0,0,0,1,null,1,1,0,0,0,0,0,0,0,0,0,0,0,0,0,0,1,0,0,0,0,0,0,0,0,0]
[4545,"PetChatz ","Y",null,null,null,null,null,null,1,null,null,null,null,null,null,null,null,null,null,1,null,null,null,null,null,null,null,null,null,null,null,null,null,null,null,null,null,null,null,null,null,null,null,null,null,null,null,null,null,null,1,1]
[3855,"Petchup, Inc.","Y",null,null,null,null,null,null,null,null,null,null,null,null,null,null,null,null,1,1,null,null,null,null,null,null,null,null,null,null,null,null,null,null,null,null,null,null,null,null,null,null,1,null,null,0,0,0,0,0,0,0]
[4011,"Petcurean ","Y",null,1,null,null,null,null,null,0,0,null,0,0,0,0,0,0,1,1,0,0,0,0,1,0,1,0,0,0,0,0,0,0,0,0,0,0,0,0,0,0,1,0,0,0,0,0,0,0,0,0]
[1108,"PetHub Inc. ","Y",null,null,null,null,null,null,null,null,null,null,null,null,null,null,null,null,1,1,null,null,1,1,null,null,null,null,null,null,null,null,null,null,null,null,null,null,null,null,null,null,1,null,null,null,null,null,null,null,1,1]
[3467,"Petkin Pet Care Systems","Y",null,null,null,null,null,null,null,0,0,0,0,0,0,0,1,0,1,1,0,0,0,0,0,0,1,0,0,0,0,0,0,0,0,0,0,0,0,0,0,1,1,1,0,0,0,0,0,null,0,0]
[1323,"Petlou","Y",null,null,null,null,null,null,null,0,0,null,0,0,0,0,0,0,1,1,0,0,0,0,0,0,0,0,1,0,0,0,1,0,0,0,0,0,0,0,0,0,0,0,0,0,0,0,0,0,0,0]
[2935,"Petmate ","Y",null,null,null,null,null,null,null,0,0,null,0,0,0,1,0,0,1,1,0,0,1,0,0,1,1,0,1,0,0,1,1,0,1,1,1,1,1,0,1,0,0,0,0,0,0,0,0,0,0,0]
[1955,"PetMatrix","Y",null,null,null,null,null,null,null,0,0,null,0,0,0,0,0,0,0,1,0,0,0,0,0,0,1,0,0,0,0,0,0,0,0,0,0,0,0,0,0,0,0,0,0,0,0,0,0,0,0,0]
[1271,"Petnovations, Inc.","Y",null,null,null,null,null,null,null,0,0,0,0,0,0,0,0,0,1,0,0,0,0,0,0,0,0,0,0,0,0,0,0,0,0,0,0,0,0,0,1,0,0,0,0,null,null,null,null,1]
[4373,"Petosan AS","Y",null,null,null,null,1,null,null,null,null,null,null,null,null,null,null,null,1,1,null,null,null,null,null,null,null,null,null,null,null,null,null,null,null,null,null,null,null,null,null,1]
[550,"Petote Group","Y",null,null,1,null,null,null,null,0,0,null,0,0,0,0,0,0,0,1,0,0,0,0,0,0,0,0,0,0,0,0,0,0,0,0,1,0,0,0,0,0,0,0,0,0,0,0,0,0,0,0]
[875,"PetPals Group ","Y",null,null,null,null,null,null,null,0,0,null,0,0,0,1,1,0,1,1,0,0,0,0,0,0,0,0,1,0,0,1,1,0,1,0,1,0,0,0,0,0,0,0,0,0,0,0,0,0,0,0]
[301,"Petproducts.com","Y",null,null,null,null,null,null,null,null,null,1,null,null,null,null,null,null,null,null,null,null,null,null,null,null,null,null,null,null,null,null,null,null,null,null,null,null,null,null,null,null,null,null,null,0,0,0,0,0,0,0]
[4470,"PetQuip","Y",null,null,null,null,1,null,null,1,0,0,0,0,0,0,0,0,0,0,0,0,0,0,0,0,0,0,0,0,0,0,0,0,0,0,0,0,0,0,0,0,0,0,0,0,0,0,0,0,0,0]
[1418,"Pet's Area Code, Inc.","Y",null,null,null,null,null,null,null,0,0,0,0,1,0,1,1,0,0,1,0,0,0,0,0,0,0,0,0,0,0,0,0,0,0,0,1,0,1,0,0,0,0,0,0,0,0,0,0,0,0,0]
[3739,"Pets First","Y",null,null,null,null,null,null,null,0,0,0,0,0,0,0,0,0,0,1,0,1,1,0,0,0,0,0,1,0,0,0,0,0,0,0,0,0,0,0,0,0,0,0,0,0,0,0,0,0,0,0]
[1876,"Pets Global ","Y",null,null,null,null,null,null,null,0,0,null,0,0,0,0,0,0,1,1,0,0,0,0,1,0,0,0,0,0,0,0,0,0,0,0,0,0,0,0,0,0,0,0,0,0,0,0,0,0,0,0]
[600,"Pets Stop (Div. of Sunscape Time, Inc.)","Y",null,null,null,null,null,null,null,0,0,null,0,0,0,0,0,0,1,1,0,0,0,0,0,1,0,0,0,0,0,0,0,0,null,1,0,0,0,0,0,0,0,0,0,0,0,0,0,0,0,0]
[2753,"PetSafe ","Y",null,null,null,null,null,null,null,0,0,null,0,0,0,0,0,0,1,1,1,1,1,1,0,1,1,0,1,0,0,0,0,1,1,1,0,0,1,0,1,0,0,0,0,0,1,0,0,0,1,1]
[2117,"Petsport USA","Y",null,null,null,null,null,null,null,0,0,null,1,0,0,0,null,0,1,1,0,0,null,0,0,1,1,0,1,0,null,0,0,0,0,0,0,0,0,0,0,0,0,0,0,0,0,0,0,0,0,0]
[2413,"Petstages, Inc.","Y",null,null,null,null,null,null,null,0,0,0,0,0,0,0,0,0,1,1,0,0,0,0,0,0,0,0,1,0,0,0,0,0,0,0,0,0,0,0,0,0,0,0,0]
[324,"Pettag+","Y",null,null,null,null,null,null,null,null,null,null,null,null,null,null,null,null,null,1,null,null,1,null,null,null,null,null,null,null,null,null,null,null,null,null,null,null,null,null,null,null,null,null,null,null,null,null,null,null,1,1]
[4757,"Pet-Tao, LLC","Y",null,null,null,null,null,null,1,null,null,null,null,null,null,null,null,null,null,1,null,null,null,null,1,null,null,null,null,null,null,null,null,null,null,null,null,null,null,null,null,null,null,null,null,0,0,0,0,0,0,0]
[4201,"Petzlife Products Inc. ","Y",null,1,null,null,null,null,null,0,0,null,0,0,0,0,0,0,1,1,0,0,null,0,0,0,1,0,0,0,0,0,0,0,0,0,0,0,0,0,0,1,1,1,1,0,1,0,0,0,0,0]
[206,"Peudar Enterprise Co","Y",null,null,null,null,null,null,null,0,0,null,0,0,0,null,null,null,1,1,null,1,1,1,null,1,null,null,1,null,null,null,null,1,null,null,1,null,null,0,0,0,0,0,1,0,0,0]
[3924,"Phelps Industries, LLC","Y",null,1,null,null,null,null,null,0,0,0,0,0,0,0,0,0,0,1,0,0,0,0,0,0,1,1,0,0,0,0,0,0,0,0,0,0,0,0,0,1,0,0,0,0,0,0,0,null,0,0]
[2101,"Phillips Pet Food & Supplies ","Y",null,null,null,null,null,null,null,null,1,null,null,1,1,1,1,1,1,1,null,1,1,1,1,1,1,1,1,1,1,1,1,1,1,1,1,1,1,1,1,1,1,1,1,1,1,1,1,1,1]
[1856,"Piddle Place","Y",null,null,null,null,null,null,null,0,0,0,0,0,0,0,0,0,0,1,0,0,0,0,0,0,0,0,0,0,0,0,0,0,0,0,0,0,0,0,0,0,0,0,0,null,null,null,null,1]
[1400,"Pinta International ","Y",null,null,null,null,null,null,null,0,0,null,0,0,0,1,1,0,1,1,0,0,0,0,0,1,0,0,0,0,0,0,1,0,1,0,1,0,1,0,1,0,0,0,0,0,0,0,0,0,0,0]
[635,"Pioneer Pet Products","Y",null,null,null,null,null,null,null,0,0,null,0,null,0,0,0,0,1,null,0,0,0,0,0,1,0,0,1,0,null,1,1,0,1,0,null,0,0,1,1,0,0,0,0,0,0,0,0,0,0,0]
[1356,"Piscine Energetics ","Y",null,null,null,1,null,null,null,0,0,null,0,1,0,0,0,0,0,0,0,0,0,0,0,0,0,0,0,0,0,0,0,0,0,0,0,0,0,0,0,0,0,0,0,0,0,0,0,0,0,0]
[4348,"Pitman Farms, Inc. (Mary's Pet Food)","Y",null,1,null,null,null,null,null,null,null,null,null,null,null,null,null,null,null,1,null,null,null,null,null,null,1]
[4059,"PL360","Y",null,1,null,null,null,null,null,null,null,null,null,null,null,null,null,null,null,1,null,null,null,null,null,null,null,null,null,null,null,null,null,null,null,null,null,null,null,null,null,null,1,null,null,1,1,1]
[566,"Planet Dog ","Y",null,null,null,null,null,null,null,0,0,null,0,0,0,0,0,0,0,1,0,0,1,0,0,1,1,0,1,0,0,0,0,0,0,0,0,0,0,0,0,0,0,0,0,1,0,0,0,0,0,0]
[4777,"Planet Looa","Y",null,null,null,null,null,null,1,null,null,null,null,null,null,null,null,null,null,1,null,null,1,null,null,null,null,null,null,null,null,null,null,null,1,null,null,null,null,null,null,null,null,null,null,0,0,0,0,0,0,0]
[3209,"Planet Pleasures, Inc.","Y",null,null,null,null,null,null,null,0,0,0,0,0,0,1,1,0,1,0,0,0,0,0,0,0,0,0,1,0,0,0,0,0,0,0,0,0,0,0,0,0,0,0,0]
[3286,"PlanetWise Products ","Y",null,null,null,null,null,null,null,0,0,null,0,0,1,1,1,1,1,0,0,0,0,0,0,0,0,0,0,0,0,0,0,0,0,0,0,0,0,1,0,0,0,0,0,0,0,0,0,0,0,0]
[4888,"Plant Pattern Covers ","Y",null,null,null,null,null,null,1,null,null,null,1,null,null,null,null,null,1,1]
[466,"Platinum Pets ","Y",null,null,null,null,null,null,null,0,0,null,0,0,0,0,0,0,1,1,0,1,1,0,0,1,1,0,0,0,0,0,0,0,null,0,0,0,0,0,0,0,0,0,0,0,0,0,0,0,0,0]
[4258,"Plato Pet Treats ","Y",null,1,null,null,null,null,null,0,0,null,0,0,0,0,0,0,0,1,0,0,0,0,0,0,1,0,0,0,0,0,0,0,0,0,0,0,0,0,0,0,1,0,0,0,0,0,0,0,0,0]
[558,"PLAY Pet Lifestyle And You ","Y",null,null,1,null,null,null,null,0,0,null,0,0,0,0,0,0,1,1,0,0,0,0,0,0,0,0,1,0,0,0,0,0,1,0,0,0,0,0,0,0,0,0,0,0,0,0,0,0,0,0]
[4035,"PLB International, Inc.","Y",null,1,null,null,null,null,null,null,null,null,null,null,null,null,null,null,1,1,null,null,null,null,1,null,null,null,null,null,null,null,null,null,null,null,null,null,null,null,null,null,null,null,null,0,0,0,0,0,0,0]
[3081,"PlexiDor Performance Pet Doors","Y",null,null,null,null,null,null,null,0,0,null,0,0,0,0,0,0,1,1,0,0,0,0,0,0,0,0,0,0,0,0,0,0,0,1,0,0,0,0,0,0,0,0,0,0,0,0,0,0,1,0]
[3681,"PM and J, LLC","Y",null,null,null,null,null,null,null,0,0,0,0,0,0,0,0,0,0,1,0,1,0,0,0,0,0,0,0,0,0,0,0,0,1,0,1,0,0,0,0,0,0,0,0]
[4379,"Pod Trackers","Y",null,null,null,null,1,null,null,null,null,null,null,null,null,null,null,null,1,1,null,null,1,null,null,null,null,null,null,null,null,null,null,null,null,null,null,null,null,null,null,null,null,null,null,null,null,null,null,null,1,1]
[1918,"Polly's Pet Products, Inc.","Y",null,null,null,null,null,null,null,null,null,null,null,null,null,1,null,null,null,null,null,null,null,null,null,null,null,null,null,null,null,null,null,null,null,null,null,null,null,null,null,null,null,null,null,0,0,0,0,0,0,0]
[577,"Pooch Outfitters ","Y",null,null,null,null,null,null,null,0,0,null,0,0,0,0,0,0,0,1,0,1,1,0,0,0,0,0,0,0,0,0,0,0,0,0,0,0,0,0,0,0,0,0,0,0,0,0,0,0,0,0]
[516,"PoochieBells","Y",null,null,1,null,null,null,null,0,0,null,1,0,0,0,0,0,0,1,0,0,1,0,0,0,0,0,0,0,0,0,0,null,0,0,0,0,0,0,0,0,1,0,1,null,1,1,0,0,0,0]
[2618,"PoochPad Products (Microfine, Inc.)","Y",null,null,null,null,null,null,null,null,null,null,null,null,null,null,null,null,null,1,null,null,null,null,null,1,null,null,null,null,null,null,null,null,1,null,null,null,null,null,null,null,null,null,null,null,1,null,1]
[775,"PoogoStick ","Y",null,null,null,null,null,null,null,null,null,null,null,null,null,null,null,null,1,1,null,null,null,null,null,null,null,null,null,null,null,null,null,null,null,null,null,null,null,null,1,null,null,null,null,null,null,null,null,1]
[2576,"PoopBags.com ","Y",null,null,null,null,null,null,null,0,0,null,0,0,0,0,0,0,0,1,0,0,0,0,0,0,0,0,0,0,0,0,0,0,0,0,0,0,0,0,0,0,0,0,0,0,0,0,0,1,0,0]
[1785,"PortablePET","Y",null,null,null,null,null,null,null,0,0,0,0,0,0,0,0,0,0,1,0,0,0,0,0,1,0,0,0,0,0,0,0,0,0,0,0,1,0,0,0,0,0,0,0]
[4879,"Portacool","Y",null,null,null,null,null,null,1,null,null,null,null,null,null,null,null,null,null,1,null,null,null,null,null,null,null,null,null,null,null,null,null,null,null,null,null,null,null,null,null,null,null,null,1]
[435,"Posh Paws","Y",null,null,1,null,null,null,null,null,null,null,null,null,null,null,null,null,null,1,null,null,1,null,null,1,null,null,1,null,null,null,null,null,null,null,1,null,null,null,null,1,null,null,null,1,null,1,1,1]
[2789,"Prairie Dog Antlers and Prairie Dog Treats","Y",null,null,null,null,null,null,null,0,0,null,0,0,0,0,0,0,0,1,0,0,null,0,0,0,1,0,0,0,0,0,0,0,0,0,0,0,0,0,0,0,0,0,0,0,0,0,0,0,0,0]
[1908,"Precious Cat","Y",null,null,null,null,null,null,null,0,0,null,0,0,0,0,0,0,1,0,0,0,0,0,0,0,0,0,0,0,0,0,0,0,0,0,0,0,0,1,0,0,0,0,0,0,0,0,0,0,0,0]
[4121,"Precise Pet Products ","Y",null,1,null,null,null,null,null,0,0,null,0,0,0,0,0,0,1,1,0,0,0,0,1,0,1,0,0,0,0,0,0,0,0,0,0,0,0,0,0,0,0,0,0,0,0,0,0,0,0,0]
[3767,"Precision Pet Products ","Y",null,null,null,null,null,null,null,0,0,null,0,0,0,0,1,0,1,1,0,0,0,0,0,0,0,0,0,0,0,0,0,1,1,0,1,1,1,0,0,0,0,0,1,0,0,0,1,1,null,0]
[4845,"Prefer Pets ","Y",null,null,null,null,null,null,1,null,null,null,null,null,null,null,null,null,null,1,null,null,null,null,null,null,null,null,null,null,null,null,null,null,null,null,1]
[1183,"Premium Pet Health ","Y",null,null,null,null,null,null,null,0,0,null,0,0,0,0,0,0,0,1,0,0,0,0,0,0,1,0,0,0,0,0,0,0,0,0,0,0,0,0,0,0,0,0,0,0,0,0,0,0,0,0]
[520,"Preppy Puppy Bakery ","Y",null,null,1,null,null,null,null,0,0,null,0,0,0,0,0,0,0,1,0,0,0,0,0,0,1,0,0,0,0,0,0,0,0,0,0,0,0,0,0,0,0,0,0,0,0,0,0,0,0,0]
[440,"Preston Leather","Y",null,null,1,null,null,null,null,0,0,null,1,0,0,0,0,0,1,1,0,0,1,0,0,0,0,0,0,0,0,0,0,0,0,0,0,0,0,0,0,0,0,0,0,0,0,0,0,0,0,0]
[3267,"Prevue Pet Products","Y",null,null,null,null,null,null,null,0,0,null,0,0,1,1,1,0,1,1,0,0,1,0,0,1,0,0,null,0,0,0,0,1,0,0,1,1,0,0,0,0,0,0,0,0,0,0,0,null,null,0]
[3367,"Prevue Pet Products","Y",null,null,null,null,null,null,null,0,0,null,0,0,1,1,1,0,1,1,0,0,1,0,0,1,0,0,null,0,0,0,0,1,0,0,1,1,0,0,0,0,0,0,0,0,0,0,0,null,null,0]
[575,"PrideBites","Y",null,null,null,null,null,null,null,null,null,null,null,null,null,null,null,null,null,1,null,1,1,null,null,null,null,null,1,null,null,null,null,null,1]
[4358,"Primal Pet Foods","Y",null,1,null,null,null,null,null,0,0,null,0,0,0,0,0,0,1,1,0,0,0,0,1,0,1,0,0,0,0,0,0,0,0,0,0,0,0,0,0,0,0,0,0,0,0,0,0,0,0,0]
[3851,"Primetime Petz ","Y",null,null,null,null,null,null,null,0,0,null,0,0,0,0,0,0,0,1,0,0,0,0,0,0,0,0,0,0,0,0,1,0,1,1,0,0,null,0,0,0,0,0,0,0,0,0,0,0,0,0]
[4549,"Prince Lorenzo's Royal Treatment","Y",null,null,null,null,null,null,1,null,null,null,null,null,null,null,null,null,null,1,null,null,1,null,null,null,null,null,null,null,null,null,null,null,null,null,null,null,null,null,null,null,null,null,null,1,0,1,0,0,0,0]
[1243,"Pro Clear Aquatic Systems, Inc.","Y",null,null,null,1,null,null,null,0,0,0,0,1,1,0,0,0,0,0,0,0,0,0,0,0,0,0,0,0,0,0,0,0,0,0,0,0,0,0,0,0,0,0,0]
[3527,"Professional Pet Products","Y",null,null,null,null,null,null,null,0,0,null,0,0,0,1,1,0,1,1,0,0,0,0,0,0,null,0,0,0,0,0,0,0,0,0,0,0,0,0,0,1,1,1,0,1,1,1,0,0,0,0]
[4659,"Proveedora La Perla S.A. de C.V.","Y",null,null,null,null,null,null,1,null,null,null,null,null,null,null,null,null,null,1,null,null,null,null,1,null,1]
[4974,"Pujiang Eyepeta Pet Products Co., Ltd.","Y",null,null,null,null,null,null,1,null,null,null,null,null,null,null,null,null,null,1,null,null,1,null,null,null,null,null,null,null,null,null,null,null,null,null,null,null,null,null,null,null,null,null,null,0,0,0,0,0,0,0]
[424,"Puppia Intl, Inc. (Fashion Factory Co. Ltd.)","Y",null,null,1,null,null,null,null,0,0,null,0,0,0,0,0,0,0,1,0,1,1,0,0,0,0,0,1,0,0,0,0,0,1,0,1,0,0,0,0,0,0,0,0,0,0,0,0,0,0,0]
[2481,"Puppy Bumpers, Inc.","Y",null,null,null,null,null,null,null,0,0,0,0,0,0,0,0,0,0,1,0,0,1,0,0,0,0,0,0,0,0,0,0,1,0,0,0,0,0,0,0,0,0,0,0,0,0,0,0,0,0,0]
[4257,"Puppy Cake","Y",null,1,null,null,null,null,null,0,0,0,0,0,0,0,0,0,0,1,0,0,0,0,0,0,1,0,0,0,0,0,0,0,0,0,0,0,0,0,0,0,0,0,0]
[4674,"Puppy Yummy, Inc.","Y",null,null,null,null,null,null,1,null,null,null,null,null,null,null,null,null,null,1,null,null,null,null,null,null,1]
[448,"PupSaver","Y",null,null,1,null,null,null,null,null,null,null,null,null,null,null,null,null,null,1,null,null,null,null,null,null,null,null,null,null,null,null,null,null,null,null,1,1,null,null,null,null,null,null,null,0,0,0,0,0,0,0]
[3956,"Pure Treats Inc. ","Y",null,1,null,null,null,null,null,0,0,null,0,0,0,0,0,0,1,1,0,0,0,0,0,0,1,0,0,0,0,0,0,0,0,0,0,0,0,0,0,0,0,0,0,0,0,0,0,0,0,0]
[3912,"PureLife 4 Pets (Vetimed) ","Y",null,1,null,null,null,null,null,0,0,null,0,0,0,0,0,0,1,1,0,0,0,0,0,0,0,0,0,0,0,0,0,0,0,0,0,0,0,0,0,0,1,0,0,0,0,0,0,0,0,0]
[878,"Push Pushi","Y",null,null,null,null,null,null,null,0,0,0,0,0,0,0,0,0,0,1,0,1,0,0,0,0,0,0,0,0,0,0,0,0,0,0,0,0,0,0,0,0,0,0,0,0,0,0,0,0,0,0]
[1348,"Python Products","Y",null,null,null,1,null,null,null,0,0,null,0,1,1,0,1,0,0,0,0,0,0,0,0,0,0,0,0,0,0,0,0,0,0,0,0,0,0,0,0,0,0,0,0,0,0,0,0,0,0,0]
[4293,"Qingdao Hongbo Import & Export Co.","Y",null,null,null,null,1,null,null,null,null,1,null,null,null,null,null,null,1,1,null,null,null,null,1]
[1688,"Qingdao Ideal Jingmao Co., Ltd.","Y",null,null,null,null,null,null,null,0,0,0,0,0,0,0,0,0,1,1,0,0,0,0,1,0,1,0,0,0,null,0,0,0,0,0,0,0,1,1,0,0,0,0,0,0,0,0,0,0,0,0]
[3854,"Qingdao Kingstar International Co.","Y",null,null,null,null,null,null,null,0,0,0,0,0,0,0,0,0,1,1,0,0,1,0,0,0,0,1,1,0,0,0,0,0,0,0,0,0,0,1,1,0,0,0,0]
[323,"Qingdao Magic Pet Products Co., Ltd.","Y",null,null,null,null,null,null,null,null,null,null,null,null,null,null,null,null,1,1,null,null,null,null,null,null,1,null,1,null,1,null,null,null,1,null,null,null,1,1,null,1,null,null,1,1,1,0,0,0,0,0]
[485,"Qingdao Myjian Foodstuff Co., Ltd.","Y",null,null,null,null,null,null,null,0,0,0,0,0,0,0,0,0,1,1,0,0,0,0,1,0,1,0,0,0,0,0,0,0,0,0,0,0,0,0,0,0,0,0,0]
[4285,"Qingdao Qifeng Chemical Co., Ltd.","Y",null,null,null,null,1,null,null,null,null,null,null,null,null,null,null,null,1,null,null,null,null,null,null,null,null,null,null,null,null,null,null,null,null,null,null,null,null,1]
[4390,"Qingdao Shunchi Plastic Packing Co.","Y",null,null,null,null,1,null,null,null,null,1,null,null,null,null,null,null,null,null,null,null,null,null,null,null,null,null,null,null,null,null,null,null,null,null,null,null,null,null,null,null,null,null,null,0,0,0,0,0,0,0]
[2841,"QT Dog","Y",null,null,null,null,null,null,null,0,0,null,1,0,0,1,1,0,1,1,0,0,1,0,0,1,1,0,0,0,0,0,0,0,1,0,0,0,0,0,0,1,0,0,0,0,0,0,0,0,0,0]
[2735,"Quaker Pet Group","Y",null,null,null,null,null,null,null,0,0,null,0,0,0,0,0,0,1,1,0,1,1,0,0,1,0,0,1,0,1,0,0,0,1,0,1,1,0,0,0,1,1,0,0,0,0,0,0,0,0,0]
[959,"Quick-Tag ","Y",null,null,null,null,null,null,null,null,null,null,null,null,null,null,null,null,1,1,null,null,null,1]
[1554,"R&J Enterprises","Y",null,null,null,1,null,null,null,0,0,0,0,1,0,0,0,0,0,0,0,0,0,0,0,0,0,0,0,0,0,0,0,0,0,0,0,0,0,0,0,0,0,0,0,0,0,0,null,0,0,0]
[3516,"R. Sabee Company, LLC / Draper Prod.","Y",null,null,null,null,null,null,null,0,0,0,0,0,0,1,1,0,1,1,0,0,0,0,0,1,0,0,0,0,0,0,0,0,0,0,0,0,0,0,0,0,0,0,0,0,0,0,1,0,0,0]
[1079,"R2P Pet Ltd.","Y",null,null,null,null,null,null,null,0,0,null,0,0,0,0,0,0,1,1,0,1,0,0,0,1,null,1,1,0,null,1,1,0,null,0,0,0,0,0,1,0,0,0,1,0,0,0,0,1,null,0]
[1089,"R2P Pet Ltd.","Y",null,null,null,null,null,null,null,0,0,null,0,0,0,0,0,0,1,1,0,1,0,0,0,1,null,1,1,0,null,1,1,0,null,0,0,0,0,0,1,0,0,0,1,0,0,0,0,1,null,0]
[4213,"Rad Cat Raw Diet","Y",null,1,null,null,null,null,null,0,0,0,0,0,0,0,0,0,1,0,0,0,0,0,1,0,0,0,0,0,0,0,0,0,0,0,0,0,0,0,0,0,0,0,0]
[584,"Rasta Imposta","Y",null,null,null,null,null,null,null,0,0,null,0,0,0,0,0,0,0,1,0,1,0,0,0,0,0,0,0,0,0,0,0,0,0,0,0,0,0,0,0,0,0,0,0,0,0,0,0,0,0,0]
[3510,"Ray-Pet","Y",null,null,null,null,null,null,null,null,null,null,null,null,null,null,null,null,null,1,null,null,null,null,null,null,null,null,null,null,null,null,null,null,null,null,null,null,null,null,null,null,null,null,1,0,0,0,0,0,0,0]
[743,"RC Pet Products ","Y",null,null,null,null,null,null,null,0,0,null,0,0,0,0,0,0,1,1,0,1,1,0,0,1,0,0,0,0,0,0,0,0,null,0,0,1,0,0,0,0,1,0,0,0,0,0,0,0,0,0]
[583,"Read Exhibitions & Consulting, Asia","Y",null,null,null,null,null,null,null,0,0,1,0,0,0,0,0,0,0,0,0,0,0,0,0,0,0,0,0,0,0,0,0,0,0,0,0,0,0,0,0,0,0,0,0]
[3114,"Real Innovators","Y",null,null,null,null,null,null,null,0,0,null,0,0,0,0,0,0,1,1,0,0,1,0,0,0,0,0,1,0,0,0,0,0,0,0,0,0,0,0,0,0,0,0,0,0,0,0,0,0,0,0]
[4781,"Red Products Company","Y",null,null,null,null,null,null,1,null,null,null,null,1,null,null,null,null,null,null,null,null,null,null,null,null,null,null,null,null,null,null,null,null,null,null,null,null,null,null,null,null,null,null,null,0,0,0,0,0,0,0]
[1015,"Red River Commodities","Y",null,null,null,null,null,null,null,0,0,null,0,0,0,1,0,0,0,null,0,null,0,0,0,0,0,0,0,0,0,0,0,0,0,0,0,0,0,0,0,0,0,0,0,0,0,0,null,0,0,0]
[1458,"Red Sea","Y",null,null,null,1,null,null,null,0,0,0,0,1,0,0,0,0,0,0,0,0,0,0,0,0,0,0,0,0,0,0,0,0,0,0,0,0,0,0,0,0,0,0,0,null,null,0,0,0,0,0]
[1167,"Redbarn Pet Products ","Y",null,null,null,null,null,null,null,0,0,null,0,0,0,0,0,0,1,1,0,0,0,0,1,0,1,1,0,0,0,0,0,0,0,0,0,0,0,0,0,0,0,0,0,0,0,0,0,0,0,0]
[3415,"Rehydrate, dba River City Pet Products","Y",null,null,null,null,null,null,null,null,null,null,null,null,null,null,null,null,null,1,null,null,null,null,null,null,null,null,null,null,null,null,null,null,null,null,null,null,null,null,null,null,1]
[4445,"Reliq Pet LLC","Y",null,1,null,null,null,null,null,0,0,0,0,0,0,0,0,0,0,1,0,0,0,0,0,0,0,0,0,0,0,0,0,0,0,0,0,0,0,0,0,0,0,0,0,1,1]
[4956,"Remarkabowl LLC ","Y",null,null,null,null,null,null,1,null,null,null,1,null,null,null,null,null,1,1,null,null,null,null,null,1]
[2485,"Replenish Pet, Inc. ","Y",null,null,null,null,null,null,null,null,null,null,null,null,null,null,null,null,1,1,null,null,null,null,1]
[4979,"REPLUS","Y",null,null,null,null,null,null,1,null,null,null,null,null,null,null,null,null,1,1,null,null,null,null,null,1,null,null,null,null,null,null,1]
[909,"Resco Pet Products ","Y",null,null,null,null,null,null,null,0,0,null,0,0,0,0,0,0,1,1,0,0,1,0,0,0,0,0,0,0,0,0,0,0,0,0,0,0,0,0,0,0,1,0,1,0,0,0,0,0,0,0]
[221,"Response Products","Y",null,null,null,null,null,null,null,null,null,null,null,null,null,null,null,1,null,1,null,null,null,null,null,null,null,null,null,null,null,null,null,null,null,null,null,null,null,null,null,null,1]
[4552,"Re-Think It, Inc.","Y",null,null,null,null,null,null,1,null,null,null,null,null,null,null,null,null,null,1,null,null,null,null,null,null,null,null,null,null,null,null,null,null,null,null,null,null,1]
[580,"Retro Pets","Y",null,null,null,null,null,null,null,null,null,null,1,null,null,null,null,null,null,null,null,null,null,null,null,null,null,null,null,null,null,null,null,null,null,null,null,null,null,null,null,null,null,null,null,0,0,0,0,0,0,0]
[2915,"Richell USA Inc. ","Y",null,null,null,null,null,null,null,0,0,null,0,0,0,0,1,0,1,1,0,0,0,0,0,1,0,0,0,0,0,0,1,1,1,1,1,0,1,0,0,0,0,0,0,0,0,0,1,0,0,0]
[4651,"Robely Trading, Inc.","Y",null,null,null,null,null,null,1,null,null,null,null,null,null,null,null,null,1,1,null,null,null,null,null,1,null,null,null,null,null,null,null,null,null,null,null,null,null,null,null,null,null,null,null,0,0,0,0,0,0,0]
[3189,"ROGZ (Pty) Ltd.","Y",null,null,null,null,null,null,null,0,0,0,1,0,0,0,0,0,1,1,0,0,1,0,0,0,0,0,0,0,0,0,0,0,0,0,0,0,0,0,0,0,0,0,0,0,0,0,0,0,0,0]
[455,"ROKstraps","Y",null,null,1,null,null,null,null,0,0,0,0,0,0,0,0,0,0,1,0,0,1,0,0,0,0,0,0,0,0,0,0,0,0,0,0,0,0,0,0,0,0,0,0,0,0,0,0,0,0,0]
[2701,"Rolf C. Hagen (USA) Corp. ","Y",null,null,null,null,null,null,null,0,0,null,0,1,1,1,1,0,1,1,0,1,1,1,1,1,1,1,1,0,1,1,1,1,1,0,1,1,null,0,1,1,0,0,1,1,1,0,1,1,0,0]
[223,"Royal Animals Ltd.","Y",null,null,null,null,null,null,null,null,null,null,1,null,null,null,null,null,null,1,null,1,1,null,null,null,null,null,1,null,null,null,null,null,1]
[2815,"Royal Canin USA, Inc.","Y",null,null,null,null,null,null,null,0,0,0,0,0,0,0,0,0,1,1,0,0,0,0,1,0,1,0,0,0,0,0,0,0,0,0,0,0,0,0,0,0,0,0,0]
[3307,"Royal Pet Inc. ","Y",null,null,null,null,null,null,null,0,0,null,0,0,0,0,0,0,1,1,0,1,1,0,0,1,1,0,1,0,0,0,0,0,1,0,0,0,0,0,1,0,0,0,1,0,1,0,0,1,0,0]
[3700,"RPM Inc./Drymate","Y",null,null,null,null,null,null,null,0,0,null,0,1,0,0,0,0,1,1,0,0,0,0,0,1,0,0,0,0,0,0,0,0,1,0,0,0,0,0,1,0,0,0,0,0,0,0,0,0,0,0]
[535,"Rubie's Costume Company ","Y",null,null,1,null,null,null,null,0,0,null,null,0,0,0,0,0,1,1,0,1,1,0,0,0,0,0,0,0,0,0,0,0,0,0,0,0,0,0,0,0,0,0,0,0,0,0,0,0,0,0]
[778,"Ruby Reef, Inc. / Pet Home Products","Y",null,null,null,null,null,null,null,0,0,null,0,1,1,1,1,0,1,1,0,0,0,0,0,0,0,0,0,0,0,0,0,0,0,0,0,0,0,0,0,0,null,0,0,0,1,0,0,0,0,0]
[3801,"Ruff Dawg ","Y",null,null,null,null,null,null,null,0,0,null,0,0,0,0,0,0,0,1,0,0,0,0,0,0,0,0,1,0,0,0,0,0,0,0,0,0,0,0,0,0,0,0,0,0,0,0,0,0,0,0]
[3186,"Ruff Rider Technology, LLC","Y",null,null,null,null,null,null,null,null,null,null,null,null,null,null,null,null,null,1,null,null,1,null,null,1,null,null,null,null,null,null,null,null,null,null,null,1]
[1681,"RuffWear","Y",null,null,null,null,null,null,null,0,0,null,0,0,0,0,0,0,0,1,0,1,1,0,0,1,1,0,1,0,0,0,0,0,1,0,0,0,0,0,0,0,null,0,0,0,0,0,0,0,0,0]
[4370,"Rufus & Coco Pty Ltd.","Y",null,null,null,null,1,null,null,null,null,null,null,null,null,1,null,1,1,1,null,null,1,1,null,null,null,null,null,null,null,null,null,null,null,null,null,null,null,1,null,null,null,1,null,1]
[1141,"Rugao Lanbiao Pet Products Co., Ltd.","Y",null,null,null,null,null,null,null,null,null,null,null,null,null,null,null,null,1,1,null,1,null,null,null,null,1,null,1,null,1,1,1,null,1,null,null,null,null,null,null,null,null,null,null,0,0,0,0,0,0,0]
[3343,"Rush Direct","Y",null,null,null,null,null,null,null,0,0,null,0,0,0,0,0,1,1,1,0,0,0,0,1,1,1,0,0,0,0,0,0,0,0,0,0,0,0,0,0,0,0,0,0,0,0,0,0,0,0,0]
[1581,"SafeMade Pet Products ","Y",null,null,null,null,null,null,null,0,0,null,0,0,0,1,1,0,1,1,0,0,0,0,0,1,1,0,1,0,0,0,0,0,0,0,0,0,0,0,0,0,0,0,0,0,0,0,0,0,0,0]
[1815,"Salix Animal Health, LLC","Y",null,null,null,null,null,null,null,0,0,0,0,0,0,0,0,0,0,1,0,0,0,0,0,0,0,1,0,0,0,0,0,0,0,0,0,0,0,0,0,0,0,0,0]
[4292,"Sammoon Lighting & Electrical Co., Ltd.","Y",null,null,null,null,1,null,null,null,null,null,null,1]
[1548,"San Francisco Bay Brand Inc. ","Y",null,null,null,1,null,null,null,0,0,null,0,1,1,1,0,0,0,0,0,0,0,0,0,0,0,0,0,0,0,0,0,0,0,0,0,0,0,0,0,0,0,0,0,0,0,0,0,0,0,0]
[1975,"Sauder Woodworking Co.","Y",null,null,null,null,null,null,null,null,null,null,null,1,null,null,null,null,1,1,null,null,null,null,null,null,null,null,null,null,null,null,1]
[4553,"Savic NV","Y",null,null,null,null,null,null,1,null,null,null,null,1,null,1,1,null,1,1,null,null,null,null,null,1,null,null,null,null,null,null,null,null,null,1,1,null,null,null,1,null,null,null,null,null,1,null,1]
[876,"Sawyer Pet Products Co., Ltd.","Y",null,null,null,null,null,null,null,null,null,null,null,null,null,null,null,null,null,1,null,null,null,null,null,1,null,null,null,null,null,null,null,null,null,null,null,null,null,null,null,null,null,null,null,0,0,0,0,0,0,0]
[1914,"Scarlett","Y",null,null,null,null,null,null,null,0,0,0,0,0,0,1,1,0,0,0,0,0,0,0,0,0,0,0,0,0,0,0,0,0,0,0,0,0,0,0,0,0,0,0,0]
[872,"Scoochie Pet Products","Y",null,null,null,null,null,null,null,null,null,null,1,null,null,null,null,null,null,1,null,null,null,null,null,null,null,1,1,null,null,null,null,null,null,null,1,null,null,null,null,null,null,null,null,0,0,0,0,0,0,0]
[1701,"Scott Pet ","Y",null,null,null,null,null,null,null,0,0,null,0,0,0,1,1,0,1,1,0,0,1,1,null,1,1,1,1,0,1,0,0,1,1,null,1,1,null,0,0,0,0,1,1,0,0,0,0,0,null,0]
[2881,"Scruffs","Y",null,null,null,null,null,null,null,0,0,0,0,0,0,0,0,0,1,1,0,0,0,0,0,0,0,0,0,0,0,0,0,0,1,0,0,0,0,0,0,0,0,0,1,0,0,0,0,0,0,0]
[1555,"Seachem Laboratories Inc. ","Y",null,null,null,1,null,null,null,0,0,null,0,1,0,0,0,0,0,0,0,0,0,0,0,0,0,0,0,0,0,0,0,0,0,0,0,0,0,0,0,0,0,0,0,0,0,0,0,0,0,0]
[554,"Sebastian & Co. Collar & Saddlery ","Y",null,null,1,null,null,null,null,0,0,null,0,0,0,0,0,1,0,1,0,0,1,0,0,0,0,0,0,0,0,0,0,0,0,0,0,0,0,0,0,0,0,0,0,0,0,0,0,0,0,0]
[217,"Seldovia Wild LLC","Y",null,null,null,null,null,null,null,null,null,null,null,null,null,null,null,null,null,1,null,null,null,null,null,null,1]
[3746,"Select-A-Vision","Y",null,null,null,null,null,null,null,0,0,0,1,0,0,0,0,0,0,0,0,0,0,0,0,0,0,0,0,0,0,0,0,0,0,0,0,0,0,0,0,0,0,0,0]
[1754,"SERA North America, Inc.","Y",null,null,null,1,null,null,null,null,null,null,null,1,null,null,null,null,null,null,null,null,null,null,null,null,null,null,null,null,null,null,null,null,null,null,null,null,null,null,null,null,null,null,null,0,0,0,0,0,0,0]
[1675,"Serta Pet Beds","Y",null,null,null,null,null,null,null,0,0,0,0,0,0,0,0,0,0,1,0,0,0,0,0,0,0,0,0,0,0,0,0,0,1,0,0,0,0,0,0,0,0,0,0,0,0,0,0,0,0,0]
[1238,"SevenPorts ","Y",null,null,null,1,null,null,null,0,0,null,0,1,0,0,0,0,0,0,0,0,0,0,0,0,0,0,0,0,0,0,0,0,0,0,0,0,0,0,0,0,0,0,0,0,0,0,0,0,0,0]
[685,"Shandong Honva Food Co., Ltd.","Y",null,null,null,null,null,null,null,0,0,0,0,0,0,0,0,0,0,1,0,0,0,0,0,0,1,0,0,0,0,0,0,0,0,0,0,0,0,0,0,0,0,0,0,0,0,0,null,0,0,0]
[2085,"Shandong Jingxin Non-woven Products ","Y",null,null,null,null,null,null,null,0,0,0,0,0,0,0,0,0,0,1,0,0,0,0,0,0,0,0,0,0,0,0,0,0,0,0,0,0,0,0,0,0,0,0,0,null,null,null,1]
[4489,"Shanghai Bohe Textiles Co., Ltd.","Y",null,null,null,null,1]
[4492,"Shanghai Langyi Enterprise Develop.","Y",null,null,null,null,1,null,null,null,null,null,null,null,null,null,null,null,1,1,null,null,1,null,null,null,null,null,1,null,null,null,null,null,null,null,null,null,null,null,null,null,null,null,1]
[216,"Shanghai Neway Animal Health Co","Y",null,null,null,null,null,null,null,null,null,null,null,null,null,null,null,null,1,1,null,null,null,null,null,null,null,null,null,null,null,null,null,null,null,null,null,null,null,null,null,null,1,1,null,1]
[4885,"Shanghai Petlot Pet Products Co., Ltd.","Y",null,null,null,null,null,null,1,null,null,null,null,null,null,null,null,null,null,1,null,null,null,null,null,1,null,null,null,null,null,null,null,null,null,null,null,null,null,null,null,null,null,null,1]
[4590,"Shanghai Rongxin Hardware Factory","Y",null,null,null,null,null,null,1,null,null,null,null,null,null,null,null,null,null,1,null,null,1,null,null,null,null,null,null,null,null,null,null,1,null,null,null,null,null,null,null,null,null,null,null,0,0,0,0,0,0,0]
[1773,"Shanghai Senful Pet Products Co., Ltd.","Y",null,null,null,null,null,null,null,0,0,0,0,1,0,1,1,1,1,1,0,1,1,0,0,1,0,0,1,0,0,1,1,0,1,0,1,0,1,0,0,0,0,0,0]
[4288,"Shanghai Soloveme International Trading","Y",null,null,null,null,1,null,null,null,null,null,null,null,null,null,null,null,null,1,null,1,1,null,null,null,null,null,1,null,null,null,null,null,1,null,null,null,null,null,null,null,null,null,null,0,0,0,0,0,0,0]
[782,"Shanghai Yixiao Pet Product Co., Ltd.","Y",null,null,null,null,null,null,null,0,0,0,0,0,0,0,0,0,1,1,0,0,1,0,0,0,0,0,0,0,0,0,0,0,0,0,0,0,0,0,0,0,0,0,0]
[3581,"Shanghai Yume International Trading ","Y",null,null,null,null,null,null,null,null,null,null,null,null,null,null,null,null,1,1,null,1,null,null,null,null,1,null,1,null,null,null,null,null,1]
[4491,"Shanghai Zhongxin Yuxiang Chemical","Y",null,null,null,null,1,null,null,null,null,null,null,null,null,null,null,null,1,null,null,null,null,null,null,null,null,null,null,null,null,null,null,null,null,null,null,null,null,1]
[1585,"Shenzhen Jia Yi Yang Electronics Co., Ltd.","Y",null,null,null,null,null,null,null,null,null,null,null,null,null,null,null,null,null,1,null,null,1]
[784,"Shenzhen Mall Vanguard Paper Product","Y",null,null,null,null,null,null,null,null,null,null,null,null,null,null,null,null,1,null,null,null,null,null,null,null,null,null,null,null,null,1,1]
[870,"Shenzhen Yufeng Technology Co., Ltd.","Y",null,null,null,null,null,null,null,null,null,null,null,null,null,null,null,null,null,1,null,null,1,null,null,null,null,null,null,null,null,null,null,1,null,null,null,null,null,null,null,null,null,null,null,null,null,null,null,null,1]
[4556,"shoo!TAG I OBug!Zone","Y",null,null,null,null,null,null,1,null,null,null,null,null,null,null,null,1,1,1,null,null,1,null,null,null,null,null,null,null,null,null,null,null,null,null,null,null,null,null,null,null,null,1,null,0,0,0,0,0,1,0]
[1240,"Sicce USA","Y",null,null,null,1,null,null,null,0,0,0,0,1,0,0,0,0,0,0,0,0,0,0,0,0,0,0,0,0,0,0,0,0,0,0,0,0,0,0,0,0,0,0,0]
[3480,"Sievers Pet Care, LLC","Y",null,null,null,null,null,null,null,null,null,null,null,null,null,null,null,null,null,1,null,null,null,null,null,null,null,null,null,1]
[210,"SiliDog - The Silent Pet Tag","Y",null,null,null,null,null,null,null,null,null,null,1,null,null,null,null,null,null,1,null,null,null,1]
[670,"Silver Paw ","Y",null,null,null,null,null,null,null,0,0,null,0,0,null,0,0,0,0,1,0,1,1,0,0,0,0,0,0,0,0,0,0,0,0,0,0,0,0,0,0,0,0,0,0,0,0,1,0,0,0,0]
[706,"Simply Fido LLC ","Y",null,null,null,null,null,null,null,0,0,null,0,0,0,0,0,0,0,1,0,0,0,0,0,1,0,0,1,0,0,0,0,0,1,0,0,null,0,0,0,0,0,0,0,0,0,0,0,0,0,0]
[445,"Sleepypod ","Y",null,null,1,null,null,null,null,null,null,null,null,null,null,null,1,null,1,1,null,null,1,null,null,1,null,null,null,null,null,null,null,null,1,null,1,1,null,null,null,null,null,null,null,null,1]
[3607,"SmartLeash","Y",null,null,null,null,null,null,null,null,null,null,null,null,null,null,null,null,null,1,null,null,1]
[3805,"SmartPractice ","Y",null,null,null,null,null,null,null,0,0,null,0,0,0,0,0,0,1,1,0,1,0,0,0,0,0,0,0,0,0,0,0,0,0,0,0,0,0,0,0,1,1,0,1,1,0,1,0,0,0,0]
[3200,"Smokehouse Pet Products ","Y",null,null,null,null,null,null,null,0,0,null,0,0,0,0,0,0,0,1,0,0,1,0,0,0,1,0,0,0,0,0,0,0,0,0,0,0,0,0,0,null,null,0,null,null,0,null,0,0,0,0]
[4775,"Smoochy Poochy, Inc.","Y",null,null,null,null,null,null,1,null,null,null,null,null,null,null,null,null,null,1,null,null,1,null,null,null,null,null,null,null,null,null,null,null,null,null,null,null,null,null,null,null,null,null,null,0,0,0,0,0,0,0]
[2491,"Snuggle Pet Products","Y",null,null,null,null,null,null,null,null,null,null,1,null,null,null,null,null,1,1,null,null,1,null,null,null,null,null,1,null,null,null,null,null,1]
[4104,"So Bright, LLC","Y",null,1,null,null,null,null,null,0,0,0,0,0,0,0,0,0,1,1,0,0,0,0,1,0,0,0,0,0,0,0,0,0,0,0,0,0,0,0,0,0,0,0,0,0,0,0,0,0,0,0]
[3817,"Soggy Doggy Productions","Y",null,null,null,null,null,null,null,0,0,0,0,0,0,0,0,0,0,1,0,0,0,0,0,1,0,0,0,0,0,0,0,0,0,0,0,0,0,0,0,0,0,0,0]
[4359,"Sojos ","Y",null,1,null,null,null,null,null,0,0,null,0,0,0,0,0,0,1,1,0,0,0,0,1,0,1,0,0,0,1,0,0,0,0,0,0,0,0,0,0,0,0,0,0,0,0,0,0,0,0,0]
[3274,"Soleil China Ltd.","Y",null,null,null,null,null,null,null,null,null,null,1,null,null,1,1,null,1,1,null,1,1,1,null,1,1,1,1,null,1,null,null,null,1,1,1,1,1,null,1,1,null,null,1,0,0,0,0,1,0,0]
[1107,"Solid Gold Health Products for Pets","Y",null,null,null,null,null,null,null,null,null,null,null,null,null,null,null,1,1,1,null,null,null,null,1,null,1,null,null,null,null,null,null,null,null,null,null,null,null,null,null,null,1,null,null,1]
[2355,"Solvit Products, LP","Y",null,null,null,null,null,null,null,0,0,0,0,0,0,0,0,0,0,1,0,0,0,0,0,0,0,0,0,0,0,0,0,0,0,0,1,1,0,0,0,0,0,0,0]
[3281,"South point S.A.","Y",null,null,null,null,null,null,null,null,null,null,null,null,null,null,null,null,1,1,null,null,1,null,null,null,1,null,1,null,null,null,null,null,null,null,null,null,null,1,null,null,null,null,null,1,0,0,0,0,0,0]
[2349,"Southeast Pet","Y",null,null,null,null,null,null,null,0,1,0,0,0,0,0,0,0,0,0,0,0,0,0,0,0,0,0,0,0,0,0,0,0,0,0,0,0,0,0,0,0,0,0,0]
[626,"Spader Business Management","Y",null,null,null,null,null,null,null,null,null,1,null,null,null,null,null,null,null,null,null,null,null,null,null,null,null,null,null,null,null,null,null,null,null,null,null,null,null,null,null,null,null,null,null,0,0,0,null,0,0,0]
[3834,"Specialty Products Resources, Inc.","Y",null,null,null,null,null,null,null,0,0,0,0,0,0,0,0,0,0,1,0,0,0,0,0,0,0,1,0,0,0,0,0,0,0,0,0,0,0,0,0,0,0,0,0,null,null,null,1]
[4469,"Spike's World, Ltd.","Y",null,null,null,null,1,null,null,null,null,null,null,null,null,null,1]
[557,"Spoiled Rotten Dogz","Y",null,null,1,null,null,null,null,null,null,null,1]
[3101,"Sporn Company, The","Y",null,null,null,null,null,null,null,null,null,null,1,1,1,null,null,null,1,1,null,null,1,null,null,null,1,null,1,null,null,null,null,null,null,null,null,null,null,null,null,null,null,null,null,1]
[3488,"Sport It LLC","Y",null,null,null,null,null,null,null,null,null,null,null,null,null,null,null,null,null,1,null,null,1,1,null,null,null,null,1,null,null,null,null,null,null,null,null,null,null,null,null,null,null,null,1]
[4874,"Spot On Dog, Inc.","Y",null,null,null,null,null,null,1,null,null,null,null,null,null,null,null,null,null,1,null,1,null,null,null,null,null,null,null,null,null,null,null,null,null,null,null,null,null,null,null,null,null,null,null,null,null,null,null,1]
[4882,"SRB International Pvt. Ltd.","Y",null,null,null,null,null,null,1,null,null,null,null,null,null,null,null,null,null,1,null,null,null,null,null,1]
[3922,"St. Gabriel Organics ","Y",null,1,null,null,null,null,null,0,0,null,0,0,0,0,0,0,1,1,0,0,0,0,0,0,0,0,0,0,0,0,0,0,0,0,0,0,0,0,0,0,1,1,0,0,0,0,0,0,0,0]
[1304,"Starmark Pet Products","Y",null,null,null,null,null,null,null,0,0,null,0,0,0,0,0,0,0,1,0,0,1,0,0,0,1,0,1,0,0,0,0,0,1,0,0,0,0,0,0,0,0,0,0,0,0,0,0,0,0,0]
[3945,"Stella & Chewy's ","Y",null,1,null,null,null,null,null,0,0,null,0,0,0,0,0,0,1,1,0,0,0,0,1,0,1,0,0,0,0,0,0,0,0,0,0,0,0,0,0,0,0,0,0,0,0,0,0,0,0,0]
[4959,"Stengel Oils","Y",null,null,null,null,null,null,1,null,null,null,null,null,null,null,null,null,null,1,null,null,null,null,null,null,null,null,null,null,null,null,null,null,null,null,null,null,null,null,null,null,1,null,null,0,0,0,0,0,0,0]
[678,"Stephens Pipe & Steel","Y",null,null,null,null,null,null,null,0,0,0,0,0,0,0,0,0,0,1,0,0,0,0,0,0,0,0,0,0,0,0,0,0,0,0,0,0,1,0,0,0,0,0,0,0,null,0,0,null,0,0]
[4135,"Steve's Real Food","Y",null,1,null,null,null,null,null,0,0,null,0,0,0,0,0,0,1,1,0,0,0,0,1,0,0,0,0,0,0,0,0,0,0,0,0,0,0,0,0,0,0,0,0,0,0,0,0,0,0,0]
[777,"STINK FREE, Inc.","Y",null,null,null,null,null,null,null,0,0,0,0,0,0,0,0,0,1,1,0,0,0,0,0,0,0,0,0,0,0,0,0,0,0,0,0,0,0,0,1,0,0,0,0,null,1,null,null,1]
[4767,"Suitical International B.V.","Y",null,null,null,null,null,null,1,null,null,null,null,null,null,null,null,null,1,1,null,null,null,null,null,null,null,null,null,null,null,null,null,null,null,null,null,null,null,null,null,null,1]
[3621,"Summma International LLC","Y",null,null,null,null,null,null,null,null,null,null,null,null,null,null,null,null,null,1,null,null,null,null,null,null,1,1,null,null,null,null,null,null,null,null,null,null,null,null,null,null,null,null,null,0,0,0,0,0,0,0]
[4384,"Sunner World Trading Co., Ltd. ","Y",null,null,null,null,1,null,null,null,null,null,null,null,null,null,null,null,1,1,null,null,null,null,null,null,null,null,null,null,null,null,null,null,null,null,null,null,null,null,null,null,null,null,null,null,null,null,1,1]
[2075,"Sunshine Mills, Inc./World Pet Foods","Y",null,null,null,null,null,null,null,null,null,null,null,null,null,null,null,null,1,1,null,null,null,null,1,null,1]
[3659,"Super Bird Creations, LLC","Y",null,null,null,null,null,null,null,0,0,0,0,0,0,1,0,0,0,0,0,0,0,0,0,0,0,0,0,0,0,0,0,0,0,0,0,0,0,0,0,0,0,0,0]
[911,"Super Steeds","Y",null,null,null,null,null,null,null,null,null,null,null,null,null,null,null,1,1,1,null,null,1,null,null,null,null,null,null,null,null,null,null,null,null,null,null,null,null,null,null,null,null,null,null,0,0,0,0,0,0,0]
[3844,"Superior Farms Pet Provisions","Y",null,null,null,null,null,null,null,null,null,null,null,null,null,null,null,null,1,1,null,null,null,null,null,null,1,null,null,null,null,null,null,null,null,null,null,null,null,null,null,null,1]
[3521,"SuperZoo/World Pet Association","Y",null,null,null,null,null,null,null,1,0,null,0,0,0,0,0,0,0,0,0,0,0,0,0,0,0,0,0,0,0,0,0,0,0,0,0,0,0,0,0,0,0,0,0,0,0,0,0,0,0,0]
[4991,"Suzhou Better Clean Textiles","Y",null,null,null,null,null,null,1,null,null,null,null,null,null,null,null,null,1,1,null,null,null,null,null,null,null,null,null,null,null,null,null,null,1,null,null,null,null,null,null,null,null,null,1]
[3655,"Suzhou Kudi Trade Co., Ltd.","Y",null,null,null,null,null,null,null,0,0,0,0,0,0,0,0,0,1,1,0,0,1,0,0,0,0,0,1,0,0,0,0,0,0,0,0,0,0,0,0,0,0,0,1]
[308,"Suzhou ShareShine Toy Co., Ltd.","Y",null,null,null,null,null,null,null,null,null,null,null,null,null,null,null,null,null,1,null,1,null,null,null,null,null,null,1]
[4392,"Suzhou Zhongdian Imp. & Exp. Corp., Ltd.","Y",null,null,null,null,1,null,null,null,null,null,null,null,null,null,null,null,null,1,null,1,null,null,null,null,null,null,1,null,null,null,1]
[327,"SV Distribution ","Y",null,null,null,null,null,null,null,null,null,null,null,null,null,null,null,null,1,1,null,null,null,null,null,null,null,null,null,null,null,null,null,null,null,null,null,null,null,null,null,1,1]
[4271,"SWEES International Sari","Y",null,null,null,null,1,null,null,null,null,null,null,null,null,null,null,null,1,1,null,null,1,1,null,null,null,null,null,null,null,null,null,null,null,null,null,null,null,1,null,null,null,null,1,1,0,0,0,0,0,0]
[3449,"Sweet Feet & Beak","Y",null,null,null,null,null,null,null,0,0,0,0,0,0,1,0,0,0,0,0,0,0,0,0,0,0,0,0,0,0,0,0,0,0,0,0,0,0,0,0,0,0,0,0]
[4067,"Swheat Scoop","Y",null,1,null,null,null,null,null,0,0,null,0,0,0,0,0,0,1,0,0,0,0,0,0,0,0,0,0,0,0,0,0,0,0,0,0,0,0,1,null,0,0,0,0,0,0,0,0,0,0,0]
[3684,"SwiPets, LLC","Y",null,null,null,null,null,null,null,0,0,null,0,0,0,0,1,0,1,1,0,0,0,0,0,0,0,0,0,0,0,0,0,0,0,0,0,0,0,0,0,0,0,0,1,0,1,0,0,0,0,0]
[3184,"Symply Pet Foods Ltd.","Y",null,null,null,null,null,null,null,null,null,null,null,null,null,null,null,null,1,1,null,null,null,null,1,null,1]
[615,"SynergyLabs, Inc.","Y",null,null,null,null,null,null,null,0,0,null,0,0,0,1,1,1,1,1,0,0,0,0,0,0,1,0,0,0,1,0,0,0,0,0,0,0,0,0,0,1,1,1,0,1,1,null,0,0,0,0]
[310,"SYNLawn","Y",null,null,null,null,null,null,null,null,null,null,null,null,null,null,null,null,null,1,null,null,null,null,null,null,null,null,null,null,null,null,null,null,null,null,null,null,null,null,null,null,null,null,null,null,null,null,null,1]
[4581,"TADgreen, I nc./e-cloth","Y",null,null,null,null,null,null,1,null,null,null,null,1,null,null,null,null,1,1,null,null,null,null,null,null,null,null,null,null,null,null,null,null,1,null,null,1,null,null,null,null,null,null,1,0,0,0,0,0,0,0]
[300,"Taizhou Huamao Handicraft Article Co","Y",null,null,null,null,null,null,null,0,0,0,0,0,0,1,1,0,1,1,0,1,1,0,0,0,1,0,1,0,1,1,1,0,1,0,1,0,1,0,0,0,0,0,1]
[482,"Taizhou Huangyan Aotong Pet Products","Y",null,null,null,null,null,null,null,null,null,null,null,null,null,null,null,null,1,1,null,null,null,null,null,1,null,null,1,null,null,1,1,null,null,null,null,null,null,null,1,null,null,null,null,null,null,null,null,1]
[467,"Taizhou Sbelle Arts & Crafts Factory","Y",null,null,null,null,null,null,null,null,null,null,null,null,null,null,null,null,1,1,null,null,null,null,null,null,null,null,null,null,null,1,1,null,1]
[621,"Tall Tails ","Y",null,null,null,null,null,null,null,0,0,null,0,0,0,0,0,0,0,1,0,0,0,0,0,0,0,0,0,0,0,0,0,0,1,0,0,0,0,0,0,0,0,0,0,0,0,0,0,0,0,0]
[4854,"Tea for Spot","Y",null,null,null,null,null,null,1,null,null,null,null,null,null,null,null,null,null,1,null,null,null,null,null,null,null,null,null,null,null,null,null,null,null,null,null,null,null,null,null,null,1]
[4471,"Ted Barker Ltd.","Y",null,null,null,null,1,null,null,null,null,null,null,null,null,null,null,null,null,1,null,1,1,null,null,null,null,null,null,null,null,null,null,null,null,null,null,null,null,null,null,null,null,null,null,0,null,0,0,0,0,0]
[326,"Teddy the Dog (Div. of Chillybears)","Y",null,null,null,null,null,null,null,0,0,null,1,0,0,0,0,0,0,null,0,null,null,0,0,0,0,0,0,0,0,0,0,0,0,0,0,0,0,0,0,0,0,0,0,0,0,0,0,0,0,0]
[3813,"Tekquest Industries","Y",null,null,null,null,null,null,null,0,0,0,0,0,0,0,0,0,1,0,0,0,0,0,0,0,0,0,0,0,0,0,0,0,0,0,0,0,0,0,0,0,0,0,0,null,1]
[4249,"The Bear & The Rat: Cool Treats for Dogs","Y",null,1,null,null,null,null,null,0,0,null,0,0,0,0,0,0,0,1,0,0,0,0,0,0,1,0,0,0,0,0,0,0,0,0,0,0,0,0,0,0,0,0,0,0,0,0,0,0,0,0]
[2181,"The Coop","Y",null,null,null,null,null,null,null,0,0,null,0,0,0,0,0,0,0,1,0,1,1,0,0,1,0,0,1,0,0,0,0,0,1,0,0,0,0,0,0,0,0,0,0,0,0,0,0,0,0,0]
[4952,"The Loving Bowl Corp.","Y",null,null,null,null,null,null,1,null,null,null,null,null,null,null,null,null,null,1,null,null,null,null,null,1,null,null,null,null,null,null,null,null,null,null,null,null,null,null,null,null,null,null,null,0,0,0,0,0,0,0]
[622,"The San Francisco Umbrella Company","Y",null,null,null,null,null,null,null,0,0,0,1,0,0,0,0,0,0,0,0,0,0,0,0,0,0,0,0,0,0,0,0,0,0,0,0,0,0,0,0,0,0,0,0]
[316,"The Worthy Dog","Y",null,null,null,null,null,null,null,null,null,null,null,null,null,null,null,null,null,1,null,1,1,null,null,1]
[3481,"Thomas Laboratories","Y",null,null,null,null,null,null,null,null,null,null,null,1,null,1,null,1,1,1,null,null,null,null,null,null,null,null,null,null,null,null,null,null,null,null,null,null,null,null,null,null,1]
[4115,"Three Dog Bakery","Y",null,1,null,null,null,null,null,0,0,null,0,0,0,0,0,0,1,1,0,0,0,0,1,0,1,0,0,0,0,0,0,0,0,0,0,0,0,0,0,0,0,0,0,0,0,0,0,0,0,0]
[4253,"Threshold Enterprises","Y",null,1,null,null,null,null,null,null,1]
[3580,"ThunderWorks, LLC","Y",null,null,null,null,null,null,null,0,0,null,0,0,0,0,0,0,1,1,0,1,1,0,0,0,1,0,1,0,0,0,0,0,0,0,0,0,0,0,0,0,1,0,0,0,0,0,0,0,0,0]
[4980,"Tianjin Everfun Pet Products Co., Ltd.","Y",null,null,null,null,null,null,1,null,null,null,null,null,null,null,null,null,null,1,null,null,null,null,null,null,1,null,null,null,null,null,null,null,null,null,null,null,null,null,null,null,null,null,null,0,0,0,0,0,0,0]
[1916,"Tianjin Ranova Petfood Co., Ltd.","Y",null,null,null,null,null,null,null,0,0,0,0,1,1,1,1,0,1,1,0,0,0,0,0,0,1,0,0,0,0,0,0,0,0,0,0,0,0,0,0,0,0,0,0]
[3387,"Tianjin Yiyi Hygiene Products Co., Ltd.","Y",null,null,null,null,null,null,null,null,null,null,null,null,null,null,null,null,null,1,null,null,null,null,null,null,null,null,null,null,null,null,null,null,null,null,null,null,null,null,null,null,null,null,null,null,null,1,1,1]
[224,"Ticks-N-All","Y",null,null,null,null,null,null,null,null,null,null,null,null,null,null,null,null,1,1,null,null,null,null,null,null,null,null,null,null,null,null,null,null,null,null,null,null,null,null,null,null,null,1]
[1134,"Timberline Live Pet Foods ","Y",null,null,null,null,null,null,null,0,0,null,0,1,1,1,1,0,0,0,0,0,0,0,0,0,0,0,0,0,0,0,0,0,0,0,0,0,0,0,0,0,0,0,0,0,0,0,0,0,0,0]
[2109,"Tomlyn Products ","Y",null,null,null,null,null,null,null,0,0,null,0,0,0,0,1,0,1,1,0,0,0,0,0,0,1,0,0,0,0,0,0,0,0,0,0,0,0,0,0,0,1,0,0,0,1,0,0,0,0,0]
[4107,"Toreros Chews","Y",null,1,null,null,null,null,null,null,null,null,null,null,null,null,null,null,null,1,null,null,null,null,null,null,1]
[4475,"Trackimo, Inc.","Y",null,null,null,null,1,null,null,null,null,null,null,null,null,null,null,null,null,1,null,null,1,null,null,null,null,null,null,null,null,null,null,null,null,null,null,null,null,null,null,null,null,null,null,null,null,null,null,null,1,1]
[4975,"Tractive GmbH","Y",null,null,null,null,null,null,1,null,null,null,null,null,null,null,null,null,1,null,null,null,1,null,null,null,null,null,null,null,null,null,null,null,null,null,null,null,null,null,null,null,null,null,null,null,null,null,null,null,1,1]
[4967,"Transocean Import Company","Y",null,null,null,null,null,null,1,null,null,null,null,null,null,null,null,null,1,1,null,null,null,null,null,null,null,null,null,null,null,null,null,null,1]
[1349,"Transworld Aquatic Enterprises, Inc.","Y",null,null,null,1,null,null,null,null,null,null,null,1]
[4478,"Tre Ponti","Y",null,null,null,null,1,null,null,null,null,null,null,null,null,null,null,null,null,1,null,null,1]
[4091,"Treat Planet ","Y",null,1,null,null,null,null,null,null,null,null,null,null,null,null,null,null,1,1,null,null,null,null,null,null,1]
[2953,"Trixie Pet Products","Y",null,null,null,null,null,null,null,0,0,null,0,0,0,null,null,0,1,1,0,0,0,0,0,0,0,0,1,0,0,1,1,0,1,0,1,0,1,0,0,0,0,0,0,0,0,0,0,0,0,0]
[1567,"TropiClean Pet Products","Y",null,null,null,null,null,null,null,0,0,null,0,0,0,0,0,0,1,1,0,0,0,0,0,0,1,0,0,0,0,0,0,0,0,0,0,0,0,0,0,1,1,1,1,1,1,0,0,0,0,0]
[4867,"TruPet, LLC","Y",null,null,null,null,null,null,1,null,null,null,null,null,null,null,null,null,null,1,null,null,null,null,1,null,1,null,null,null,null,null,null,null,null,null,null,null,null,null,null,null,null,null,null,0,0,0,0,0,0,0]
[4050,"Tucker's Raw Frozen & Treats ","Y",null,1,null,null,null,null,null,null,null,null,null,null,null,null,null,null,null,1,null,null,null,null,1,null,1,null,null,null,null,null,null,null,null,null,null,null,null,null,null,null,1]
[4027,"Tuffy's Pet Foods ","Y",null,1,null,null,null,null,null,0,0,null,0,0,0,0,0,0,1,1,0,0,0,0,1,0,1,0,0,0,0,0,0,0,0,0,0,0,0,0,0,0,0,0,0,0,0,0,0,0,0,0]
[3585,"Tuggo Dog Toys LLC ","Y",null,null,null,null,null,null,null,0,0,null,0,0,0,0,0,0,0,1,0,0,0,0,0,0,0,0,1,0,0,0,0,0,0,0,0,0,0,0,0,0,0,0,0,0,0,0,0,0,0,0]
[4345,"Tuscan Natural","Y",null,1,null,null,null,null,null,0,0,0,0,0,0,0,0,0,1,1,0,0,0,0,1,0,0,0,0,0,0,0,0,0,0,0,0,0,0,0,0,0,0,0,0,0,0,0,0,0,0,0]
[4457,"Twiggy's Cupcake Diet dba Dogs Love Kale","Y",null,1,null,null,null,null,null,null,null,null,null,null,null,null,null,null,null,1,null,null,null,null,null,null,1]
[4748,"Twigo LLC ","Y",null,null,null,null,null,null,1,null,null,null,null,null,null,null,null,null,1,1,null,null,null,1]
[1448,"Two Little Fishies, Inc.","Y",null,null,null,1,null,null,null,0,0,0,0,1,0,0,0,0,0,0,0,0,0,0,0,0,0,0,0,0,0,0,0,0,0,0,0,0,0,0,0,0,0,0,0]
[3985,"Tyson Pet Products","Y",null,1,null,null,null,null,null,0,0,null,0,0,0,0,0,0,0,1,0,0,0,0,0,0,1,0,0,0,0,0,0,0,0,0,0,0,0,0,0,0,0,0,0,0,0,0,0,0,0,0]
[4551,"U.S. Cotton, LLC","Y",null,null,null,null,null,null,1,null,null,null,null,null,null,null,null,null,1,1,null,null,null,null,null,null,null,null,null,null,null,null,null,null,null,null,null,null,null,null,null,null,1,null,null,0,0,0,0,0,0,0]
[671,"Uckele Health and Nutrition","Y",null,null,null,null,null,null,null,0,0,null,0,0,0,0,0,1,0,1,0,0,0,0,0,0,0,0,0,0,0,0,0,0,0,0,0,0,0,0,0,0,1,0,0,0,0,0,0,0,0,0]
[675,"Uckele Health and Nutrition","Y",null,null,null,null,null,null,null,0,0,null,0,0,0,0,0,1,0,1,0,0,0,0,0,0,0,0,0,0,0,0,0,0,0,0,0,0,0,0,0,0,1,0,0,0,0,0,0,0,0,0]
[434,"Ultra Paws LLC ","Y",null,null,1,null,null,null,null,0,0,null,0,0,0,0,0,0,0,1,0,1,1,0,0,1,0,0,1,0,0,0,0,0,1,0,0,0,0,0,0,0,1,null,0,0,0,0,0,0,0,0]
[3756,"Ultra Pet Company","Y",null,null,null,null,null,null,null,0,0,null,0,0,0,0,0,0,1,null,0,0,0,0,0,0,0,0,0,0,0,0,0,0,0,0,0,0,0,1,1,0,null,0,0,0,0,0,0,0,0,0]
[1205,"Ultrahund, Inc.","Y",null,null,null,null,null,null,null,0,0,0,0,0,0,0,0,0,0,1,0,0,1,0,0,0,0,0,0,0,0,0,0,0,0,0,0,0,0,0,0,0,0,0,0,0,0,0,0,0,0,0]
[3652,"Unipet USA, LLC","Y",null,null,null,null,null,null,null,0,0,0,0,0,0,1,1,0,0,0,0,0,0,0,0,0,0,0,0,0,0,0,0,0,0,0,0,0,0,0,0,0,0,0,0,0,0,0,0,0,0,0]
[304,"Unique Manufacturing and Marketing","Y",null,null,null,null,null,null,null,null,null,null,null,null,null,null,null,null,1,1,null,null,null,null,null,null,null,null,null,null,null,null,null,null,null,null,null,null,null,null,null,null,null,null,null,null,1]
[3670,"Unique Petz","Y",null,null,null,null,null,null,null,0,0,null,0,0,0,0,0,0,1,1,0,0,0,0,0,0,0,0,1,0,0,0,0,0,0,0,0,0,0,0,0,0,0,0,0,0,0,0,0,0,0,0]
[1419,"United Pet Group ","Y",null,null,null,null,null,null,null,0,0,null,0,1,1,1,1,0,1,1,0,0,0,0,0,0,1,1,1,0,1,1,0,0,1,0,1,0,1,1,1,1,1,0,0,1,1,1,1,1,0,0]
[454,"Unleashed Life ","Y",null,null,1,null,null,null,null,0,0,null,0,0,0,0,0,0,0,1,0,0,0,0,0,1,0,0,0,0,0,0,1,0,1,0,0,0,0,0,0,0,1,0,0,0,null,0,0,0,0,0]
[524,"UP Collection","Y",null,null,1,null,null,null,null,0,0,0,0,0,0,0,0,0,0,1,0,1,0,0,0,0,0,0,0,0,0,0,0,0,0,0,0,0,0,0,0,0,0,0,0]
[400,"Up Country Inc. ","Y",null,null,1,null,null,null,null,0,0,null,1,0,0,0,0,0,1,1,0,1,1,0,0,1,1,0,1,0,null,0,0,0,1,0,0,0,0,0,0,0,0,0,0,0,0,0,0,0,0,0]
[2875,"Urban Paw","Y",null,null,null,null,null,null,null,null,null,null,null,null,null,null,null,null,1,1,null,null,null,null,null,null,null,null,null,null,null,null,null,null,1]
[3827,"Urine Off By Bio-Pro Research ","Y",null,null,null,null,null,null,null,0,0,null,0,0,0,0,1,1,1,1,0,0,0,0,0,0,0,0,0,0,0,0,0,0,0,0,0,0,0,0,0,0,0,0,0,0,1,1,0,0,0,0]
[3617,"UTM Distributing Company","Y",null,null,null,null,null,null,null,0,1,null,0,1,1,1,1,1,1,1,null,1,1,1,null,1,1,1,1,1,1,1,1,1,1,1,1,1,1,1,1,1,1,1,1,1,1,1,1,1,1,1]
[4666,"Valhoma Corporation","Y",null,null,null,null,null,null,1,null,null,null,null,null,null,null,null,1,null,null,null,null,null,null,null,null,null,null,null,null,null,null,null,null,null,null,null,null,null,null,null,null,null,null,null,0,0,0,0,0,0,0]
[2125,"Van Ness Plastic Molding Co.","Y",null,null,null,null,null,null,null,0,0,null,0,0,0,0,1,0,1,1,0,0,0,0,0,1,0,0,0,0,1,1,0,0,0,0,0,0,0,0,1,0,0,0,0,0,0,0,0,1,0,0]
[654,"Vee Enterprises ","Y",null,null,null,null,null,null,null,null,null,null,null,null,null,null,null,null,1,1,null,null,1,null,null,null,null,null,1,null,null,null,null,null,1]
[4848,"Versele Laga","Y",null,null,null,null,null,null,1,0,0,0,0,null,null,1,1,1,null,null,0,0,0,0,null,0,0,0,0,0,0,0,0,0,0,0,0,0,0,0,0,0,0,0,0]
[4017,"VeRUS Pet Foods ","Y",null,1,null,null,null,null,null,0,0,null,0,0,0,0,0,0,1,1,0,0,0,0,1,0,0,0,0,0,0,0,0,0,0,0,0,0,0,0,0,0,null,0,0,0,0,0,0,0,0,0]
[3711,"Vets Choice ","Y",null,null,null,null,null,null,null,0,0,null,0,0,0,0,0,0,1,1,0,0,0,0,1,0,1,0,0,0,0,0,0,0,0,0,0,0,0,0,0,0,1,0,0,1,1,0,0,0,0,0]
[3775,"Vets Plus ","Y",null,null,null,null,null,null,null,null,null,null,null,null,null,null,null,1,1,1,null,null,null,null,null,null,null,null,null,null,null,null,null,null,null,null,null,null,null,null,null,null,1]
[4873,"Viachem LLC","Y",null,null,null,null,null,null,1,null,null,null,null,null,null,null,null,null,1,1,null,null,null,null,null,null,null,null,null,null,null,null,null,null,null,null,null,null,null,null,null,null,1]
[4678,"Viaco Limited","Y",null,null,null,null,null,null,1,null,null,null,null,null,null,null,null,null,null,1,null,null,1]
[1409,"VIP Products ","Y",null,null,null,null,null,null,null,0,0,null,0,0,0,0,0,0,0,1,0,0,0,0,0,0,0,0,1,0,0,0,0,0,1,0,0,0,0,0,0,0,0,0,0,0,0,0,0,0,0,0]
[2835,"Virbac Corp. PET-TABS","Y",null,null,null,null,null,null,null,null,null,null,null,null,null,null,null,null,1,1,null,null,null,null,null,null,null,null,null,null,null,null,null,null,null,null,null,null,null,null,null,null,1]
[3185,"Visstun","Y",null,null,null,null,null,null,null,null,null,null,null,null,null,null,null,null,null,1,null,null,null,null,null,null,null,null,null,null,null,null,null,null,1]
[2235,"Vitakraft Sun Seed Inc. ","Y",null,null,null,null,null,null,null,0,0,null,0,null,1,1,1,1,1,1,0,0,1,0,null,0,1,0,0,0,0,0,0,0,0,0,0,0,0,1,0,0,0,0,0,0,0,0,0,0,0,0]
[4191,"Vital Essentials","Y",null,1,null,null,null,null,null,0,0,null,0,0,0,0,0,0,1,1,0,0,0,0,1,0,1,0,0,0,0,0,0,0,0,0,0,0,0,0,0,0,0,0,0,0,0,0,0,0,0,0]
[4981,"Vital Planet Pets","Y",null,null,null,null,null,null,1,null,null,null,null,null,null,null,null,null,null,1,null,null,null,null,null,null,null,null,null,null,null,null,null,null,null,null,null,null,null,null,null,null,1,null,null,0,0,0,0,0,0,0]
[4374,"VNU Exhibitions Asia","Y",null,null,null,null,1,null,null,null,null,1]
[820,"Volkman Seed Factory ","Y",null,null,null,null,null,null,null,0,0,null,0,0,0,1,1,0,0,0,0,0,0,0,0,0,0,0,0,0,0,0,0,0,0,0,0,0,0,0,0,0,0,0,0,0,0,0,0,0,0,0]
[4252,"Waggers","Y",null,1,null,null,null,null,null,0,0,null,1,0,0,0,0,0,1,1,0,0,0,0,null,0,1,0,0,0,0,0,0,0,0,0,0,0,0,0,0,0,0,0,0,0,0,0,0,0,0,0]
[1984,"Wagner's, LLC","Y",null,null,null,null,null,null,null,0,0,0,0,0,0,1,1,0,0,0,0,0,0,0,0,0,0,0,0,0,0,0,0,0,0,0,0,0,0,0,0,0,0,0,0]
[2217,"Wahl Clipper Corporation ","Y",null,null,null,null,null,null,null,0,0,null,0,0,0,0,1,1,1,1,1,0,0,0,0,0,0,0,0,0,0,0,0,0,0,0,0,0,0,0,0,0,0,0,1,1,0,0,0,0,0,0]
[3085,"walkabout Pet Products","Y",null,null,null,null,null,null,null,null,null,null,null,null,null,1,1,null,1,1,null,null,null,null,null,null,1,null,null,null,null,null,null,null,null,null,null,null,null,null,null,null,null,null,null,null,1]
[4014,"Wally's Natural ","Y",null,1,null,null,null,null,null,0,0,null,0,0,0,0,0,0,1,1,0,0,0,0,0,0,0,0,0,0,0,0,0,0,0,0,0,0,0,0,0,0,1,1,0,1,0,0,0,0,0,0]
[4690,"Walsall Hardware Corp.","Y",null,null,null,null,null,null,1,null,null,null,null,null,null,null,null,1,null,1,null,null,1]
[4207,"Wapiti Labs","Y",null,1,null,null,null,null,null,0,0,null,0,0,0,0,0,0,1,1,0,0,0,0,0,0,1,0,null,0,0,0,0,0,0,0,0,0,0,0,0,0,1,0,0,0,0,0,0,0,0,0]
[2567,"Ware Manufacturing","Y",null,null,null,null,null,null,null,0,0,null,0,0,1,1,1,0,1,1,0,0,0,0,0,0,0,0,1,1,0,1,1,0,1,0,1,1,1,0,0,0,0,0,0,0,0,0,0,0,0,0]
[2667,"Ware Manufacturing","Y",null,null,null,null,null,null,null,0,0,null,0,0,1,1,1,0,1,1,0,0,0,0,0,0,0,0,1,1,0,1,1,0,1,0,1,1,1,0,0,0,0,0,0,0,0,0,0,0,0,0]
[3757,"Warren London ","Y",null,null,null,null,null,null,null,0,0,null,1,0,0,0,0,0,null,1,0,null,0,0,0,0,0,0,0,0,0,0,0,0,0,0,0,0,0,0,0,0,0,0,1,1,1,null,0,0,0,0]
[321,"Water Rover","Y",null,null,null,null,null,null,null,0,0,null,0,0,0,0,0,0,0,1,0,0,0,0,0,1,0,0,0,0,0,0,0,0,0,0,0,0,0,0,0,0,0,0,0,0,0,0,0,0,0,0]
[227,"Weatherbeeta USA","Y",null,null,null,null,null,null,null,null,null,null,null,null,null,null,null,null,null,1,null,1,1,null,null,null,null,null,null,null,null,null,null,null,1]
[205,"Weihai East Co., Ltd.","Y",null,null,null,null,null,null,null,null,null,null,null,null,null,1]
[4680,"Well Trained Owner Corp.","Y",null,null,null,null,null,null,1,null,null,null,1,null,null,null,null,null,null,null,null,null,null,null,null,null,null,null,null,null,null,null,null,null,null,null,null,null,null,null,null,null,null,null,null,0,0,0,0,0,0,0]
[3401,"WellPet -Natural Products for Pets","Y",null,null,null,null,null,null,null,0,0,null,0,0,0,0,1,0,1,1,0,0,0,0,1,0,1,0,0,0,0,0,0,0,0,0,0,0,0,0,0,0,0,0,0,0,0,0,0,0,0,0]
[3908,"WellyTails Inc. ","Y",null,1,null,null,null,null,null,0,0,null,0,0,0,0,0,0,1,1,0,0,0,0,1,0,1,0,0,0,0,0,0,0,0,0,0,0,0,0,0,0,1,0,0,0,0,0,0,0,0,0]
[690,"Wen Zhou Mao Quan Pet Things Co., Ltd.","Y",null,null,null,null,null,null,null,0,0,0,0,0,0,0,0,0,0,1,0,0,1,0,0,0,0,1,0,0,0,0,0,0,0,0,0,0,0,0,0,0,0,0,0,null,0,0,0,0,0,0]
[3646,"Wen Zhou PetPal Hi Tech Pet Nutrition","Y",null,null,null,null,null,null,null,0,0,0,1,0,0,1,1,0,1,1,0,1,1,0,1,0,1,1,1,0,0,0,0,0,0,0,1,0,1,0,0,0,0,0,0,1,0,0,0,0,0,0]
[3554,"Wenzhou Huahui Leather Co., Ltd.","Y",null,null,null,null,null,null,null,0,0,0,0,0,0,0,0,0,0,1,0,1,0,0,0,0,1,0,1,0,0,0,0,0,0,0,0,0,0,0,0,0,0,0,0,0,0,0,0,0,0,0]
[480,"Wenzhou Vigorous Pet Products Co.","Y",null,null,null,null,null,null,null,0,0,0,0,0,0,0,0,0,1,1,0,0,1,0,0,0,0,0,0,0,0,0,0,0,0,0,0,1,0,0,0,0,0,0,0]
[4584,"Wenzhou YouTe Pet Products Co., Ltd.","Y",null,null,null,null,null,null,1,null,null,null,null,null,null,null,null,null,null,1,null,null,1,1,null,null,null,null,null,null,null,null,null,null,null,null,null,null,null,null,null,null,null,null,null,0,0,0,0,0,0,0]
[317,"Wenzhou Yuxiang Pet Product Co.","Y",null,null,null,null,null,null,null,0,0,0,0,0,0,0,0,0,0,1,0,1,0,0,1,0,1,1,1,0,0,0,0,0,0,0,0,0,0,0,0,1,0,0,0]
[2443,"West Paw Design ","Y",null,null,null,null,null,null,null,0,0,null,0,0,0,0,0,0,1,1,0,1,0,0,0,0,1,0,1,0,1,0,0,0,1,0,0,0,0,0,0,0,0,0,0,0,0,0,0,0,0,0]
[2525,"Westminster Pet Products ","Y",null,null,null,null,null,null,null,0,0,null,1,0,0,0,0,0,1,1,0,1,1,0,0,0,1,0,1,0,1,1,0,1,1,0,0,1,0,0,1,0,0,0,1,0,0,0,0,1,0,0]
[3973,"Wet Noses ","Y",null,1,null,null,null,null,null,0,0,null,0,0,0,0,0,0,0,1,0,0,0,0,0,0,1,0,0,0,0,0,0,0,0,0,0,0,0,0,0,0,0,0,0,0,0,0,0,0,0,0]
[1791,"WHAM-0 PETS","Y",null,null,null,null,null,null,null,null,null,null,null,null,null,null,null,null,null,1,null,null,null,null,null,null,null,null,1,null,null,null,null,null,null,null,null,null,null,null,null,null,null,null,null,0,0,0,0,0,0,0]
[556,"Wheel House Designs","Y",null,null,1,null,null,null,null,0,0,null,1,0,null,null,null,null,null,null,0,0,0,0,0,0,0,0,0,0,0,0,0,0,0,0,0,0,0,0,0,0,0,0,0,0,0,0,0,0,0,0]
[3373,"White Cliff Pet Products LLC","Y",null,null,null,null,null,null,null,0,0,0,0,0,0,0,0,0,1,0,0,0,0,0,0,0,0,0,0,0,0,0,0,0,0,0,0,0,0,0,1,0,0,0,0]
[4451,"Whole Life Pet ","Y",null,1,null,null,null,null,null,0,0,null,0,0,0,0,0,0,1,1,0,0,0,0,0,0,1,0,0,0,0,0,0,0,0,0,0,0,0,0,0,0,0,0,0,0,0,0,0,0,0,0]
[725,"WholesalePet.com ","Y",null,null,null,null,null,null,null,0,1,null,0,1,1,1,1,1,1,1,0,1,1,1,1,1,1,1,1,1,1,1,1,1,1,1,1,1,1,1,1,1,1,1,1,1,1,1,1,1,1,0]
[3911,"Wholesome Pride Pet Treats","Y",null,1,null,null,null,null,null,null,null,null,null,null,null,null,null,null,null,1,null,null,null,null,null,null,1,null,null,null,null,null,null,null,null,null,null,null,null,null,null,null,null,null,null,0,0,0,0,0,0,0]
[4145,"Wholistic Pet Organics ","Y",null,1,null,null,null,null,null,0,0,null,0,0,0,1,0,1,1,1,0,0,0,0,1,0,0,0,0,0,0,0,0,0,0,0,0,0,0,0,0,0,1,0,0,1,0,0,0,0,0,0]
[3674,"WIGZI ","Y",null,null,null,null,null,null,null,0,0,null,0,0,0,0,0,0,0,1,0,0,1,0,0,0,1,0,1,0,0,0,0,0,0,0,0,0,0,0,0,0,0,0,0,0,0,0,0,0,0,0]
[3979,"Wild Calling! Pet Food ","Y",null,1,null,null,null,null,null,0,0,null,0,0,0,0,0,0,1,1,0,0,0,0,1,0,0,0,0,0,0,0,0,0,0,0,0,0,0,0,0,0,0,0,0,0,0,0,0,0,0,0]
[4139,"Wild Meadow Farms ","Y",null,1,null,null,null,null,null,0,0,null,0,0,0,0,0,0,0,1,0,0,0,0,0,0,1,0,0,0,0,0,0,0,0,0,0,0,0,0,0,0,0,0,0,0,0,0,0,0,0,0]
[866,"Wildlife Sciences","Y",null,null,null,null,null,null,null,0,0,0,0,0,0,1,0,0,0,0,0,0,0,0,0,0,0,0,0,0,0,0,0,0,0,0,0,0,0,0,0,0,0,0,0]
[4886,"Wingpet Manufactory Co., Limited","Y",null,null,null,null,null,null,1,null,null,null,null,null,null,null,null,null,1,1,null,null,null,null,null,null,null,null,1,null,null,null,null,null,null,null,null,null,null,null,null,null,null,null,null,0,0,0,0,0,1,0]
[3723,"Wireless Whiskers","Y",null,null,null,null,null,null,null,0,0,0,0,0,0,0,0,0,0,1,0,0,0,0,0,1,0,0,0,0,0,0,0,0,0,0,0,0,0,0,0,0,0,0,0]
[4949,"Wolfgang Man & Beast","Y",null,null,null,null,null,null,1,null,null,null,null,null,null,null,null,null,null,1,null,null,1]
[4973,"Woodlore","Y",null,null,null,null,null,null,1,null,null,null,null,null,null,1,null,null,null,1,null,null,null,null,null,null,null,null,null,null,null,null,1,null,1,null,null,null,null,null,null,null,null,null,null,0,0,0,0,0,0,0]
[307,"Woofwear by World Critter, Inc.","Y",null,null,null,null,null,null,null,0,0,0,0,0,0,0,0,0,0,1,0,0,1,0,0,0,0,0,0,0,0,0,0,0,0,0,0,0,0,0,0,0,0,0,0,0,0,0,0,0,0,0]
[1285,"World Pet by Olivet","Y",null,null,null,null,null,null,null,0,0,0,0,0,0,0,0,0,1,1,0,1,1,0,0,1,0,0,0,0,0,0,0,0,0,0,1,0,0,1,1,0,0,0,0,0,0,0,0,0,0,0]
[1758,"World Wide Imports Ent. Inc.","Y",null,null,null,1,null,null,null,0,0,0,0,1,0,0,0,0,1,1,0,0,0,0,0,0,1,0,0,0,0,0,0,0,0,0,0,0,0,0,0,0,0,0,0]
[1367,"Worldwise","Y",null,null,null,null,null,null,null,0,0,null,1,null,null,null,null,0,1,1,1,0,1,0,0,1,1,0,1,0,1,1,0,0,1,0,1,0,0,0,0,1,0,1,0,0,0,0,0,0,0,0]
[4493,"Wudi Huaxiang Aquaculture Co., Ltd.","Y",null,null,null,null,1,null,null,null,null,null,null,1,null,null,null,null,null,null,null,null,null,null,null,null,null,null,null,null,null,null,null,null,null,null,null,null,null,null,null,null,null,null,null,0,0,0,0,0,0,0]
[209,"Wuxi Dongcheng Bio Technology","Y",null,null,null,null,null,null,null,null,null,null,null,null,null,null,null,null,null,1,null,null,null,null,null,null,1,1,null,null,null,null,null,null,1,null,null,null,null,null,null,1]
[3658,"Wyld's Wingdom ","Y",null,null,null,null,null,null,null,0,0,null,0,0,0,1,0,0,0,0,0,0,0,0,0,0,0,0,0,0,0,0,0,0,0,0,0,0,0,0,0,0,0,0,0,0,0,0,0,0,0,0]
[1009,"Xiamen !pet Manufacture Co., Ltd.","Y",null,null,null,null,null,null,null,0,0,0,0,0,0,0,0,0,0,1,0,0,0,0,0,0,0,0,0,0,0,0,0,0,1,0,0,0,0,0,0,0,0,0,0,0,0,0,0,0,0,0]
[311,"Xiamen You Wei Import & Export","Y",null,null,null,null,null,null,null,null,null,null,null,null,null,null,null,null,null,1,null,1,1,null,null,1,null,null,null,null,null,null,null,null,null,null,null,null,null,null,null,null,null,null,1]
[1307,"XPOWER Manufacture","Y",null,null,null,null,null,null,null,null,null,1,null,null,null,null,null,null,null,1,null,null,null,null,null,null,null,null,null,null,null,null,null,null,null,null,null,null,null,null,null,null,null,null,1]
[1352,"Xtreme Aquatic Foods, Inc.","Y",null,null,null,1,null,null,null,0,0,0,0,1,0,0,0,0,0,0,0,0,0,0,0,0,0,0,0,0,0,0,0,0,0,0,0,0,0,0,0,0,0,0,0]
[2483,"Yamei Pet Supplies Co., Ltd.","Y",null,null,null,null,null,null,null,null,null,null,null,null,null,null,null,null,null,1,null,null,null,null,null,null,null,null,1,null,null,null,null,null,null,null,null,null,null,null,null,null,null,null,null,0,0,0,0,0,0,0]
[983,"Yangzhou John & Wen Co., Ltd.","Y",null,null,null,null,null,null,null,0,0,0,0,0,0,0,0,0,0,1,0,0,1,0,0,0,0,0,0,0,0,0,0,0,0,0,0,0,0,0,0,0,0,0,0,0,0,0,0,0,0,0]
[2275,"Yantai China Pet Foods Co., Ltd.","Y",null,null,null,null,null,null,null,0,0,0,0,0,0,1,0,0,1,1,0,0,0,0,0,0,1,0,0,0,0,0,0,0,0,0,0,0,0,0,0,0,0,0,0]
[325,"Yantai Sunrise Textiles & Garments Co","Y",null,null,null,null,null,null,null,null,null,null,null,null,null,null,null,null,null,1,null,1,null,null,null,null,null,null,null,null,null,null,null,null,null,null,null,null,null,null,null,null,null,null,null,0,0,0,0,0,0,0]
[220,"Yantai Yummy Pet Food Co","Y",null,null,null,null,null,null,null,null,null,null,null,null,null,null,null,null,null,1,null,null,null,null,null,null,1]
[416,"Yellow Dog Design ","Y",null,null,1,null,null,null,null,0,0,null,0,0,0,0,0,null,0,1,0,0,1,0,0,0,0,0,0,0,0,0,0,0,0,0,0,0,0,0,0,0,0,0,0,0,0,0,0,0,0,0]
[4455,"Yeti Corporation ","Y",null,1,null,null,null,null,null,0,0,null,0,0,0,0,0,0,0,1,0,0,0,0,0,0,1,0,0,0,0,0,0,0,0,0,0,0,0,0,0,0,0,0,0,0,0,0,0,0,0,0]
[1684,"YML","Y",null,null,null,null,null,null,null,0,0,0,0,1,0,1,0,0,1,1,0,0,0,0,0,0,0,0,0,0,0,0,0,0,0,0,1,0,0,0,0,0,0,0,0,0,0,0,0,0,0,0]
[4012,"Yoghund","Y",null,1,null,null,null,null,null,0,0,0,0,0,0,0,0,0,0,1,0,0,0,0,0,0,1,0,0,0,0,0,0,0,0,0,0,0,0,0,0,0,0,0,0,0,0,0,0,0,0,0]
[800,"Yong Zhen Rubber & Plastic Co., Ltd.","Y",null,null,null,null,null,null,null,0,0,0,0,0,0,0,0,0,0,1,0,1,0,0,0,0,0,0,1,0,0,0,0,0,0,0,0,0,0,0,0,0,0,0,0,0,0,0,0,0,0,0]
[4100,"Yummy Chummies","Y",null,1,null,null,null,null,null,0,0,0,0,0,0,0,0,0,0,1,0,0,0,0,0,0,1,0,0,0,0,0,0,0,0,0,0,0,0,0,0,0,0,0,0]
[477,"Yuyao Tiandi Industry Trade Co., Ltd.","Y",null,null,null,null,null,null,null,null,null,null,null,null,null,1,null,null,1,1,null,null,1,null,null,1,null,null,1,null,null,null,null,null,null,null,null,1,null,null,1,null,null,null,1,0,0,0,0,0,0,0]
[1258,"Zeigler Bros., Inc.","Y",null,null,null,null,null,null,null,0,0,0,0,1,1,1,1,0,0,0,0,0,0,0,0,0,0,0,0,0,0,0,0,0,0,0,0,0,0,0,0,0,0,0,0]
[4576,"Zen Den Pets","Y",null,null,null,null,null,null,1,null,null,null,null,null,null,null,null,null,null,1,null,null,null,null,null,null,null,null,null,null,null,null,null,null,1]
[3770,"ZenPet - Div of Contech","Y",null,null,null,null,null,null,null,null,null,null,null,null,null,null,null,null,1,1,null,null,1,null,null,null,null,null,null,null,null,null,null,null,null,null,null,null,null,null,null,null,null,1,null,1,1]
[3208,"Zero Odor","Y",null,null,null,null,null,null,null,null,null,null,null,null,null,null,null,null,1,1,null,null,null,null,null,null,null,null,null,null,null,null,null,null,null,null,null,null,null,null,null,null,null,null,null,null,1]
[4291,"Zetlight Electronic Company","Y",null,null,null,null,1,null,null,null,null,null,null,1]
[4984,"Zhaoyuan Rongda Industry & Trade Co","Y",null,null,null,null,null,null,1,null,null,null,null,null,null,null,null,null,1,null,null,null,null,null,null,null,null,null,null,null,null,null,null,null,null,null,null,null,null,1,null,null,null,null,null,0,0,0,0,0,0,0]
[3381,"Zhejiang Greentop Arts Products Co.","Y",null,null,null,null,null,null,null,0,0,0,0,0,0,1,1,0,0,1,0,0,0,0,0,0,0,0,0,0,0,0,0,0,0,0,0,0,1,0,0,0,0,0,0,0,0,0,0,0,0,0]
[2770,"Zhejiang Kunyue Industrial and Trade Co","Y",null,null,null,null,null,null,null,0,0,0,0,0,0,0,0,0,1,1,0,0,0,0,0,1,0,0,0,0,0,0,0,0,0,0,1,0,0,0,1,0,0,0,0]
[3575,"Zhejiang Native Produce/Animal By-Prod","Y",null,null,null,null,null,null,null,null,null,null,null,null,null,null,null,null,1,1,null,null,1,null,null,null,null,null,null,null,null,null,1,null,1,null,null,null,null,null,1,null,null,null,null,0,0,0,0,1,0,0]
[1715,"ZHEJIANG UNIVERSE INDUSTRY CO.","Y",null,null,null,null,null,null,null,0,0,0,0,0,0,0,0,0,1,1,0,0,1,0,0,1,1,0,1,0,0,0,0,0,0,0,1,0,1,0,0,0,0,0,0]
[207,"Zhongshan Dogood Metal Products Co","Y",null,null,null,null,null,null,null,null,null,null,null,null,null,null,null,null,null,1,null,null,null,null,null,null,null,null,null,null,null,null,null,null,null,null,1]
[1655,"Zhongshan President Enterprises Co","Y",null,null,null,1,null,null,null,null,null,null,null,1,null,null,1]
[824,"Zhuji Longbow Knitting Co., Ltd.","Y",null,null,null,null,null,null,null,null,null,null,null,null,null,null,null,null,1,1,null,1]
[1201,"ZippyPaws ","Y",null,null,null,null,null,null,null,0,0,null,0,0,0,0,0,0,0,1,0,0,1,0,0,1,0,0,1,0,0,0,0,0,1,0,0,0,0,0,0,0,0,0,0,0,0,0,0,1,0,0]
[4039,"ZiwiPeak USA Inc. ","Y",null,1,null,null,null,null,null,0,0,null,0,0,0,0,0,0,1,1,0,0,0,0,1,0,1,0,0,0,0,0,0,0,0,0,0,0,0,0,0,0,1,0,0,0,0,0,0,0,0,0]
[4274,"ZMF Pet Food","Y",null,null,null,null,1,null,null,null,null,1,null,null,null,null,null,null,1,1,null,null,null,null,1]
[1609,"Zoo Med Laboratories","Y",null,null,null,null,null,null,null,0,0,null,null,1,1,1,0,0,0,0,0,0,0,0,0,0,0,0,0,0,0,0,0,0,0,0,0,0,0,0,0,0,0,0,0,0,0,0,0,0,0,0]
[4127,"Zuke's Performance Pet Nutrition","Y",null,1,null,null,null,null,null,0,0,null,0,0,0,0,0,0,1,1,0,0,0,0,0,0,1,0,0,0,0,0,0,0,0,0,0,0,0,0,0,0,0,0,0,0,0,0,0,0,0,0]
[2551,"ZuPreem ","Y",null,null,null,null,null,null,null,0,0,null,0,0,1,1,1,0,0,0,0,0,0,0,0,0,0,0,0,0,0,0,0,0,0,0,0,0,0,0,0,0,0,0,0,0,0,0,0,0,0,0]
[null,"BLANK Search Field","N"]
[null,"Total >",{"$f":"SUMPRODUCT(- -(ISNUMBER(SEARCH(\"Y\",$C$10:$C$1095))),SUBTOTAL(3,OFFSET($C$10,ROW($C$10:$C$1095)-ROW($C$10),0)))","v":1085},{"$f":"SUBTOTAL(109,D10:D1095)","v":0},{"$f":"SUBTOTAL(109,E10:E1095)","v":136},56,47,43,0,151,17,12,14,82,115,59,150,147,83,496,891,13,139,247,37,107,170,279,51,221,16,42,50,62,36,181,27,115,57,50,54,80,51,151,45,93,87,83,34,42,69,{"$f":"SUBTOTAL(109,AZ10:AZ1095)","v":29},{"$f":"SUBTOTAL(109,BA10:BA1095)","v":18}]